Ref No,Fund Type,Dept,Cost Centre Description    ,Description    ,Creditor Name    ,GL Code Net Amount,Payment date        
2,Revenue,CAHD,18-25 Year Olds,Permanent Residential,1 St Georges House,13021.00, 12-Mar-2019
3,Revenue,CAHD,CSC - Asylum Seekers - Unaccompanied,Client Transport,1625 Independent People,66.25, 22-Mar-2019
4,Revenue,CAHD,CSC - Asylum Seekers - Unaccompanied,Furniture & Fittings Loose,1625 Independent People,684.00, 22-Mar-2019
5,Revenue,CAHD,CSC - Asylum Seekers - Unaccompanied,Other Supplies & Services,1625 Independent People,40.00, 22-Mar-2019
6,Revenue,CAHD,CSC - Asylum Seekers - Unaccompanied,Client Transport,1625 Independent People,132.50, 22-Mar-2019
7,Revenue,CAHD,CSC - Asylum Seekers - Unaccompanied,Personal Needs of Clients,1625 Independent People,219.94, 22-Mar-2019
8,Revenue,CAHD,CSC - Asylum Seekers - Unaccompanied,Other Supplies & Services,1625 Independent People,40.00, 22-Mar-2019
9,Revenue,CAHD,CSC - Asylum Seekers - Unaccompanied,Adults - Family Support,1625 Independent People,239.75, 22-Mar-2019
10,Revenue,CAHD,CSC - UASC Housing Support,Grants to Voluntary Bodies,1625 Independent People,12579.00, 28-Mar-2019
11,Revenue,CAHD,CSC - LAC Housing Support Grants,Grants to Voluntary Bodies,1625 Independent People,3265.00, 01-Mar-2019
12,Revenue,CAHD,CSC - LAC Housing Support Grants,Grants to Voluntary Bodies,1625 Independent People,3265.00, 01-Mar-2019
13,Revenue,CAHD,CSC - LAC Housing Support Grants,Grants to Voluntary Bodies,1625 Independent People,3265.00, 01-Mar-2019
14,Revenue,CAHD,CSC - LAC Housing Support Grants,Grants to Voluntary Bodies,1625 Independent People,3265.00, 14-Mar-2019
15,Revenue,CAHD,Supporting People Programme,Grants to Voluntary Bodies,1625 Independent People,9100.00, 01-Mar-2019
16,Revenue,CAHD,Supporting People Programme,Grants to Voluntary Bodies,1625 Independent People,9811.67, 04-Mar-2019
17,Revenue,CAHD,CSC - Care Leavers Independent Living,Independent Living,1625 Independent People,980.64, 01-Mar-2019
18,Revenue,CAHD,Bed Purchasing - North,Permanent Residential,1St Floor Lingfield House,2677.24, 12-Mar-2019
19,Revenue,CAHD,Bed Purchasing - North,Permanent Nursing,1St Floor Lingfield House,2215.16, 12-Mar-2019
20,Revenue,CAHD,Homecare - Central,Day Care / Social Activities,3 Trees Community Support Ltd,385.56, 06-Mar-2019
21,Revenue,CAHD,Homecare - Central,Other Small Contracts,3 Trees Community Support Ltd,3097.94, 06-Mar-2019
22,Revenue,CAHD,Homecare - Central,Supported Living,3 Trees Community Support Ltd,5545.20, 06-Mar-2019
23,Revenue,CAHD,Home Care - Elderly - North,Day Care / Social Activities,3 Trees Community Support Ltd,656.88, 06-Mar-2019
24,Revenue,CAHD,Homecare - Central,Day Care / Social Activities,3 Trees Community Support Ltd,385.56, 19-Mar-2019
25,Revenue,CAHD,Homecare - Central,Other Small Contracts,3 Trees Community Support Ltd,3096.52, 19-Mar-2019
26,Revenue,CAHD,Homecare - Central,Supported Living,3 Trees Community Support Ltd,5441.51, 19-Mar-2019
27,Revenue,CAHD,Home Care - Elderly - North,Day Care / Social Activities,3 Trees Community Support Ltd,675.92, 19-Mar-2019
28,Revenue,CAHD,Homecare - Central,Day Care / Social Activities,3 Trees Community Support Ltd,380.80, 28-Mar-2019
29,Revenue,CAHD,Homecare - Central,Other Small Contracts,3 Trees Community Support Ltd,3104.62, 28-Mar-2019
30,Revenue,CAHD,Homecare - Central,Supported Living,3 Trees Community Support Ltd,5404.11, 28-Mar-2019
31,Revenue,CAHD,Home Care - Elderly - North,Day Care / Social Activities,3 Trees Community Support Ltd,661.64, 28-Mar-2019
32,Revenue,CAHD,Homecare - Central,Day Care / Social Activities,3 Trees Community Support Ltd,380.80, 28-Mar-2019
33,Revenue,CAHD,Homecare - Central,Other Small Contracts,3 Trees Community Support Ltd,3101.28, 28-Mar-2019
34,Revenue,CAHD,Homecare - Central,Supported Living,3 Trees Community Support Ltd,5440.48, 28-Mar-2019
35,Revenue,CAHD,Home Care - Elderly - North,Day Care / Social Activities,3 Trees Community Support Ltd,656.88, 28-Mar-2019
36,Revenue,CAHD,18-25 Year Olds,Permanent Residential,5Th Floor Harlech Court,14897.40, 12-Mar-2019
37,Revenue,CAHD,18-25 Year Olds,Permanent Residential,5Th Floor Harlech Court,17792.32, 12-Mar-2019
38,Revenue,CAHD,Bed Purchasing - North,Permanent Residential,5Th Floor Harlech Court,13492.04, 12-Mar-2019
39,Revenue,CAHD,18-25 Year Olds,Permanent Residential,5Th Floor Harlech Court,13505.44, 12-Mar-2019
40,Revenue,CAHD,Bed Purchasing - North,Permanent Residential,5Th Floor Harlech Court,14372.24, 12-Mar-2019
41,Revenue,CAHD,Jointly Funded H&SC Packages,Permanent Residential,5Th Floor Harlech Court,3556.48, 12-Mar-2019
42,Revenue,CAHD,Bed Purchasing - South,Permanent Residential,5Th Floor Harlech Court,16276.48, 12-Mar-2019
43,Revenue,CAHD,Bed Purchasing - South,Permanent Residential,5Th Floor Harlech Court,10175.32, 12-Mar-2019
44,Revenue,CAHD,Bed purchasing - S28A Under 65 - South,Permanent Residential,5Th Floor Harlech Court,10649.12, 12-Mar-2019
45,Revenue,CAHD,Bed Purchasing - South,Permanent Residential,5Th Floor Harlech Court,11168.36, 12-Mar-2019
46,Revenue,CAHD,Bed Purchasing - North,Permanent Residential,5Th Floor Harlech Court,12205.64, 12-Mar-2019
47,Revenue,CAHD,Bed Purchasing - North,Permanent Residential,5Th Floor Harlech Court,10290.28, 12-Mar-2019
48,Revenue,CAHD,Bed Purchasing - North,Permanent Residential,5Th Floor Harlech Court,8858.52, 12-Mar-2019
49,Revenue,CAHD,CSC - Vinney Green Secure Unit,R & M by Departments,A E Horder (Contracting) Limited,3557.50, 22-Mar-2019
50,Revenue,CAHD,CSC - Vinney Green Secure Unit,R & M by Departments,A E Horder (Contracting) Limited,9345.08, 01-Mar-2019
51,Revenue,CAHD,CSC - Vinney Green Secure Unit,R & M by Departments,A E Horder (Contracting) Limited,5023.20, 29-Mar-2019
52,Revenue,CAHD,Direct Payments - Phys Dis - North,Fees & Charges Income - General,A4E Management Limited,3449.31, 08-Mar-2019
53,Revenue,CAHD,Direct Payments - Phys Dis - North,Fees & Charges Income - General,A4E Management Ltd,2160.46, 08-Mar-2019
54,Revenue,CAHD,EARLY YEARS DEPRIVATION PAYMENT,Preventative Assistance,Abacus @ Baileys Court Activity Centre,653.35, 05-Mar-2019
55,Revenue,CAHD,Early Years Inclusion Fund,Other Public Bodies,Abbeywood Tots Day Nursery Ltd,800.00, 20-Mar-2019
56,Revenue,CAHD,EARLY YEARS DEPRIVATION PAYMENT,Preventative Assistance,Abbeywood Tots Day Nursery Ltd,816.68, 05-Mar-2019
57,Revenue,CAHD,Bed Purchasing - North,Permanent Nursing,Abbots Leigh Nursing,3747.36, 12-Mar-2019
58,Revenue,CAHD,Bed and Breakfast,Storage & Removal,Ablemove-Wottons,716.00, 01-Mar-2019
59,Revenue,CAHD,School Improvement and Support,Other Supplies & Services,Achieving for Children,2100.00, 20-Mar-2019
60,Revenue,CAHD,Section 117 Placements MH Younger,Permanent Residential,Acorn Care Providers,6453.32, 12-Mar-2019
61,Revenue,CAHD,MH Purchasing - Younger,Permanent Residential,Acorn Care Providers,6000.00, 12-Mar-2019
62,Revenue,CAHD,Training - Adult Services,Training Expenses,Acorn Health & Safety Limited,702.20, 07-Mar-2019
63,Revenue,CAHD,Training - Adult Services,Training Expenses,Acorn Health & Safety Limited,465.00, 14-Mar-2019
64,Revenue,CAHD,Training - Adult Services,Training Expenses,Acorn Health & Safety Limited,465.00, 21-Mar-2019
65,Revenue,CAHD,CSC - Agency Fostering,Foster Parent Allowances,Action for Children,3027.92, 12-Mar-2019
66,Revenue,CAHD,CSC - Agency Fostering,Foster Parent Allowances,Action for Children,6300.00, 12-Mar-2019
67,Revenue,CAHD,CSC - Agency Fostering,Foster Parent Allowances,Action for Children,3305.96, 12-Mar-2019
68,Revenue,CAHD,CSC - Agency Fostering,Foster Parent Allowances,Action for Children,3305.96, 12-Mar-2019
69,Revenue,CAHD,CSC - Agency Fostering,Foster Parent Allowances,Action for Children,3479.84, 12-Mar-2019
70,Revenue,CAHD,Home Care - Elderly - South,Supported Living,Action on Hearing Loss,562.80, 13-Mar-2019
71,Revenue,CAHD,Home Care - Elderly - South,Supported Living,Action on Hearing Loss,536.00, 13-Mar-2019
72,Revenue,CAHD,Home Care - Elderly - South,Supported Living,Action on Hearing Loss,616.40, 20-Mar-2019
73,Revenue,CAHD,Home Care - Elderly - South,Other Small Contracts,Advantedge Commercial Finance Limited,1302.00, 18-Mar-2019
74,Revenue,CAHD,Home Care - Elderly - South,Other Small Contracts,Advantedge Commercial Finance Limited,502.20, 18-Mar-2019
75,Revenue,CAHD,Home Care - Elderly - South,Other Small Contracts,Advantedge Commercial Finance Limited,520.80, 15-Mar-2019
76,Revenue,CAHD,Home Care - Elderly - South,Other Small Contracts,Advantedge Commercial Finance Limited,595.20, 15-Mar-2019
77,Revenue,CAHD,Home Care - Elderly - North,Other Small Contracts,Advantedge Commercial Finance Limited,781.20, 19-Mar-2019
78,Revenue,CAHD,Homecare - Central,Other Small Contracts,Agincare UK Limited,591.85, 19-Mar-2019
79,Revenue,CAHD,Home Care - Elderly - South,Other Small Contracts,Agincare UK Limited,436.10, 19-Mar-2019
80,Revenue,CAHD,Homecare - Central,Other Small Contracts,Agincare UK Limited,703.10, 19-Mar-2019
81,Revenue,CAHD,Home Care - Elderly - South,Other Small Contracts,Agincare UK Limited,498.40, 19-Mar-2019
82,Revenue,CAHD,Homecare - Central,Other Small Contracts,Agincare UK Limited,685.30, 19-Mar-2019
83,Revenue,CAHD,Home Care - Elderly - South,Other Small Contracts,Agincare UK Limited,511.75, 19-Mar-2019
84,Revenue,CAHD,Homecare - Central,Other Small Contracts,Agincare UK Limited,324.85, 19-Mar-2019
85,Revenue,CAHD,Home Care - Elderly - South,Other Small Contracts,Agincare UK Limited,498.40, 19-Mar-2019
86,Revenue,CAHD,Homecare - Central,Other Small Contracts,Agincare UK Limited,858.85, 28-Mar-2019
87,Revenue,CAHD,Homecare - Central,Other Small Contracts,Agincare UK Limited,493.95, 28-Mar-2019
88,Revenue,CAHD,Home Care - Elderly - South,Other Small Contracts,Agincare UK Limited,538.45, 28-Mar-2019
89,Revenue,CAHD,Extra Care Housing,Private & Voluntary Home Care,Agincare UK Limited,23256.50, 01-Mar-2019
90,Revenue,CAHD,Extra Care Housing,Private & Voluntary Home Care,Agincare UK Limited,11253.50, 01-Mar-2019
91,Revenue,CAHD,Extra Care Housing,Private & Voluntary Home Care,Agincare UK Limited,27590.00, 04-Mar-2019
92,Revenue,CAHD,Extra Care Housing,Private & Voluntary Home Care,Agincare UK Limited,6298.58, 13-Mar-2019
93,Revenue,CAHD,Extra Care Housing,Private & Voluntary Home Care,Agincare UK Limited,1244.26, 12-Mar-2019
94,Revenue,CAHD,Prison Assessments & Costs,Other Supplies & Services,Agincare UK Limited,2881.00, 15-Mar-2019
95,Revenue,CAHD,18-25 Year Olds,Permanent Residential,Alexander House,13850.28, 12-Mar-2019
96,Revenue,CAHD,Home Care - Elderly - South,Other Small Contracts,AliMo Care Ltd,525.55, 19-Mar-2019
97,Revenue,CAHD,Home Care - Elderly - South,Other Small Contracts,AliMo Care Ltd,580.39, 28-Mar-2019
98,Revenue,CAHD,Home Care - Elderly - North,Other Small Contracts,AliMo Care Ltd,127.96, 28-Mar-2019
99,Revenue,CAHD,Bed Purchasing - North,Permanent Nursing,Allambie Court,2266.04, 12-Mar-2019
100,Revenue,CAHD,Bed Purchasing - North,Permanent Nursing,Allambie Court,2266.04, 12-Mar-2019
101,Revenue,CAHD,CSC - Vinney Green Secure Unit,R & M by Departments,Allday Time Systems Limited,879.00, 14-Mar-2019
102,Revenue,CAHD,Sexual Health,Other Small Contracts,Almondsbury Surgery,563.50, 20-Mar-2019
103,Revenue,CAHD,Bed Purchasing - North,Permanent Nursing,Amerind Grove Nursing Home,2642.88, 12-Mar-2019
104,Revenue,CAHD,CSC - Agency Fostering,Foster Parent Allowances,Amicus Foster Care Ltd,4579.96, 06-Mar-2019
105,Revenue,CAHD,CSC - Parent & Child Assessments,Foster Parent Allowances,Amicus Foster Care Ltd,2946.72, 13-Mar-2019
106,Revenue,CAHD,CSC - Agency Fostering,Foster Parent Allowances,Amicus Foster Care Ltd,4406.84, 06-Mar-2019
107,Revenue,CAHD,Supporting People Programme,Grants to Voluntary Bodies,Anchor Hanover Group,1015.00, 01-Mar-2019
108,Revenue,CAHD,Supporting People Programme,Grants to Voluntary Bodies,Anchor Hanover Group,827.00, 01-Mar-2019
109,Revenue,CAHD,Childrens - Safeguarding Board,Training Expenses,Anthony Domaille,1800.00, 11-Mar-2019
110,Revenue,CAHD,Childrens - Safeguarding Board,Training Expenses,Anthony Domaille,900.00, 19-Mar-2019
111,Revenue,CAHD,CSC - Vinney Green Secure Unit,External Lecturers Fees,APE Project,500.00, 08-Mar-2019
112,Revenue,CAHD,EARLY YEARS DEPRIVATION PAYMENT,Preventative Assistance,Apple Tree Pre-School,882.02, 05-Mar-2019
113,Revenue,CAHD,Early Years Pupil Premium Grant,Preventative Assistance,Apple Tree Pre-School,515.16, 05-Mar-2019
114,Revenue,CAHD,Built Environment,Other Small Contracts,AQDM,1500.00, 11-Mar-2019
115,Revenue,CAHD,Schools Specific Grant Income,Conference Expenses,Aquaterra Leisure,1084.50, 12-Mar-2019
116,Revenue,CAHD,Sexual Health,Other Small Contracts,Asda Stores Limited,570.00, 27-Mar-2019
117,Revenue,CAHD,Sexual Health,Other Small Contracts,Asda Stores Limited,1115.00, 27-Mar-2019
118,Revenue,CAHD,Jointly Funded H&SC Packages,Permanent Residential,Ash View House,1085.36, 12-Mar-2019
119,Revenue,CAHD,Bed Purchasing - South,Permanent Residential,Ash View House,5293.96, 12-Mar-2019
120,Revenue,CAHD,S117 Placements PCT,Permanent Residential,Ash View House,7379.20, 12-Mar-2019
121,Revenue,CAHD,18-25 Year Olds,Permanent Residential,Ash View House,6933.12, 12-Mar-2019
122,Revenue,CAHD,Section 117 Placements MH Younger,Permanent Residential,Ash View House,4808.72, 12-Mar-2019
123,Revenue,CAHD,Jointly Funded H&SC Packages,Permanent Residential,Ash View House,2060.92, 12-Mar-2019
124,Revenue,CAHD,Bed purchasing - Elderly S117 - South,Permanent Residential,Ash View House,6535.92, 12-Mar-2019
125,Revenue,CAHD,18-25 Year Olds,Permanent Residential,Ash View House,6460.48, 12-Mar-2019
126,Revenue,CAHD,Drug and Alcohol Programme,Rent,Ashville Asset Management Limited,1211.02, 25-Mar-2019
127,Revenue,CAHD,Drug and Alcohol Programme,Rent,Ashville Asset Management Limited,4550.00, 25-Mar-2019
128,Revenue,CAHD,Bed Purchasing - North,Permanent Residential,Aspects 2 Limited,7062.40, 12-Mar-2019
129,Revenue,CAHD,Supporting People Programme,Grants to Voluntary Bodies,Aspects and Milestones Trust,3361.00, 01-Mar-2019
130,Revenue,CAHD,Supporting People Programme,Grants to Voluntary Bodies,Aspects and Milestones Trust,1685.00, 01-Mar-2019
131,Revenue,CAHD,CSC - Legal Fees,Legal Fees,Aspire Social Work Services Limited,1999.70, 04-Mar-2019
132,Revenue,CAHD,A & CL - Project Funding 18/19,Consultants Fees,Aspiro Education Ltd,1780.00, 29-Mar-2019
133,Revenue,CAHD,Bed Purchasing - South,Adults - Family Support,Ategi Limited,13031.12, 06-Mar-2019
134,Revenue,CAHD,Shared Lives,Other Supplies & Services,Ategi Limited,50430.75, 29-Mar-2019
135,Revenue,CAHD,CSC - Vinney Green Secure Unit,R & M by Departments,Atus Systems Limited,3729.84, 15-Mar-2019
136,Revenue,CAHD,Independent Special Placements - Pre 16,Other Private Contractors,Aurora Care & Education,26333.33, 18-Mar-2019
137,Revenue,CAHD,Bed Purchasing - South,Permanent Residential,Autism Specialised Care Homes,6354.36, 12-Mar-2019
138,Revenue,CAHD,Bed Purchasing - North,Permanent Residential,Avery Homes Downend Limited,4200.00, 12-Mar-2019
139,Revenue,CAHD,Younger Adult Mental Health,Health Services (Third Party Payments),Avon & Wiltshire Mental Health,1693.33, 22-Mar-2019
140,Revenue,CAHD,Early Years High Needs Support,Other Private Contractors,Baker Street Nursery & Pre-School,910.13, 25-Mar-2019
141,Revenue,CAHD,CSC - Quality Review Unit,Agency Staff (Admin/Support Staff) Pay,Baltimore Consulting Group,960.00, 22-Mar-2019
142,Revenue,CAHD,CSC - Section 17 - ART,Legal Fees,Barcan+Kirby LLP,2015.00, 04-Mar-2019
143,Revenue,CAHD,CSC - Section 17 - ART,Legal Fees,Barcan+Kirby LLP,1400.00, 18-Mar-2019
144,Revenue,CAHD,CSC - Care Leavers Support Costs,Personal Needs of Clients,Barnardo Services Limited,3014.40, 05-Mar-2019
145,Revenue,CAHD,Pensions - Non DSG,Annual Pension,Bath & North East Somerset Council,108151.08, 05-Mar-2019
146,Revenue,CAHD,Positive Activities Subsidy for Young Pe,Other Supplies & Services,Bath & North East Somerset Council,2200.00, 27-Mar-2019
147,Revenue,CAHD,Positive Activities Subsidy for Young Pe,Other Supplies & Services,Bath & North East Somerset Council,2200.00, 27-Mar-2019
148,Revenue,CAHD,Positive Activities Subsidy for Young Pe,Other Supplies & Services,Bath & North East Somerset Council,2200.00, 27-Mar-2019
149,Revenue,CAHD,"Education, Learning and Skills",Catering,Bawa Healthcare & Leisure,342.34, 14-Mar-2019
150,Revenue,CAHD,"Education, Learning and Skills",Premises Hire,Bawa Healthcare & Leisure,341.00, 14-Mar-2019
151,Revenue,CAHD,South Glos Users in South Glos Homes,Permanent Nursing,Beaufort Grange Care Home,632.64, 12-Mar-2019
152,Revenue,CAHD,Bed Purchasing - South,Respite Planned - Residential,Beaufort Grange Care Home,5220.00, 12-Mar-2019
153,Revenue,CAHD,South Glos Users in South Glos Homes,Permanent Nursing,Beaufort Grange Care Home,723.02, 12-Mar-2019
154,Revenue,CAHD,South Glos Users in South Glos Homes,Permanent Nursing,Beaufort Grange Care Home,632.64, 12-Mar-2019
155,Revenue,CAHD,South Glos Users in South Glos Homes,Permanent Nursing,Beaufort Grange Care Home,632.64, 12-Mar-2019
156,Revenue,CAHD,South Glos Users in South Glos Homes,Permanent Nursing,Beaufort Grange Care Home,632.64, 12-Mar-2019
157,Revenue,CAHD,South Glos Users in South Glos Homes,Permanent Nursing,Beaufort Grange Care Home,632.64, 12-Mar-2019
158,Revenue,CAHD,South Glos Users in South Glos Homes,Permanent Nursing,Beaufort Grange Care Home,632.64, 12-Mar-2019
159,Revenue,CAHD,South Glos Users in South Glos Homes,Permanent Nursing,Beaufort Grange Care Home,632.64, 12-Mar-2019
160,Revenue,CAHD,South Glos Users in South Glos Homes,Permanent Nursing,Beaufort Grange Care Home,632.64, 12-Mar-2019
161,Revenue,CAHD,South Glos Users in South Glos Homes,Permanent Nursing,Beaufort Grange Care Home,632.64, 12-Mar-2019
162,Revenue,CAHD,South Glos Users in South Glos Homes,Permanent Nursing,Beaufort Grange Care Home,632.64, 12-Mar-2019
163,Revenue,CAHD,Bed Purchasing - Elderly S117- North,Permanent Nursing,Beaufort Grange Care Home,4762.72, 12-Mar-2019
164,Revenue,CAHD,South Glos Users in South Glos Homes,Permanent Nursing,Beaufort Grange Care Home,632.64, 12-Mar-2019
165,Revenue,CAHD,South Glos Users in South Glos Homes,Permanent Nursing,Beaufort Grange Care Home,632.64, 12-Mar-2019
166,Revenue,CAHD,South Glos Users in South Glos Homes,Permanent Nursing,Beaufort Grange Care Home,632.64, 12-Mar-2019
167,Revenue,CAHD,South Glos Users in South Glos Homes,Permanent Nursing,Beaufort Grange Care Home,632.64, 12-Mar-2019
168,Revenue,CAHD,South Glos Users in South Glos Homes,Permanent Nursing,Beaufort Grange Care Home,632.64, 12-Mar-2019
169,Revenue,CAHD,South Glos Users in South Glos Homes,Permanent Nursing,Beaufort Grange Care Home,632.64, 12-Mar-2019
170,Revenue,CAHD,Bed Purchasing - Southmead Hospital,Respite Planned - Nursing,Beaufort Grange Care Home,3596.69, 12-Mar-2019
171,Revenue,CAHD,South Glos Users in South Glos Homes,Permanent Nursing,Beaufort Grange Care Home,632.64, 12-Mar-2019
172,Revenue,CAHD,South Glos Users in South Glos Homes,Permanent Nursing,Beaufort Grange Care Home,632.64, 12-Mar-2019
173,Revenue,CAHD,South Glos Users in South Glos Homes,Permanent Nursing,Beaufort Grange Care Home,632.64, 12-Mar-2019
174,Revenue,CAHD,South Glos Users in South Glos Homes,Permanent Nursing,Beaufort Grange Care Home,632.64, 12-Mar-2019
175,Revenue,CAHD,South Glos Users in South Glos Homes,Permanent Nursing,Beaufort Grange Care Home,632.64, 12-Mar-2019
176,Revenue,CAHD,South Glos Users in South Glos Homes,Permanent Nursing,Beaufort Grange Care Home,632.64, 12-Mar-2019
177,Revenue,CAHD,South Glos Users in South Glos Homes,Permanent Nursing,Beaufort Grange Care Home,632.64, 12-Mar-2019
178,Revenue,CAHD,South Glos Users in South Glos Homes,Permanent Nursing,Beaufort Grange Care Home,632.64, 12-Mar-2019
179,Revenue,CAHD,Bed Purchasing - South,Respite Planned - Nursing,Beaufort Grange Care Home,3596.69, 12-Mar-2019
180,Revenue,CAHD,Bed Purchasing - South,Respite Planned - Nursing,Beaufort Grange Care Home,2697.51, 12-Mar-2019
181,Revenue,CAHD,South Glos Users in South Glos Homes,Permanent Nursing,Beaufort Grange Care Home,632.64, 12-Mar-2019
182,Revenue,CAHD,South Glos Users in South Glos Homes,Permanent Nursing,Beaufort Grange Care Home,632.64, 12-Mar-2019
183,Revenue,CAHD,South Glos Users in South Glos Homes,Permanent Nursing,Beaufort Grange Care Home,632.64, 12-Mar-2019
184,Revenue,CAHD,South Glos Users in South Glos Homes,Permanent Nursing,Beaufort Grange Care Home,632.64, 12-Mar-2019
185,Revenue,CAHD,South Glos Users in South Glos Homes,Permanent Nursing,Beaufort Grange Care Home,632.64, 12-Mar-2019
186,Revenue,CAHD,South Glos Users in South Glos Homes,Permanent Nursing,Beaufort Grange Care Home,632.64, 12-Mar-2019
187,Revenue,CAHD,South Glos Users in South Glos Homes,Permanent Nursing,Beaufort Grange Care Home,632.64, 12-Mar-2019
188,Revenue,CAHD,South Glos Users in South Glos Homes,Permanent Nursing,Beaufort Grange Care Home,632.64, 12-Mar-2019
189,Revenue,CAHD,South Glos Users in South Glos Homes,Permanent Nursing,Beaufort Grange Care Home,632.64, 12-Mar-2019
190,Revenue,CAHD,South Glos Users in South Glos Homes,Permanent Nursing,Beaufort Grange Care Home,632.64, 12-Mar-2019
191,Revenue,CAHD,South Glos Users in South Glos Homes,Permanent Nursing,Beaufort Grange Care Home,632.64, 12-Mar-2019
192,Revenue,CAHD,Bed Purchasing - North,Permanent Residential,Beaufort House,2489.80, 12-Mar-2019
193,Revenue,CAHD,Bed Purchasing - Central,Permanent Residential,Beaufort House,2800.00, 12-Mar-2019
194,Revenue,CAHD,Bed Purchasing - North,Permanent Residential,Beaufort House,2511.12, 12-Mar-2019
195,Revenue,CAHD,Bed Purchasing - South,Permanent Residential,Beaufort House,2477.40, 12-Mar-2019
196,Revenue,CAHD,Bed Purchasing - Central,Permanent Residential,Beaufort House,2710.56, 12-Mar-2019
197,Revenue,CAHD,Bed Purchasing - North,Permanent Residential,Beaufort House,2636.64, 12-Mar-2019
198,Revenue,CAHD,Bed Purchasing - South,Permanent Residential,Beaufort House,2649.40, 12-Mar-2019
199,Revenue,CAHD,South Glos Users in South Glos Homes,Permanent Nursing,Beech House,632.64, 12-Mar-2019
200,Revenue,CAHD,Bed Purchasing - South,Permanent Residential,Beech House,2890.28, 12-Mar-2019
201,Revenue,CAHD,South Glos Users in South Glos Homes,Permanent Nursing,Beech House,632.64, 12-Mar-2019
202,Revenue,CAHD,South Glos Users in South Glos Homes,Permanent Nursing,Beech House,632.64, 12-Mar-2019
203,Revenue,CAHD,South Glos Users in South Glos Homes,Permanent Nursing,Beech House,632.64, 12-Mar-2019
204,Revenue,CAHD,South Glos Users in South Glos Homes,Permanent Nursing,Beech House,632.64, 12-Mar-2019
205,Revenue,CAHD,South Glos Users in South Glos Homes,Permanent Nursing,Beech House,632.64, 12-Mar-2019
206,Revenue,CAHD,South Glos Users in South Glos Homes,Permanent Nursing,Beech House,632.64, 12-Mar-2019
207,Revenue,CAHD,South Glos Users in South Glos Homes,Permanent Nursing,Beech House,632.64, 12-Mar-2019
208,Revenue,CAHD,Bed Purchasing - North,Permanent Nursing,Beech House,3464.60, 12-Mar-2019
209,Revenue,CAHD,South Glos Users in South Glos Homes,Permanent Nursing,Beech House,632.64, 12-Mar-2019
210,Revenue,CAHD,Bed Purchasing - North,Permanent Residential,Beech House,2890.28, 12-Mar-2019
211,Revenue,CAHD,South Glos Users in South Glos Homes,Permanent Nursing,Beech House,632.64, 12-Mar-2019
212,Revenue,CAHD,Bed Purchasing - Elderly S117- North,Permanent Nursing,Beech House,15607.14, 12-Mar-2019
213,Revenue,CAHD,Bed Purchasing - North,Fees & Charges Income - General,Beech House,14657.14, 12-Mar-2019
214,Revenue,CAHD,Bed Purchasing - Elderly S117- North,Fees & Charges Income - General,Beech House,14657.14, 12-Mar-2019
215,Revenue,CAHD,Bed Purchasing - North,Permanent Nursing,Beech House,3800.00, 12-Mar-2019
216,Revenue,CAHD,Bed Purchasing - North,Permanent Nursing,Beech House,31214.28, 12-Mar-2019
217,Revenue,CAHD,Bed Purchasing - Elderly S117- North,Fees & Charges Income - General,Beech House,814.29, 12-Mar-2019
218,Revenue,CAHD,Bed Purchasing - Elderly S117- North,Fees & Charges Income - General,Beech House,4342.86, 12-Mar-2019
219,Revenue,CAHD,Bed Purchasing - North,Fees & Charges Income - General,Beech House,1295.96, 12-Mar-2019
220,Revenue,CAHD,Bed Purchasing - Elderly S117- North,Fees & Charges Income - General,Beech House,1295.96, 12-Mar-2019
221,Revenue,CAHD,Bed Purchasing - Elderly S117- North,Fees & Charges Income - General,Beech House,2906.09, 12-Mar-2019
222,Revenue,CAHD,Bed Purchasing - Elderly S117- North,Fees & Charges Income - General,Beech House,2249.06, 12-Mar-2019
223,Revenue,CAHD,South Glos Users in South Glos Homes,Permanent Nursing,Beech House,632.64, 12-Mar-2019
224,Revenue,CAHD,South Glos Users in South Glos Homes,Permanent Nursing,Beech House,632.64, 12-Mar-2019
225,Revenue,CAHD,South Glos Users in South Glos Homes,Permanent Nursing,Beech House,632.64, 12-Mar-2019
226,Revenue,CAHD,South Glos Users in South Glos Homes,Permanent Nursing,Beech House,632.64, 12-Mar-2019
227,Revenue,CAHD,South Glos Users in South Glos Homes,Permanent Nursing,Beech House,632.64, 12-Mar-2019
228,Revenue,CAHD,South Glos Users in South Glos Homes,Permanent Nursing,Beech House,632.64, 12-Mar-2019
229,Revenue,CAHD,Bed Purchasing - North,Permanent Nursing,Beech House,3900.00, 12-Mar-2019
230,Revenue,CAHD,South Glos Users in South Glos Homes,Permanent Nursing,Beech House,632.64, 12-Mar-2019
231,Revenue,CAHD,South Glos Users in South Glos Homes,Permanent Nursing,Beech House,632.64, 12-Mar-2019
232,Revenue,CAHD,Bed Purchasing - North,Permanent Residential,Beech House,3974.12, 12-Mar-2019
233,Revenue,CAHD,South Glos Users in South Glos Homes,Permanent Nursing,Beech House,632.64, 12-Mar-2019
234,Revenue,CAHD,Bed Purchasing - North,Fees & Charges Income - General,Beech House,534.30, 12-Mar-2019
235,Revenue,CAHD,South Glos Users in South Glos Homes,Permanent Nursing,Beech House,632.64, 12-Mar-2019
236,Revenue,CAHD,South Glos Users in South Glos Homes,Permanent Nursing,Beech House,632.64, 12-Mar-2019
237,Revenue,CAHD,South Glos Users in South Glos Homes,Permanent Nursing,Beech House,632.64, 12-Mar-2019
238,Revenue,CAHD,Bed Purchasing - North,Permanent Nursing,Beech House,3362.72, 12-Mar-2019
239,Revenue,CAHD,South Glos Users in South Glos Homes,Permanent Nursing,Beech House,632.64, 12-Mar-2019
240,Revenue,CAHD,Bed Purchasing - North,Permanent Nursing,Beech House,3229.92, 12-Mar-2019
241,Revenue,CAHD,South Glos Users in South Glos Homes,Permanent Nursing,Beech House,632.64, 12-Mar-2019
242,Revenue,CAHD,South Glos Users in South Glos Homes,Permanent Nursing,Beech House,632.64, 12-Mar-2019
243,Revenue,CAHD,South Glos Users in South Glos Homes,Permanent Nursing,Beech House,632.64, 12-Mar-2019
244,Revenue,CAHD,Statemented Support Payments to OLAs,Other L.A.'s - General,Beechen Cliff School,718.49, 25-Mar-2019
245,Revenue,CAHD,South Glos Users in South Glos Homes,Permanent Nursing,Beechwood Care Home,1012.00, 12-Mar-2019
246,Revenue,CAHD,Bed purchasing - Elderly S117 - South,Permanent Residential,Bidna House,3606.08, 12-Mar-2019
247,Revenue,CAHD,Tobacco Control,Other Supplies & Services,Bionical Solutions Limited,6505.00, 29-Mar-2019
248,Revenue,CAHD,Bed Purchasing - North,Permanent Nursing,Bloomfield Care Centre,1091.84, 12-Mar-2019
249,Revenue,CAHD,South Glos Users in South Glos Homes,Permanent Nursing,Blossom Field,632.64, 12-Mar-2019
250,Revenue,CAHD,South Glos Users in South Glos Homes,Permanent Nursing,Blossom Field,632.64, 12-Mar-2019
251,Revenue,CAHD,Bed Purchasing - Elderly S117- North,Permanent Nursing,Blossom Field,3607.00, 12-Mar-2019
252,Revenue,CAHD,South Glos Users in South Glos Homes,Permanent Nursing,Blossom Field,632.64, 12-Mar-2019
253,Revenue,CAHD,South Glos Users in South Glos Homes,Permanent Nursing,Blossom Field,632.64, 12-Mar-2019
254,Revenue,CAHD,South Glos Users in South Glos Homes,Permanent Nursing,Blossom Field,632.64, 12-Mar-2019
255,Revenue,CAHD,Bed Purchasing - North,Permanent Nursing,Blossom Field,4167.36, 12-Mar-2019
256,Revenue,CAHD,South Glos Users in South Glos Homes,Permanent Nursing,Blossom Field,632.64, 12-Mar-2019
257,Revenue,CAHD,Bed Purchasing - North,Permanent Nursing,Blossom Field,3800.00, 12-Mar-2019
258,Revenue,CAHD,South Glos Users in South Glos Homes,Permanent Nursing,Blossom Field,632.64, 12-Mar-2019
259,Revenue,CAHD,South Glos Users in South Glos Homes,Permanent Nursing,Blossom Field,632.64, 12-Mar-2019
260,Revenue,CAHD,Bed Purchasing - South,Permanent Nursing,Blossom Field,4309.64, 12-Mar-2019
261,Revenue,CAHD,South Glos Users in South Glos Homes,Permanent Nursing,Blossom Field,632.64, 12-Mar-2019
262,Revenue,CAHD,South Glos Users in South Glos Homes,Permanent Nursing,Blossom Field,632.64, 12-Mar-2019
263,Revenue,CAHD,South Glos Users in South Glos Homes,Permanent Nursing,Blossom Field,519.67, 12-Mar-2019
264,Revenue,CAHD,Bed Purchasing - North,Permanent Nursing,Blossom Field,3447.36, 12-Mar-2019
265,Revenue,CAHD,South Glos Users in South Glos Homes,Permanent Nursing,Blossom Field,632.64, 12-Mar-2019
266,Revenue,CAHD,Bed Purchasing - North,Fees & Charges Income - General,Blossom Field,2972.86, 12-Mar-2019
267,Revenue,CAHD,Bed Purchasing - North,Permanent Nursing,Blossom Field,4687.40, 12-Mar-2019
268,Revenue,CAHD,South Glos Users in South Glos Homes,Permanent Nursing,Blossom Field,632.64, 12-Mar-2019
269,Revenue,CAHD,South Glos Users in South Glos Homes,Permanent Nursing,Blossom Field,632.64, 12-Mar-2019
270,Revenue,CAHD,South Glos Users in South Glos Homes,Permanent Nursing,Blossom Field,632.64, 12-Mar-2019
271,Revenue,CAHD,South Glos Users in South Glos Homes,Permanent Nursing,Blossom Field,632.64, 12-Mar-2019
272,Revenue,CAHD,South Glos Users in South Glos Homes,Permanent Nursing,Blossom Field,632.64, 12-Mar-2019
273,Revenue,CAHD,South Glos Users in South Glos Homes,Permanent Nursing,Blossom Field,632.64, 12-Mar-2019
274,Revenue,CAHD,South Glos Users in South Glos Homes,Permanent Nursing,Blossom Field,632.64, 12-Mar-2019
275,Revenue,CAHD,South Glos Users in South Glos Homes,Permanent Nursing,Blossom Field,632.64, 12-Mar-2019
276,Revenue,CAHD,South Glos Users in South Glos Homes,Permanent Nursing,Blossom Field,632.64, 12-Mar-2019
277,Revenue,CAHD,Bed Purchasing - North,Permanent Nursing,Blossom Field,3549.76, 12-Mar-2019
278,Revenue,CAHD,South Glos Users in South Glos Homes,Permanent Nursing,Blossom Field,632.64, 12-Mar-2019
279,Revenue,CAHD,South Glos Users in South Glos Homes,Permanent Nursing,Blossom Field,632.64, 12-Mar-2019
280,Revenue,CAHD,South Glos Users in South Glos Homes,Permanent Nursing,Blossom Field,632.64, 12-Mar-2019
281,Revenue,CAHD,CSC - Parent & Child Assessments,Foster Parent Allowances,Blue Sky Fostering Limited,6665.00, 25-Mar-2019
282,Revenue,CAHD,Bed Purchasing - North,Permanent Residential,Bluebells,3612.88, 12-Mar-2019
283,Revenue,CAHD,Early Years Inclusion Fund,Other Public Bodies,Bluebells Pre School,834.00, 01-Mar-2019
284,Revenue,CAHD,Early Years Inclusion Fund,Other Public Bodies,Bluebells Pre School,650.00, 06-Mar-2019
285,Revenue,CAHD,EARLY YEARS DEPRIVATION PAYMENT,Preventative Assistance,Bluebells Pre School,588.02, 05-Mar-2019
286,Revenue,CAHD,Homecare - Central,Other Small Contracts,Bluebird Care (South Gloucestershire),1506.19, 06-Mar-2019
287,Revenue,CAHD,Home Care - Elderly - South,Other Small Contracts,Bluebird Care (South Gloucestershire),439.19, 06-Mar-2019
288,Revenue,CAHD,Home Care - Elderly - North,Other Small Contracts,Bluebird Care (South Gloucestershire),992.70, 06-Mar-2019
289,Revenue,CAHD,Homecare - Central,Other Small Contracts,Bluebird Care (South Gloucestershire),1792.01, 11-Mar-2019
290,Revenue,CAHD,Home Care - Elderly - South,Other Small Contracts,Bluebird Care (South Gloucestershire),543.28, 11-Mar-2019
291,Revenue,CAHD,Home Care - Elderly - North,Other Small Contracts,Bluebird Care (South Gloucestershire),1115.75, 11-Mar-2019
292,Revenue,CAHD,Homecare - Central,Other Small Contracts,Bluebird Care (South Gloucestershire),1678.08, 21-Mar-2019
293,Revenue,CAHD,Home Care - Elderly - South,Other Small Contracts,Bluebird Care (South Gloucestershire),451.32, 21-Mar-2019
294,Revenue,CAHD,Home Care - Elderly - North,Other Small Contracts,Bluebird Care (South Gloucestershire),1038.60, 21-Mar-2019
295,Revenue,CAHD,Homecare - Central,Other Small Contracts,Bluebird Care (South Gloucestershire),1767.52, 21-Mar-2019
296,Revenue,CAHD,Home Care - Elderly - South,Other Small Contracts,Bluebird Care (South Gloucestershire),475.33, 21-Mar-2019
297,Revenue,CAHD,Home Care - Elderly - North,Other Small Contracts,Bluebird Care (South Gloucestershire),523.60, 21-Mar-2019
298,Revenue,CAHD,CSC - Vinney Green Secure Unit,"Provisions (Food, etc)",Booker Cash & Carry,502.56, 07-Mar-2019
299,Revenue,CAHD,CSC - Vinney Green Secure Unit,"Provisions (Food, etc)",Booker Cash & Carry,502.96, 06-Mar-2019
300,Revenue,CAHD,Schools Specific Grant Income,Other Supplies & Services,Booktrust,4392.09, 07-Mar-2019
301,Revenue,CAHD,Bed purchasing - S28A Under 65 - South,Permanent Residential,Bradbury House,4946.40, 12-Mar-2019
302,Revenue,CAHD,18-25 Year Olds,Permanent Residential,Bradbury House,9684.64, 12-Mar-2019
303,Revenue,CAHD,Bed Purchasing - Elderly S117- North,Permanent Residential,Bradbury House,5605.72, 12-Mar-2019
304,Revenue,CAHD,Jointly Funded H&SC Packages,Permanent Residential,Bradbury House,7741.20, 12-Mar-2019
305,Revenue,CAHD,Bed Purchasing - Elderly S117- North,Permanent Residential,Bradbury House,1450.82, 12-Mar-2019
306,Revenue,CAHD,Bed Purchasing - North,Permanent Residential,Bradbury House,2751.32, 12-Mar-2019
307,Revenue,CAHD,Sexual Health,Other Small Contracts,Bradley Stoke Surgery,2012.50, 20-Mar-2019
308,Revenue,CAHD,Sexual Health,Other Small Contracts,Bradley Stoke Surgery,1786.00, 20-Mar-2019
309,Revenue,CAHD,Social Lettings Agency,Fees - General,Individual,8.15, 01-Mar-2019
310,Revenue,CAHD,Social Lettings Agency,Other Supplies & Services,Individual,766.10, 01-Mar-2019
311,Revenue,CAHD,Bed Purchasing - North,Permanent Residential,Bridge House Care Home,2469.12, 12-Mar-2019
312,Revenue,CAHD,Bed Purchasing - North,Permanent Residential,Bridge House Care Home,2427.40, 12-Mar-2019
313,Revenue,CAHD,Bed Purchasing - North,Permanent Residential,Bridge House Care Home,2564.00, 12-Mar-2019
314,Revenue,CAHD,CSC - Vinney Green Secure Unit,Training Expenses,Bridgwater and Taunton College,2573.00, 08-Mar-2019
315,Revenue,CAHD,CSC - Vinney Green Secure Unit,Training Expenses,Bridgwater and Taunton College,2573.00, 08-Mar-2019
316,Revenue,CAHD,Bed Purchasing - North,Permanent Residential,Bridgwater Court,10521.12, 12-Mar-2019
317,Revenue,CAHD,EARLY YEARS DEPRIVATION PAYMENT,Preventative Assistance,Bright Sparks Pre School Limited,1633.38, 05-Mar-2019
318,Revenue,CAHD,Early Years Pupil Premium Grant,Preventative Assistance,Bright Sparks Pre School Limited,954.00, 05-Mar-2019
319,Revenue,CAHD,Early Years High Needs Support,Other Private Contractors,Bright Sparks Pre-School,1183.16, 25-Mar-2019
320,Revenue,CAHD,Yate Detached,Rent,Brimsham Green School,999.62, 25-Mar-2019
321,Revenue,CAHD,Statemented Support Academies,Schools Funding,Bristol & South Gloucestershire UTC,7298.24, 25-Mar-2019
322,Revenue,CAHD,Schools Specific Grant Income,Other Public Bodies,Bristol City Council,1130.00, 05-Mar-2019
323,Revenue,CAHD,Placements OLA Special Schools and RB,Other L.A.'s - General,Bristol City Council - Schools,2578.00, 27-Mar-2019
324,Revenue,CAHD,Placements OLA Special Schools and RB,Other L.A.'s - General,Bristol City Council - Schools,1350.17, 27-Mar-2019
325,Revenue,CAHD,Statemented Support Payments to OLAs,Other L.A.'s - General,Bristol City Council - Schools,1378.83, 25-Mar-2019
326,Revenue,CAHD,Placements OLA Special Schools and RB,Other L.A.'s - General,Bristol City Council - Schools,914.33, 27-Mar-2019
327,Revenue,CAHD,Placements OLA Special Schools and RB,Other L.A.'s - General,Bristol City Council - Schools,2578.00, 27-Mar-2019
328,Revenue,CAHD,Placements OLA Special Schools and RB,Other L.A.'s - General,Bristol City Council - Schools,1305.58, 27-Mar-2019
329,Revenue,CAHD,Statemented Support Payments to OLAs,Other L.A.'s - General,Bristol City Council - Schools,659.53, 25-Mar-2019
330,Revenue,CAHD,Placements OLA Special Schools and RB,Other L.A.'s - General,Bristol City Council - Schools,3356.33, 27-Mar-2019
331,Revenue,CAHD,Statemented Support Payments to OLAs,Other L.A.'s - General,Bristol City Council - Schools,907.16, 25-Mar-2019
332,Revenue,CAHD,Placements OLA Special Schools and RB,Other L.A.'s - General,Bristol City Council - Schools,2578.00, 27-Mar-2019
333,Revenue,CAHD,Placements OLA Special Schools and RB,Other L.A.'s - General,Bristol City Council - Schools,1381.00, 27-Mar-2019
334,Revenue,CAHD,Placements OLA Special Schools and RB,Other L.A.'s - General,Bristol City Council - Schools,2050.17, 27-Mar-2019
335,Revenue,CAHD,Placements OLA Special Schools and RB,Other L.A.'s - General,Bristol City Council - Schools,1381.00, 27-Mar-2019
336,Revenue,CAHD,Placements OLA Special Schools and RB,Other L.A.'s - General,Bristol City Council - Schools,2050.17, 27-Mar-2019
337,Revenue,CAHD,Placements OLA Special Schools and RB,Other L.A.'s - General,Bristol City Council - Schools,2578.00, 27-Mar-2019
338,Revenue,CAHD,Placements OLA Special Schools and RB,Other L.A.'s - General,Bristol City Council - Schools,4647.60, 27-Mar-2019
339,Revenue,CAHD,Placements OLA Special Schools and RB,Other L.A.'s - General,Bristol City Council - Schools,809.00, 27-Mar-2019
340,Revenue,CAHD,Placements OLA Special Schools and RB,Other L.A.'s - General,Bristol City Council - Schools,883.50, 27-Mar-2019
341,Revenue,CAHD,Placements OLA Special Schools and RB,Other L.A.'s - General,Bristol City Council - Schools,4107.54, 27-Mar-2019
342,Revenue,CAHD,Placements OLA Special Schools and RB,Other L.A.'s - General,Bristol City Council - Schools,777.50, 27-Mar-2019
343,Revenue,CAHD,Placements OLA Special Schools and RB,Other L.A.'s - General,Bristol City Council - Schools,1031.20, 27-Mar-2019
344,Revenue,CAHD,Placements OLA Special Schools and RB,Other L.A.'s - General,Bristol City Council - Schools,2578.00, 27-Mar-2019
345,Revenue,CAHD,Placements OLA Special Schools and RB,Other L.A.'s - General,Bristol City Council - Schools,809.00, 27-Mar-2019
346,Revenue,CAHD,Placements OLA Special Schools and RB,Other L.A.'s - General,Bristol City Council - Schools,2578.00, 27-Mar-2019
347,Revenue,CAHD,Placements OLA Special Schools and RB,Other L.A.'s - General,Bristol City Council - Schools,883.50, 27-Mar-2019
348,Revenue,CAHD,Placements OLA Special Schools and RB,Other L.A.'s - General,Bristol City Council - Schools,2062.40, 27-Mar-2019
349,Revenue,CAHD,Placements OLA Special Schools and RB,Other L.A.'s - General,Bristol City Council - Schools,2578.00, 27-Mar-2019
350,Revenue,CAHD,Placements OLA Special Schools and RB,Other L.A.'s - General,Bristol City Council - Schools,1305.58, 27-Mar-2019
351,Revenue,CAHD,Placements OLA Special Schools and RB,Other L.A.'s - General,Bristol City Council - Schools,883.50, 27-Mar-2019
352,Revenue,CAHD,Family and Young People Support North,Preventative Assistance,Bristol Clifton & West of England Zoological,450.00, 08-Mar-2019
353,Revenue,CAHD,CSC - Vinney Green Secure Unit,R & M by Departments,Bristol Electrical Wholesale Limited,474.30, 08-Mar-2019
354,Revenue,CAHD,CSC - Vinney Green Secure Unit,R & M by Departments,Bristol Electrical Wholesale Limited,856.07, 08-Mar-2019
355,Revenue,CAHD,Home Care - Elderly - South,Day Care / Social Activities,Bristol Houses UK Limited,724.80, 06-Mar-2019
356,Revenue,CAHD,Home Care - Elderly - South,Day Care / Social Activities,Bristol Houses UK Limited,724.80, 06-Mar-2019
357,Revenue,CAHD,Bed and Breakfast,Storage & Removal,Bristol Removals,550.00, 05-Mar-2019
358,Revenue,CAHD,SEN High Needs - Not at School Base,Other Private Contractors,Bristol Tuition Limited,532.00, 14-Mar-2019
359,Revenue,CAHD,Statemented Support Payments to OLAs,Other L.A.'s - General,Broadlands Academy,1331.66, 25-Mar-2019
360,Revenue,CAHD,South Glos Users in South Glos Homes,Permanent Nursing,Brunelcare,632.64, 13-Mar-2019
361,Revenue,CAHD,South Glos Users in South Glos Homes,Permanent Nursing,Brunelcare,632.64, 13-Mar-2019
362,Revenue,CAHD,South Glos Users in South Glos Homes,Permanent Nursing,Brunelcare,632.64, 13-Mar-2019
363,Revenue,CAHD,South Glos Users in South Glos Homes,Permanent Nursing,Brunelcare,632.64, 13-Mar-2019
364,Revenue,CAHD,South Glos Users in South Glos Homes,Permanent Nursing,Brunelcare,632.64, 13-Mar-2019
365,Revenue,CAHD,South Glos Users in South Glos Homes,Permanent Nursing,Brunelcare,632.64, 13-Mar-2019
366,Revenue,CAHD,South Glos Users in South Glos Homes,Permanent Nursing,Brunelcare,632.64, 13-Mar-2019
367,Revenue,CAHD,South Glos Users in South Glos Homes,Permanent Nursing,Brunelcare,632.64, 13-Mar-2019
368,Revenue,CAHD,South Glos Users in South Glos Homes,Permanent Nursing,Brunelcare,632.64, 13-Mar-2019
369,Revenue,CAHD,South Glos Users in South Glos Homes,Permanent Nursing,Brunelcare,632.64, 13-Mar-2019
370,Revenue,CAHD,South Glos Users in South Glos Homes,Permanent Nursing,Brunelcare,632.64, 13-Mar-2019
371,Revenue,CAHD,South Glos Users in South Glos Homes,Permanent Nursing,Brunelcare,632.64, 13-Mar-2019
372,Revenue,CAHD,South Glos Users in South Glos Homes,Permanent Nursing,Brunelcare,632.64, 13-Mar-2019
373,Revenue,CAHD,South Glos Users in South Glos Homes,Permanent Nursing,Brunelcare,632.64, 13-Mar-2019
374,Revenue,CAHD,South Glos Users in South Glos Homes,Permanent Nursing,Brunelcare,632.64, 13-Mar-2019
375,Revenue,CAHD,Bed purchasing - Elderly S117 - South,Permanent Nursing,Brunelcare,3236.36, 13-Mar-2019
376,Revenue,CAHD,Bed purchasing - Elderly S117 - South,Permanent Nursing,Brunelcare,3236.36, 13-Mar-2019
377,Revenue,CAHD,Bed Purchasing - Elderly S117- North,Permanent Nursing,Brunelcare,3236.36, 13-Mar-2019
378,Revenue,CAHD,Bed Purchasing - Elderly S117- North,Permanent Nursing,Brunelcare,3236.36, 13-Mar-2019
379,Revenue,CAHD,Bed Purchasing - South,Permanent Nursing,Brunelcare,2520.48, 13-Mar-2019
380,Revenue,CAHD,Bed Purchasing - South,Permanent Nursing,Brunelcare,2362.72, 13-Mar-2019
381,Revenue,CAHD,Bed Purchasing - South,Permanent Nursing,Brunelcare,2501.20, 13-Mar-2019
382,Revenue,CAHD,Bed Purchasing - South,Permanent Nursing,Brunelcare,2711.32, 13-Mar-2019
383,Revenue,CAHD,Bed Purchasing - South,Permanent Nursing,Brunelcare,2711.96, 13-Mar-2019
384,Revenue,CAHD,Bed Purchasing - South,Permanent Nursing,Brunelcare,2353.68, 13-Mar-2019
385,Revenue,CAHD,Bed Purchasing - South,Permanent Nursing,Brunelcare,2683.96, 13-Mar-2019
386,Revenue,CAHD,Bed Purchasing - South,Permanent Nursing,Brunelcare,2363.52, 13-Mar-2019
387,Revenue,CAHD,Enhanced Dementia Beds,Respite Planned - Nursing,Brunelcare,1107.43, 13-Mar-2019
388,Revenue,CAHD,Enhanced Dementia Beds,Respite Planned - Nursing,Brunelcare,2491.71, 13-Mar-2019
389,Revenue,CAHD,Enhanced Dementia Beds,Respite Planned - Nursing,Brunelcare,1170.00, 13-Mar-2019
390,Revenue,CAHD,Bed Purchasing - South,Respite Planned - Nursing,Brunelcare,809.09, 13-Mar-2019
391,Revenue,CAHD,Bed Purchasing - South,Respite Planned - Nursing,Brunelcare,2080.52, 13-Mar-2019
392,Revenue,CAHD,Bed Purchasing - North,Permanent Nursing,Brunelcare,2605.32, 13-Mar-2019
393,Revenue,CAHD,Bed Purchasing - North,Permanent Nursing,Brunelcare,2595.88, 13-Mar-2019
394,Revenue,CAHD,Bed Purchasing - North,Permanent Nursing,Brunelcare,3236.36, 13-Mar-2019
395,Revenue,CAHD,Enhanced Dementia Beds,Respite Planned - Nursing,Brunelcare,542.26, 13-Mar-2019
396,Revenue,CAHD,Pathway 2 - (Interim Beds),Permanent Nursing,Brunelcare,17686.00, 18-Mar-2019
397,Revenue,CAHD,Home Care - Elderly - South,Other Small Contracts,Brunelcare,25448.15, 14-Mar-2019
398,Revenue,CAHD,Home Care - Elderly - North,Other Small Contracts,Brunelcare,18.20, 14-Mar-2019
399,Revenue,CAHD,Home Care - Elderly - South,Other Small Contracts,Brunelcare,25379.90, 20-Mar-2019
400,Revenue,CAHD,Home Care - Elderly - North,Other Small Contracts,Brunelcare,18.20, 20-Mar-2019
401,Revenue,CAHD,Home Care - Elderly - South,Other Small Contracts,Brunelcare,26012.35, 25-Mar-2019
402,Revenue,CAHD,Home Care - Elderly - North,Other Small Contracts,Brunelcare,18.20, 25-Mar-2019
403,Revenue,CAHD,Home Care - Elderly - South,Other Small Contracts,Brunelcare,23869.30, 28-Mar-2019
404,Revenue,CAHD,Home Care - Elderly - North,Other Small Contracts,Brunelcare,18.20, 28-Mar-2019
405,Revenue,CAHD,Home Care - Elderly - South,Other Small Contracts,Brunelcare,25279.80, 29-Mar-2019
406,Revenue,CAHD,Home Care - Elderly - North,Other Small Contracts,Brunelcare,100.10, 29-Mar-2019
407,Revenue,CAHD,Early Years Inclusion Fund,Other Public Bodies,Buckingham Gardens Day Nursery,3600.00, 19-Mar-2019
408,Revenue,CAHD,SRRP,Other Public Bodies,Busy Bees Day Nursery,2250.00, 29-Mar-2019
409,Revenue,CAHD,Training - Adult Services,Training Expenses,BW Training & Coaching Ltd,900.00, 28-Mar-2019
410,Revenue,CAHD,CSC - Vinney Green Secure Unit,R & M by Departments,BWS Standfast Fire & Security Systems,3077.00, 22-Mar-2019
411,Revenue,CAHD,CSC - Vinney Green Secure Unit,R & M by Departments,BWS Standfast Fire & Security Systems,1486.00, 29-Mar-2019
412,Revenue,CAHD,CSC - Asylum Seekers - Unaccompanied,Foster Parent Allowances,By the Bridge Ltd,3996.00, 29-Mar-2019
413,Revenue,CAHD,Social Lettings Agency,Fees - General,Individual,16.16, 26-Mar-2019
414,Revenue,CAHD,Social Lettings Agency,Other Supplies & Services,Individual,710.96, 26-Mar-2019
415,Revenue,CAHD,Statemented Support Payments to OLAs,Other L.A.'s - General,Cabot Learning Federation,1543.91, 25-Mar-2019
416,Revenue,CAHD,Academy Resource Base Funding,Other Public Bodies,Cabot Learning Federation,1175.88, 22-Mar-2019
417,Revenue,CAHD,Academy Resource Base Funding,Other Public Bodies,Cabot Learning Federation,1175.88, 22-Mar-2019
418,Revenue,CAHD,Academy Resource Base Funding,Other Public Bodies,Cabot Learning Federation,1702.96, 22-Mar-2019
419,Revenue,CAHD,Academy Resource Base Funding,Other Public Bodies,Cabot Learning Federation,1540.83, 22-Mar-2019
420,Revenue,CAHD,Academy Resource Base Funding,Other Public Bodies,Cabot Learning Federation,1175.88, 22-Mar-2019
421,Revenue,CAHD,Academy Resource Base Funding,Other Public Bodies,Cabot Learning Federation,1540.83, 22-Mar-2019
422,Revenue,CAHD,Academy Resource Base Funding,Other Public Bodies,Cabot Learning Federation,1702.96, 22-Mar-2019
423,Revenue,CAHD,Academy Resource Base Funding,Other Public Bodies,Cabot Learning Federation,892.04, 22-Mar-2019
424,Revenue,CAHD,Academy Resource Base Funding,Other Public Bodies,Cabot Learning Federation,1702.96, 22-Mar-2019
425,Revenue,CAHD,Academy Resource Base Funding,Other Public Bodies,Cabot Learning Federation,1540.83, 22-Mar-2019
426,Revenue,CAHD,Academy Resource Base Funding,Other Public Bodies,Cabot Learning Federation,1175.88, 22-Mar-2019
427,Revenue,CAHD,Schools Specific Grant Income,Other Public Bodies,Cabot Learning Federation,630.00, 01-Mar-2019
428,Revenue,CAHD,Schools Specific Grant Income,Other Public Bodies,Cabot Learning Federation,700.00, 18-Mar-2019
429,Revenue,CAHD,Schools Specific Grant Income,Other Public Bodies,Cabot Learning Federation,630.00, 01-Mar-2019
430,Revenue,CAHD,Schools Specific Grant Income,Other Public Bodies,Cabot Learning Federation,630.00, 01-Mar-2019
431,Revenue,CAHD,Schools Specific Grant Income,Other Public Bodies,Cabot Learning Federation,630.00, 01-Mar-2019
432,Revenue,CAHD,Schools Specific Grant Income,Other Public Bodies,Cabot Learning Federation,630.00, 01-Mar-2019
433,Revenue,CAHD,Schools Specific Grant Income,Other Public Bodies,Cabot Learning Federation,1630.00, 01-Mar-2019
434,Revenue,CAHD,Schools Specific Grant Income,Other Public Bodies,Cabot Learning Federation,630.00, 01-Mar-2019
435,Revenue,CAHD,Schools Specific Grant Income,Other Public Bodies,Cabot Learning Federation,1630.00, 01-Mar-2019
436,Revenue,CAHD,Schools Specific Grant Income,Other Public Bodies,Cabot Learning Federation,630.00, 01-Mar-2019
437,Revenue,CAHD,Schools Specific Grant Income - from OLA,Other Public Bodies,Cabot Learning Federation,2700.00, 22-Mar-2019
438,Revenue,CAHD,Schools Specific Grant Income,Other Public Bodies,Cabot Learning Federation,630.00, 01-Mar-2019
439,Revenue,CAHD,Schools Specific Grant Income,Other Public Bodies,Cabot Learning Federation,630.00, 01-Mar-2019
440,Revenue,CAHD,Schools Specific Grant Income,Other Public Bodies,Cabot Learning Federation,630.00, 01-Mar-2019
441,Revenue,CAHD,Schools Specific Grant Income,Other Public Bodies,Cabot Learning Federation,935.00, 18-Mar-2019
442,Revenue,CAHD,SRRP,Other Public Bodies,Cabot Learning Federation,9000.00, 29-Mar-2019
443,Revenue,CAHD,Schools Specific Grant Income,Other Public Bodies,Cabot Learning Federation,630.00, 01-Mar-2019
444,Revenue,CAHD,Schools Specific Grant Income,Other Public Bodies,Cabot Learning Federation,6000.00, 01-Mar-2019
445,Revenue,CAHD,Schools Specific Grant Income - from OLA,Other Public Bodies,Cabot Learning Federation,2700.00, 22-Mar-2019
446,Revenue,CAHD,Statemented Support Payments to OLAs,Other L.A.'s - General,Cabot Learning Federation,518.03, 25-Mar-2019
447,Revenue,CAHD,Statemented Support Academies,Schools Funding,Cabot Learning Federation,753.87, 25-Mar-2019
448,Revenue,CAHD,Statemented Support Academies,Schools Funding,Cabot Learning Federation,659.53, 25-Mar-2019
449,Revenue,CAHD,Statemented Support Academies,Schools Funding,Cabot Learning Federation,694.91, 25-Mar-2019
450,Revenue,CAHD,Statemented Support Academies,Schools Funding,Cabot Learning Federation,706.70, 25-Mar-2019
451,Revenue,CAHD,Statemented Support Payments to OLAs,Other L.A.'s - General,Cabot Learning Federation,1013.28, 25-Mar-2019
452,Revenue,CAHD,Statemented Support Academies,Schools Funding,Cabot Learning Federation,518.03, 25-Mar-2019
453,Revenue,CAHD,Statemented Support Academies,Schools Funding,Cabot Learning Federation,836.41, 25-Mar-2019
454,Revenue,CAHD,Statemented Support Payments to OLAs,Other L.A.'s - General,Cabot Learning Federation,871.78, 25-Mar-2019
455,Revenue,CAHD,Statemented Support Academies,Schools Funding,Cabot Learning Federation,753.87, 25-Mar-2019
456,Revenue,CAHD,Statemented Support Academies,Schools Funding,Cabot Learning Federation,954.33, 25-Mar-2019
457,Revenue,CAHD,Statemented Support Academies,Schools Funding,Cabot Learning Federation,706.70, 25-Mar-2019
458,Revenue,CAHD,Statemented Support Academies,Schools Funding,Cabot Learning Federation,553.41, 25-Mar-2019
459,Revenue,CAHD,Statemented Support Academies,Schools Funding,Cabot Learning Federation,694.91, 25-Mar-2019
460,Revenue,CAHD,Statemented Support Academies,Schools Funding,Cabot Learning Federation,883.58, 25-Mar-2019
461,Revenue,CAHD,Statemented Support Academies,Schools Funding,Cabot Learning Federation,1084.03, 25-Mar-2019
462,Revenue,CAHD,Statemented Support Academies,Schools Funding,Cabot Learning Federation,954.33, 25-Mar-2019
463,Revenue,CAHD,Statemented Support Payments to OLAs,Other L.A.'s - General,Cabot Learning Federation,600.58, 25-Mar-2019
464,Revenue,CAHD,Statemented Support Academies,Schools Funding,Cabot Learning Federation,730.28, 25-Mar-2019
465,Revenue,CAHD,Statemented Support Academies,Schools Funding,Cabot Learning Federation,3770.13, 25-Mar-2019
466,Revenue,CAHD,Statemented Support Academies,Schools Funding,Cabot Learning Federation,859.99, 25-Mar-2019
467,Revenue,CAHD,Statemented Support Academies,Schools Funding,Cabot Learning Federation,600.58, 25-Mar-2019
468,Revenue,CAHD,Statemented Support Academies,Schools Funding,Cabot Learning Federation,871.78, 25-Mar-2019
469,Revenue,CAHD,Statemented Support Academies,Schools Funding,Cabot Learning Federation,1048.66, 25-Mar-2019
470,Revenue,CAHD,Statemented Support Academies,Schools Funding,Cabot Learning Federation,812.83, 25-Mar-2019
471,Revenue,CAHD,Statemented Support Academies,Schools Funding,Cabot Learning Federation,883.58, 25-Mar-2019
472,Revenue,CAHD,Statemented Support Academies,Schools Funding,Cabot Learning Federation,506.24, 25-Mar-2019
473,Revenue,CAHD,Statemented Support Academies,Schools Funding,Cabot Learning Federation,1048.66, 25-Mar-2019
474,Revenue,CAHD,Statemented Support Payments to OLAs,Other L.A.'s - General,Cabot Learning Federation,600.58, 25-Mar-2019
475,Revenue,CAHD,Statemented Support Payments to OLAs,Other L.A.'s - General,Cabot Learning Federation,1072.24, 25-Mar-2019
476,Revenue,CAHD,Statemented Support Payments to OLAs,Other L.A.'s - General,Cabot Learning Federation,588.78, 25-Mar-2019
477,Revenue,CAHD,Statemented Support Academies,Schools Funding,Cabot Learning Federation,918.95, 25-Mar-2019
478,Revenue,CAHD,SRRP,Other Public Bodies,Cabot Learning Federation,4500.00, 29-Mar-2019
479,Revenue,CAHD,CSC - YOT Pooled Budget,Software Support & Maintenance,CACI Limited,7802.83, 22-Mar-2019
480,Revenue,CAHD,NHS Health Checks,Other Small Contracts,Cadbury Heath Healthcare,1035.00, 01-Mar-2019
481,Revenue,CAHD,Sexual Health,Other Small Contracts,Cadbury Heath Healthcare,1529.50, 20-Mar-2019
482,Revenue,CAHD,Sexual Health,Other Small Contracts,Cadbury Heath Healthcare,1878.90, 20-Mar-2019
483,Revenue,CAHD,Early Years High Needs Support,Other Private Contractors,Caerleon Childcare,515.74, 25-Mar-2019
484,Revenue,CAHD,Schools Specific Grant Income,Other Public Bodies,Caerphilly County Borough Council,1630.00, 28-Mar-2019
485,Revenue,CAHD,CSC - Residential Placements,Permanent Residential,Cambian Childcare Ltd,18642.94, 21-Mar-2019
486,Revenue,CAHD,CSC - Residential Placements,Permanent Residential,Cambian Childcare Ltd,18000.08, 21-Mar-2019
487,Revenue,CAHD,CSC - Residential Placements,Permanent Residential,Cambian Childcare Ltd,19928.66, 21-Mar-2019
488,Revenue,CAHD,Post 16 High Needs Placements,Other Private Contractors,Cambian Whinfell School Limited,35371.57, 26-Mar-2019
489,Revenue,CAHD,Post 16 High Needs Placements,Other Private Contractors,Cambian Whinfell School Limited,21576.06, 26-Mar-2019
490,Revenue,CAHD,Post 16 High Needs Placements,Other Private Contractors,Cambian Whinfell School Limited,27833.33, 26-Mar-2019
491,Revenue,CAHD,Post 16 High Needs Placements,Other Private Contractors,Cambian Whinfell School Limited,24081.16, 26-Mar-2019
492,Revenue,CAHD,Cambrian Green Day Service,Catering,Cambrian Court Dining,506.00, 12-Mar-2019
493,Revenue,CAHD,Cambrian Green Day Service,Catering,Cambrian Court Dining,621.50, 08-Mar-2019
494,Revenue,CAHD,Cambrian Green Day Service,Catering,Cambrian Court Dining,550.00, 19-Mar-2019
495,Revenue,CAHD,Cambrian Green Day Service,Catering,Cambrian Court Dining,561.00, 08-Mar-2019
496,Revenue,CAHD,Cambrian Green Day Service,Catering,Cambrian Court Dining,544.50, 26-Mar-2019
497,Revenue,CAHD,Cambrian Green Day Service,Catering,Cambrian Court Dining,572.00, 08-Mar-2019
498,Revenue,CAHD,CSC - Vinney Green Secure Unit,R & M by Departments,Cambridge Skip Hire,440.00, 22-Mar-2019
499,Revenue,CAHD,Home Care - Elderly - North,Day Care / Social Activities,Camphill Communities Thornbury Limited,1003.34, 08-Mar-2019
500,Revenue,CAHD,Home Care - Elderly - North,Other Small Contracts,Camphill Communities Thornbury Limited,163.44, 08-Mar-2019
501,Revenue,CAHD,Home Care - Elderly - North,Supported Living,Camphill Communities Thornbury Limited,989.72, 08-Mar-2019
502,Revenue,CAHD,Home Care - Elderly - North,Day Care / Social Activities,Camphill Communities Thornbury Limited,1057.82, 19-Mar-2019
503,Revenue,CAHD,Home Care - Elderly - North,Other Small Contracts,Camphill Communities Thornbury Limited,167.98, 19-Mar-2019
504,Revenue,CAHD,Home Care - Elderly - North,Supported Living,Camphill Communities Thornbury Limited,1021.50, 19-Mar-2019
505,Revenue,CAHD,Home Care - Elderly - North,Day Care / Social Activities,Camphill Communities Thornbury Limited,948.86, 21-Mar-2019
506,Revenue,CAHD,Home Care - Elderly - North,Other Small Contracts,Camphill Communities Thornbury Limited,163.44, 21-Mar-2019
507,Revenue,CAHD,Home Care - Elderly - North,Supported Living,Camphill Communities Thornbury Limited,889.84, 21-Mar-2019
508,Revenue,CAHD,Home Care - Elderly - North,Day Care / Social Activities,Camphill Communities Thornbury Limited,908.00, 21-Mar-2019
509,Revenue,CAHD,Home Care - Elderly - North,Other Small Contracts,Camphill Communities Thornbury Limited,163.44, 21-Mar-2019
510,Revenue,CAHD,Home Care - Elderly - North,Supported Living,Camphill Communities Thornbury Limited,844.44, 21-Mar-2019
511,Revenue,CAHD,Home Care - Elderly - North,Day Care / Social Activities,Camphill Communities Thornbury Limited,908.00, 21-Mar-2019
512,Revenue,CAHD,Home Care - Elderly - North,Other Small Contracts,Camphill Communities Thornbury Limited,163.44, 21-Mar-2019
513,Revenue,CAHD,Home Care - Elderly - North,Supported Living,Camphill Communities Thornbury Limited,1016.96, 21-Mar-2019
514,Revenue,CAHD,Bed Purchasing - Elderly S117- North,Permanent Residential,Canjayor,2468.44, 12-Mar-2019
515,Revenue,CAHD,Homecare - Central,Other Small Contracts,Care 1st Homecare,2862.72, 11-Mar-2019
516,Revenue,CAHD,Homecare - Central,Other Small Contracts,Care 1st Homecare,2871.24, 11-Mar-2019
517,Revenue,CAHD,Homecare - Central,Other Small Contracts,Care 1st Homecare,2862.72, 11-Mar-2019
518,Revenue,CAHD,Homecare - Central,Other Small Contracts,Care 1st Homecare,2862.72, 11-Mar-2019
519,Revenue,CAHD,Homecare - Central,Other Small Contracts,Care 1st Homecare,2862.72, 11-Mar-2019
520,Revenue,CAHD,Homecare - Central,Other Small Contracts,Care 1st Homecare,2858.46, 28-Mar-2019
521,Revenue,CAHD,Homecare - Central,Other Small Contracts,Care 1st Homecare,2862.72, 28-Mar-2019
522,Revenue,CAHD,18-25 Year Olds,Other Small Contracts,Care Horizons Limited,56.52, 06-Mar-2019
523,Revenue,CAHD,Homecare - Central,Other Small Contracts,Care Horizons Limited,640.56, 06-Mar-2019
524,Revenue,CAHD,Home Care - Elderly - South,Other Small Contracts,Care Horizons Limited,235.50, 06-Mar-2019
525,Revenue,CAHD,Home Care - Elderly - North,Day Care / Social Activities,Care Horizons Limited,348.54, 06-Mar-2019
526,Revenue,CAHD,Home Care - Elderly - North,Other Small Contracts,Care Horizons Limited,131.88, 06-Mar-2019
527,Revenue,CAHD,Younger MH non-res purchasing,Other Small Contracts,Care Horizons Limited,310.86, 06-Mar-2019
528,Revenue,CAHD,Homecare - Central,Other Small Contracts,Care Horizons Limited,852.51, 11-Mar-2019
529,Revenue,CAHD,Home Care - Elderly - South,Other Small Contracts,Care Horizons Limited,240.21, 11-Mar-2019
530,Revenue,CAHD,Home Care - Elderly - North,Day Care / Social Activities,Care Horizons Limited,343.83, 11-Mar-2019
531,Revenue,CAHD,Home Care - Elderly - North,Other Small Contracts,Care Horizons Limited,131.88, 11-Mar-2019
532,Revenue,CAHD,Younger MH non-res purchasing,Other Small Contracts,Care Horizons Limited,292.02, 11-Mar-2019
533,Revenue,CAHD,Homecare - Central,Other Small Contracts,Care Horizons Limited,847.80, 19-Mar-2019
534,Revenue,CAHD,Home Care - Elderly - South,Other Small Contracts,Care Horizons Limited,230.79, 19-Mar-2019
535,Revenue,CAHD,Home Care - Elderly - North,Day Care / Social Activities,Care Horizons Limited,372.09, 19-Mar-2019
536,Revenue,CAHD,Home Care - Elderly - North,Other Small Contracts,Care Horizons Limited,56.52, 19-Mar-2019
537,Revenue,CAHD,Younger MH non-res purchasing,Other Small Contracts,Care Horizons Limited,244.92, 19-Mar-2019
538,Revenue,CAHD,Homecare - Central,Other Small Contracts,Care Horizons Limited,871.35, 28-Mar-2019
539,Revenue,CAHD,Home Care - Elderly - South,Other Small Contracts,Care Horizons Limited,249.63, 28-Mar-2019
540,Revenue,CAHD,Home Care - Elderly - North,Day Care / Social Activities,Care Horizons Limited,376.80, 28-Mar-2019
541,Revenue,CAHD,Home Care - Elderly - North,Other Small Contracts,Care Horizons Limited,131.88, 28-Mar-2019
542,Revenue,CAHD,Younger MH non-res purchasing,Other Small Contracts,Care Horizons Limited,240.21, 28-Mar-2019
543,Revenue,CAHD,General EPH budgets,Other Supplies & Services,Care Quality Commission,8123.00, 22-Mar-2019
544,Revenue,CAHD,Home Care - Elderly - South,Other Small Contracts,Caring Comes 1st Limited,1077.12, 22-Mar-2019
545,Revenue,CAHD,Home Care - Elderly - South,Other Small Contracts,Caring Comes 1st Limited,628.32, 22-Mar-2019
546,Revenue,CAHD,Home Care - Elderly - South,Other Small Contracts,Caring Comes 1st Limited,734.91, 22-Mar-2019
547,Revenue,CAHD,Home Care - Elderly - South,Other Small Contracts,Caring Comes 1st Limited,1099.56, 22-Mar-2019
548,Revenue,CAHD,Home Care - Elderly - South,Other Small Contracts,Caring Comes 1st Limited,1245.42, 22-Mar-2019
549,Revenue,CAHD,Home Care - Elderly - South,Other Small Contracts,Caring Comes 1st Limited,2827.44, 06-Mar-2019
550,Revenue,CAHD,Home Care - Elderly - South,Other Small Contracts,Caring Comes 1st Limited,1267.86, 06-Mar-2019
551,Revenue,CAHD,CSC - Vinney Green Secure Unit,R & M by Departments,Carlton Services UK Limited,1409.00, 11-Mar-2019
552,Revenue,CAHD,CSC - Adoption Support Fund,Post Adoption,Carly Kingswood,1000.00, 08-Mar-2019
553,Revenue,CAHD,Homecare - Central,Supported Living,Cartrefi Cymru Co Operative,1309.04, 11-Mar-2019
554,Revenue,CAHD,Statemented Support Academies,Schools Funding,Castle School Education Trust,659.53, 25-Mar-2019
555,Revenue,CAHD,Statemented Support Academies,Schools Funding,Castle School Education Trust,565.20, 25-Mar-2019
556,Revenue,CAHD,Statemented Support Academies,Schools Funding,Castle School Education Trust,635.95, 25-Mar-2019
557,Revenue,CAHD,Statemented Support Academies,Schools Funding,Castle School Education Trust,706.70, 25-Mar-2019
558,Revenue,CAHD,Statemented Support Academies,Schools Funding,Castle School Education Trust,918.95, 25-Mar-2019
559,Revenue,CAHD,Statemented Support Academies,Schools Funding,Castle School Education Trust,1072.24, 25-Mar-2019
560,Revenue,CAHD,Statemented Support Academies,Schools Funding,Castle School Education Trust,683.12, 25-Mar-2019
561,Revenue,CAHD,Statemented Support Academies,Schools Funding,Castle School Education Trust,812.83, 25-Mar-2019
562,Revenue,CAHD,Statemented Support Academies,Schools Funding,Castle School Education Trust,1001.49, 25-Mar-2019
563,Revenue,CAHD,Statemented Support Academies,Schools Funding,Castle School Education Trust,1602.87, 25-Mar-2019
564,Revenue,CAHD,Statemented Support Academies,Schools Funding,Castle School Education Trust,1001.49, 25-Mar-2019
565,Revenue,CAHD,Statemented Support Academies,Schools Funding,Castle School Education Trust,1142.99, 25-Mar-2019
566,Revenue,CAHD,Statemented Support Academies,Schools Funding,Castle School Education Trust,1260.91, 25-Mar-2019
567,Revenue,CAHD,Statemented Support Academies,Schools Funding,Castle School Education Trust,647.74, 25-Mar-2019
568,Revenue,CAHD,Statemented Support Academies,Schools Funding,Castle School Education Trust,506.24, 25-Mar-2019
569,Revenue,CAHD,Statemented Support Academies,Schools Funding,Castle School Education Trust,730.28, 25-Mar-2019
570,Revenue,CAHD,Statemented Support Academies,Schools Funding,Castle School Education Trust,541.62, 25-Mar-2019
571,Revenue,CAHD,Statemented Support Academies,Schools Funding,Castle School Education Trust,1095.83, 25-Mar-2019
572,Revenue,CAHD,Statemented Support Academies,Schools Funding,Castle School Education Trust,718.49, 25-Mar-2019
573,Revenue,CAHD,Statemented Support Academies,Schools Funding,Castle School Education Trust,765.66, 25-Mar-2019
574,Revenue,CAHD,Statemented Support Academies,Schools Funding,Castle School Education Trust,966.12, 25-Mar-2019
575,Revenue,CAHD,Statemented Support Academies,Schools Funding,Castle School Education Trust,848.20, 25-Mar-2019
576,Revenue,CAHD,Statemented Support Academies,Schools Funding,Castle School Education Trust,989.70, 25-Mar-2019
577,Revenue,CAHD,Statemented Support Academies,Schools Funding,Castle School Education Trust,1378.83, 25-Mar-2019
578,Revenue,CAHD,Statemented Support Academies,Schools Funding,Castle School Education Trust,1201.95, 25-Mar-2019
579,Revenue,CAHD,Statemented Support Academies,Schools Funding,Castle School Education Trust,659.53, 25-Mar-2019
580,Revenue,CAHD,Statemented Support Academies,Schools Funding,Castle School Education Trust,718.49, 25-Mar-2019
581,Revenue,CAHD,Statemented Support Academies,Schools Funding,Castle School Education Trust,1284.49, 25-Mar-2019
582,Revenue,CAHD,Schools Specific Grant Income,Other Public Bodies,Castle School Education Trust,630.00, 01-Mar-2019
583,Revenue,CAHD,Schools Specific Grant Income,Other Public Bodies,Castle School Education Trust,630.00, 01-Mar-2019
584,Revenue,CAHD,Schools Specific Grant Income,Other Public Bodies,Castle School Education Trust,1630.00, 01-Mar-2019
585,Revenue,CAHD,Schools Specific Grant Income,Other Public Bodies,Castle School Education Trust,630.00, 01-Mar-2019
586,Revenue,CAHD,Schools Specific Grant Income,Other Public Bodies,Castle School Education Trust,630.00, 01-Mar-2019
587,Revenue,CAHD,Schools Specific Grant Income,Other Public Bodies,Castle School Education Trust,630.00, 01-Mar-2019
588,Revenue,CAHD,Schools Specific Grant Income,Other Public Bodies,Castle School Education Trust,630.00, 01-Mar-2019
589,Revenue,CAHD,Schools Specific Grant Income,Other Public Bodies,Castle School Education Trust,630.00, 01-Mar-2019
590,Revenue,CAHD,Schools Specific Grant Income,Other Public Bodies,Castle School Education Trust,935.00, 18-Mar-2019
591,Revenue,CAHD,Schools Specific Grant Income - from OLA,Other Public Bodies,Castle School Education Trust,900.00, 22-Mar-2019
592,Revenue,CAHD,Academy Resource Base Funding,Other Public Bodies,Castle School Education Trust,1702.96, 22-Mar-2019
593,Revenue,CAHD,Academy Resource Base Funding,Other Public Bodies,Castle School Education Trust,9943.10, 22-Mar-2019
594,Revenue,CAHD,Academy Resource Base Funding,Other Public Bodies,Castle School Education Trust,1702.96, 22-Mar-2019
595,Revenue,CAHD,Academy Resource Base Funding,Other Public Bodies,Castle School Education Trust,1702.96, 22-Mar-2019
596,Revenue,CAHD,Academy Resource Base Funding,Other Public Bodies,Castle School Education Trust,1702.96, 22-Mar-2019
597,Revenue,CAHD,Academy Resource Base Funding,Other Public Bodies,Castle School Education Trust,3077.50, 22-Mar-2019
598,Revenue,CAHD,Academy Resource Base Funding,Other Public Bodies,Castle School Education Trust,1702.96, 22-Mar-2019
599,Revenue,CAHD,Academy Resource Base Funding,Other Public Bodies,Castle School Education Trust,1702.96, 22-Mar-2019
600,Revenue,CAHD,Academy Resource Base Funding,Other Public Bodies,Castle School Education Trust,2189.53, 22-Mar-2019
601,Revenue,CAHD,Academy Resource Base Funding,Other Public Bodies,Castle School Education Trust,1702.96, 22-Mar-2019
602,Revenue,CAHD,Schools Specific Grant Income - from OLA,Other Public Bodies,Castle School Education Trust,900.00, 22-Mar-2019
603,Revenue,CAHD,Schools Specific Grant Income - from OLA,Other Public Bodies,Castle School Education Trust,17411.82, 22-Mar-2019
604,Revenue,CAHD,Schools Specific Grant Income,Other Public Bodies,Castle School Education Trust,630.00, 01-Mar-2019
605,Revenue,CAHD,Schools Specific Grant Income,Other Public Bodies,Castle School Education Trust,630.00, 18-Mar-2019
606,Revenue,CAHD,Statemented Support Academies,Schools Funding,Castle School Education Trust,612.37, 25-Mar-2019
607,Revenue,CAHD,Statemented Support Academies,Schools Funding,Castle School Education Trust,1626.45, 25-Mar-2019
608,Revenue,CAHD,Schools Specific Grant Income,Other Public Bodies,Castle School Education Trust,5000.00, 01-Mar-2019
609,Revenue,CAHD,Statemented Support Academies,Other Public Bodies,Castle School Education Trust,29811.25, 01-Mar-2019
610,Revenue,CAHD,Statemented Support Academies,Other Public Bodies,Castle School Education Trust,1897.00, 01-Mar-2019
611,Revenue,CAHD,Statemented Support Academies,Schools Funding,Castle School Education Trust,812.83, 25-Mar-2019
612,Revenue,CAHD,Statemented Support Academies,Schools Funding,Castle School Education Trust,1013.28, 25-Mar-2019
613,Revenue,CAHD,Statemented Support Academies,Schools Funding,Castle School Education Trust,989.70, 25-Mar-2019
614,Revenue,CAHD,Statemented Support Academies,Schools Funding,Castle School Education Trust,1048.66, 25-Mar-2019
615,Revenue,CAHD,Statemented Support Academies,Schools Funding,Castle School Education Trust,1331.66, 25-Mar-2019
616,Revenue,CAHD,Statemented Support Academies,Schools Funding,Castle School Education Trust,1697.20, 25-Mar-2019
617,Revenue,CAHD,Statemented Support Academies,Schools Funding,Castle School Education Trust,1166.58, 25-Mar-2019
618,Revenue,CAHD,Statemented Support Academies,Schools Funding,Castle School Education Trust,1614.66, 25-Mar-2019
619,Revenue,CAHD,Statemented Support Academies,Schools Funding,Castle School Education Trust,918.95, 25-Mar-2019
620,Revenue,CAHD,Social Lettings Agency,Fees - General,Individual,10.53, 01-Mar-2019
621,Revenue,CAHD,Social Lettings Agency,Fees & Charges Income - General,Individual,595.11, 01-Mar-2019
622,Revenue,CAHD,CSC - Special Guardianship Orders,Personal Needs of Clients,Individual,500.00, 29-Mar-2019
623,Revenue,CAHD,Home Care - Elderly - North,Day Care / Social Activities,Causeway House,1389.44, 12-Mar-2019
624,Revenue,CAHD,Homecare - Central,Day Care / Social Activities,Causeway House,1110.24, 12-Mar-2019
625,Revenue,CAHD,Home Care - Elderly - South,Day Care / Social Activities,Causeway House,5130.52, 12-Mar-2019
626,Revenue,CAHD,18-25 Year Olds,Day Care / Social Activities,Causeway House,4311.60, 12-Mar-2019
627,Revenue,CAHD,Homecare - Central,Day Care / Social Activities,Causeway House,2775.60, 12-Mar-2019
628,Revenue,CAHD,Homecare - Central,Day Care / Social Activities,Causeway House,1665.36, 12-Mar-2019
629,Revenue,CAHD,Home Care - Elderly - North,Day Care / Social Activities,Causeway House,3150.88, 12-Mar-2019
630,Revenue,CAHD,Home Care - Elderly - North,Day Care / Social Activities,Causeway House,4694.24, 12-Mar-2019
631,Revenue,CAHD,Homecare - Central,Day Care / Social Activities,Causeway House,2775.60, 12-Mar-2019
632,Revenue,CAHD,Home Care - Elderly - North,Day Care / Social Activities,Causeway House,3075.56, 12-Mar-2019
633,Revenue,CAHD,Home Care - Elderly - North,Day Care / Social Activities,Causeway House,555.12, 12-Mar-2019
634,Revenue,CAHD,Bed Purchasing - South,Permanent Nursing,Cedar Care Homes Limited,3023.36, 12-Mar-2019
635,Revenue,CAHD,Training - Adult Services,Training Expenses,Central Consultancy & Training,3887.50, 08-Mar-2019
636,Revenue,CAHD,Bed Purchasing - South,Permanent Residential,Challenge House,2768.00, 12-Mar-2019
637,Revenue,CAHD,Bed Purchasing - Elderly S117- North,Permanent Residential,Challenge House,2511.12, 12-Mar-2019
638,Revenue,CAHD,Bed Purchasing - North,Permanent Residential,Challenge House,2180.68, 12-Mar-2019
639,Revenue,CAHD,Bed Purchasing - North,Permanent Residential,Challenge House,2315.16, 12-Mar-2019
640,Revenue,CAHD,Bed Purchasing - Central,Permanent Residential,Challenge House,2308.00, 12-Mar-2019
641,Revenue,CAHD,Bed Purchasing - Central,Permanent Residential,Challenge House,1401.29, 12-Mar-2019
642,Revenue,CAHD,Bed Purchasing - South,Respite Planned - Residential,Challenge House,692.40, 12-Mar-2019
643,Revenue,CAHD,Bed Purchasing - North,Permanent Nursing,Challenge House,3057.00, 12-Mar-2019
644,Revenue,CAHD,Bed Purchasing - Southmead Hospital,Respite Emergency - Nursing,Challenge House,3428.57, 12-Mar-2019
645,Revenue,CAHD,Bed Purchasing - Elderly S117- North,Permanent Nursing,Challenge House,2339.64, 12-Mar-2019
646,Revenue,CAHD,Bed Purchasing - North,Permanent Residential,Challenge House,2343.72, 12-Mar-2019
647,Revenue,CAHD,Bed Purchasing - North,Permanent Residential,Challenge House,2683.84, 12-Mar-2019
648,Revenue,CAHD,Bed Purchasing - North,Permanent Nursing,Challenge House,2511.12, 12-Mar-2019
649,Revenue,CAHD,Bed Purchasing - North,Permanent Nursing,Challenge House,2339.64, 12-Mar-2019
650,Revenue,CAHD,Bed Purchasing - North,Permanent Nursing,Challenge House,3057.00, 12-Mar-2019
651,Revenue,CAHD,Bed Purchasing - Central,Permanent Residential,Challenge House,3000.00, 12-Mar-2019
652,Revenue,CAHD,CSC - Vinney Green Secure Unit,External Lecturers Fees,Changing Tunes,600.00, 01-Mar-2019
653,Revenue,CAHD,EARLY YEARS DEPRIVATION PAYMENT,Preventative Assistance,Charfield Pre-School,980.03, 05-Mar-2019
654,Revenue,CAHD,Early Years Inclusion Fund,Other Public Bodies,Charfield Pre-School,1500.00, 21-Mar-2019
655,Revenue,CAHD,Early Years Pupil Premium Grant,Preventative Assistance,Charfield Pre-School,572.40, 05-Mar-2019
656,Revenue,CAHD,Bed Purchasing - South,Permanent Nursing,Charnwood House Nursing Home,9835.60, 12-Mar-2019
657,Revenue,CAHD,CSC - Vinney Green Secure Unit,R & M by Departments,Cheltenham Mowers Limited,802.53, 22-Mar-2019
658,Revenue,CAHD,Homecare - Central,Other Small Contracts,Cherish Able Care Limited,1610.62, 01-Mar-2019
659,Revenue,CAHD,Home Care - Elderly - South,Other Small Contracts,Cherish Able Care Limited,5431.06, 01-Mar-2019
660,Revenue,CAHD,Home Care - Elderly - North,Other Small Contracts,Cherish Able Care Limited,479.85, 01-Mar-2019
661,Revenue,CAHD,Homecare - Central,Other Small Contracts,Cherish Able Care Limited,1551.62, 11-Mar-2019
662,Revenue,CAHD,Home Care - Elderly - South,Other Small Contracts,Cherish Able Care Limited,5442.59, 11-Mar-2019
663,Revenue,CAHD,Home Care - Elderly - North,Other Small Contracts,Cherish Able Care Limited,479.85, 11-Mar-2019
664,Revenue,CAHD,Homecare - Central,Other Small Contracts,Cherish Able Care Limited,1556.71, 19-Mar-2019
665,Revenue,CAHD,Home Care - Elderly - South,Other Small Contracts,Cherish Able Care Limited,5621.95, 19-Mar-2019
666,Revenue,CAHD,Home Care - Elderly - North,Other Small Contracts,Cherish Able Care Limited,1009.97, 19-Mar-2019
667,Revenue,CAHD,Homecare - Central,Other Small Contracts,Cherish Able Care Limited,1561.80, 19-Mar-2019
668,Revenue,CAHD,Home Care - Elderly - South,Other Small Contracts,Cherish Able Care Limited,5530.55, 19-Mar-2019
669,Revenue,CAHD,Home Care - Elderly - North,Other Small Contracts,Cherish Able Care Limited,1366.43, 19-Mar-2019
670,Revenue,CAHD,Home Care - Elderly - South,Supported Living,Cherry Orchards,2503.20, 12-Mar-2019
671,Revenue,CAHD,Home Care - Elderly - South,Supported Living,Cherry Orchards,2503.20, 12-Mar-2019
672,Revenue,CAHD,Home Care - Elderly - South,Supported Living,Cherry Orchards,2503.20, 12-Mar-2019
673,Revenue,CAHD,Home Care - Elderly - South,Supported Living,Cherry Orchards,2503.20, 12-Mar-2019
674,Revenue,CAHD,Home Care - Elderly - South,Supported Living,Cherry Orchards,2503.20, 12-Mar-2019
675,Revenue,CAHD,Home Care - Elderly - South,Supported Living,Cherry Orchards,2503.20, 11-Mar-2019
676,Revenue,CAHD,Home Care - Elderly - South,Supported Living,Cherry Orchards,2503.20, 05-Mar-2019
677,Revenue,CAHD,18-25 Year Olds,Other Small Contracts,Cherry Orchards,4505.76, 11-Mar-2019
678,Revenue,CAHD,18-25 Year Olds,Other Small Contracts,Cherry Orchards,5006.40, 06-Mar-2019
679,Revenue,CAHD,18-25 Year Olds,Other Small Contracts,Cherry Orchards,5918.28, 06-Mar-2019
680,Revenue,CAHD,18-25 Year Olds,Other Small Contracts,Cherry Orchards,6007.68, 06-Mar-2019
681,Revenue,CAHD,18-25 Year Olds,Other Small Contracts,Cherry Orchards,6007.68, 06-Mar-2019
682,Revenue,CAHD,Bed purchasing - S28A Under 65 - South,Permanent Residential,Chescombe Lodge,9535.60, 12-Mar-2019
683,Revenue,CAHD,Training Budget - Children`s Social Serv,Training Expenses,Child Bereavement UK,896.30, 01-Mar-2019
684,Revenue,CAHD,CSC - Agency Fostering,Foster Parent Allowances,Child Care Bureau Limited,3928.01, 28-Mar-2019
685,Revenue,CAHD,CSC - LAC Placements,"Holidays, Outings & Visits",Childrens Contact Services Ltd,5319.52, 12-Mar-2019
686,Revenue,CAHD,CSC - Section 17 - ART,Other Supplies & Services,Childrens Contact Services Ltd,5319.52, 12-Mar-2019
687,Revenue,CAHD,EARLY YEARS DEPRIVATION PAYMENT,Preventative Assistance,Chipping Sodbury Pre School,642.46, 05-Mar-2019
688,Revenue,CAHD,Early Years Inclusion Fund,Other Public Bodies,Christchurch Pre School,834.00, 06-Mar-2019
689,Revenue,CAHD,SRRP,Other Public Bodies,Christchurch Pre School,2250.00, 29-Mar-2019
690,Revenue,CAHD,Early Years Development,External Lecturers Fees,Church Park Consultants,712.33, 11-Mar-2019
691,Revenue,CAHD,18-25 Year Olds,Other Small Contracts,Cintre,104.72, 01-Mar-2019
692,Revenue,CAHD,Homecare - Central,Other Small Contracts,Cintre,342.72, 01-Mar-2019
693,Revenue,CAHD,Home Care - Elderly - South,Other Small Contracts,Cintre,932.96, 01-Mar-2019
694,Revenue,CAHD,18-25 Year Olds,Other Small Contracts,Cintre,104.72, 06-Mar-2019
695,Revenue,CAHD,Homecare - Central,Other Small Contracts,Cintre,257.04, 06-Mar-2019
696,Revenue,CAHD,Home Care - Elderly - South,Other Small Contracts,Cintre,1034.91, 06-Mar-2019
697,Revenue,CAHD,18-25 Year Olds,Other Small Contracts,Cintre,99.96, 19-Mar-2019
698,Revenue,CAHD,Homecare - Central,Other Small Contracts,Cintre,290.36, 19-Mar-2019
699,Revenue,CAHD,Home Care - Elderly - South,Other Small Contracts,Cintre,904.40, 19-Mar-2019
700,Revenue,CAHD,18-25 Year Olds,Other Small Contracts,Cintre,95.20, 28-Mar-2019
701,Revenue,CAHD,Homecare - Central,Other Small Contracts,Cintre,376.04, 28-Mar-2019
702,Revenue,CAHD,Home Care - Elderly - South,Other Small Contracts,Cintre,666.40, 28-Mar-2019
703,Revenue,CAHD,Learning Difficulties,Premises Hire,Circadian Trust,780.00, 06-Mar-2019
704,Revenue,CAHD,Learning Difficulties,Premises Hire,Circadian Trust,715.00, 22-Mar-2019
705,Revenue,CAHD,CSC - Care Leavers Independent Living,Independent Living,City Of Bristol,3978.06, 15-Mar-2019
706,Revenue,CAHD,Post 16 High Needs Placements,Other Private Contractors,City of Bristol College,199443.31, 13-Mar-2019
707,Revenue,CAHD,Flexible Homelessness Support Grant,Fees - General,Civica UK Limited,5250.00, 15-Mar-2019
708,Revenue,CAHD,MH Purchasing - Younger,Permanent Residential,Claro Homes,2803.60, 12-Mar-2019
709,Revenue,CAHD,Section 117 Placements MH Younger,Permanent Residential,Claro Homes,3471.28, 12-Mar-2019
710,Revenue,CAHD,Bed Purchasing - North,Permanent Nursing,Claro Homes,3240.44, 12-Mar-2019
711,Revenue,CAHD,Bed Purchasing - South,Permanent Residential,Cleeve Lodge,3600.00, 12-Mar-2019
712,Revenue,CAHD,Bed Purchasing - South,Permanent Residential,Cleeve Lodge,3600.00, 12-Mar-2019
713,Revenue,CAHD,Bed Purchasing - South,Permanent Residential,Cleeve Lodge,1277.76, 12-Mar-2019
714,Revenue,CAHD,Bed Purchasing - South,Permanent Residential,Cleeve Lodge,2853.20, 12-Mar-2019
715,Revenue,CAHD,Bed Purchasing - South,Permanent Residential,Cleeve Lodge,3014.16, 12-Mar-2019
716,Revenue,CAHD,Bed Purchasing - South,Permanent Residential,Cleeve Lodge,2787.08, 12-Mar-2019
717,Revenue,CAHD,Bed Purchasing - South,Permanent Residential,Cleeve Lodge,2573.84, 12-Mar-2019
718,Revenue,CAHD,Sexual Health,Other Small Contracts,Close Farm Surgery,763.94, 20-Mar-2019
719,Revenue,CAHD,Home Care - Elderly - North,Other Small Contracts,Clover Health and Home Care Ltd,1885.52, 01-Mar-2019
720,Revenue,CAHD,Home Care - Elderly - North,Other Small Contracts,Clover Health and Home Care Ltd,1885.52, 19-Mar-2019
721,Revenue,CAHD,Home Care - Elderly - North,Other Small Contracts,Clover Health and Home Care Ltd,2590.00, 19-Mar-2019
722,Revenue,CAHD,Homecare - Central,Other Small Contracts,Clover Health and Home Care Ltd,1554.00, 06-Mar-2019
723,Revenue,CAHD,Homecare - Central,Other Small Contracts,Clover Health and Home Care Ltd,1569.54, 22-Mar-2019
724,Revenue,CAHD,Homecare - Central,Other Small Contracts,Clover Health and Home Care Ltd,890.96, 05-Mar-2019
725,Revenue,CAHD,Homecare - Central,Other Small Contracts,Clover Health and Home Care Ltd,890.96, 19-Mar-2019
726,Revenue,CAHD,CSC - Vinney Green Secure Unit,R & M by Departments,Clover Technical Services,10833.00, 22-Mar-2019
727,Revenue,CAHD,Bed Purchasing - South,Permanent Residential,Collingwood Residential Home,2760.00, 12-Mar-2019
728,Revenue,CAHD,Bed Purchasing - South,Permanent Residential,Collingwood Residential Home,2188.76, 12-Mar-2019
729,Revenue,CAHD,Bed Purchasing - South,Permanent Residential,Collingwood Residential Home,2364.08, 12-Mar-2019
730,Revenue,CAHD,Bed Purchasing - South,Permanent Residential,Collingwood Residential Home,2547.52, 12-Mar-2019
731,Revenue,CAHD,Bed Purchasing - South,Permanent Residential,Collingwood Residential Home,2445.60, 12-Mar-2019
732,Revenue,CAHD,Bed Purchasing - South,Permanent Residential,Collingwood Residential Home,2920.00, 12-Mar-2019
733,Revenue,CAHD,Homecare - Central,Other Small Contracts,Complimenting Care and Training Services (CCTS) Lt,405.68, 01-Mar-2019
734,Revenue,CAHD,Home Care - Elderly - North,Day Care / Social Activities,Complimenting Care and Training Services (CCTS) Lt,124.47, 01-Mar-2019
735,Revenue,CAHD,Home Care - Elderly - North,Other Small Contracts,Complimenting Care and Training Services (CCTS) Lt,8841.98, 01-Mar-2019
736,Revenue,CAHD,Homecare - Central,Other Small Contracts,Complimenting Care and Training Services (CCTS) Lt,391.85, 01-Mar-2019
737,Revenue,CAHD,Home Care - Elderly - North,Day Care / Social Activities,Complimenting Care and Training Services (CCTS) Lt,142.91, 01-Mar-2019
738,Revenue,CAHD,Home Care - Elderly - North,Other Small Contracts,Complimenting Care and Training Services (CCTS) Lt,8915.74, 01-Mar-2019
739,Revenue,CAHD,Homecare - Central,Other Small Contracts,Complimenting Care and Training Services (CCTS) Lt,359.58, 01-Mar-2019
740,Revenue,CAHD,Home Care - Elderly - North,Day Care / Social Activities,Complimenting Care and Training Services (CCTS) Lt,129.08, 01-Mar-2019
741,Revenue,CAHD,Home Care - Elderly - North,Other Small Contracts,Complimenting Care and Training Services (CCTS) Lt,9436.67, 01-Mar-2019
742,Revenue,CAHD,Pathway 1 - Re-Ablement Home Care,Other Small Contracts,Complimenting Care and Training Services (CCTS) Lt,2051.45, 01-Mar-2019
743,Revenue,CAHD,Sexual Health,Other Small Contracts,Concord Medical Centre,2254.00, 20-Mar-2019
744,Revenue,CAHD,Sexual Health,Other Small Contracts,Concord Medical Centre,1724.04, 20-Mar-2019
745,Revenue,CAHD,Sexual Health,Other Small Contracts,Coniston Medical Practice,966.00, 20-Mar-2019
746,Revenue,CAHD,Sexual Health,Other Small Contracts,Coniston Medical Practice,1187.22, 20-Mar-2019
747,Revenue,CAHD,Statemented Support Equipment,Educational Supplies & Equipment,Connevans Limited,1590.05, 01-Mar-2019
748,Revenue,CAHD,Bed and Breakfast,Bed & Breakfast,Connolly & Callaghan Limited,532.00, 29-Mar-2019
749,Revenue,CAHD,Bed and Breakfast,Bed & Breakfast,Connolly & Callaghan Limited,805.00, 29-Mar-2019
750,Revenue,CAHD,Bed and Breakfast,Bed & Breakfast,Connolly & Callaghan Limited,455.00, 29-Mar-2019
751,Revenue,CAHD,Bed and Breakfast,Bed & Breakfast,Connolly & Callaghan Limited,455.00, 29-Mar-2019
752,Revenue,CAHD,Bed and Breakfast,Bed & Breakfast,Connolly & Callaghan Limited,581.00, 29-Mar-2019
753,Revenue,CAHD,Bed and Breakfast,Bed & Breakfast,Connolly & Callaghan Limited,497.00, 29-Mar-2019
754,Revenue,CAHD,Bed and Breakfast,Bed & Breakfast,Connolly & Callaghan Limited,504.00, 29-Mar-2019
755,Revenue,CAHD,Bed and Breakfast,Bed & Breakfast,Connolly & Callaghan Limited,623.00, 29-Mar-2019
756,Revenue,CAHD,Bed and Breakfast,Bed & Breakfast,Connolly & Callaghan Limited,574.00, 29-Mar-2019
757,Revenue,CAHD,Bed and Breakfast,Bed & Breakfast,Connolly & Callaghan Limited,938.00, 29-Mar-2019
758,Revenue,CAHD,Bed and Breakfast,Bed & Breakfast,Connolly & Callaghan Limited,539.00, 01-Mar-2019
759,Revenue,CAHD,Bed and Breakfast,Bed & Breakfast,Connolly & Callaghan Limited,623.00, 01-Mar-2019
760,Revenue,CAHD,Bed and Breakfast,Bed & Breakfast,Connolly & Callaghan Limited,805.00, 04-Mar-2019
761,Revenue,CAHD,Bed and Breakfast,Bed & Breakfast,Connolly & Callaghan Limited,574.00, 29-Mar-2019
762,Revenue,CAHD,Bed and Breakfast,Bed & Breakfast,Connolly & Callaghan Limited,490.00, 01-Mar-2019
763,Revenue,CAHD,Bed and Breakfast,Bed & Breakfast,Connolly & Callaghan Limited,455.00, 01-Mar-2019
764,Revenue,CAHD,Bed and Breakfast,Bed & Breakfast,Connolly & Callaghan Limited,448.00, 06-Mar-2019
765,Revenue,CAHD,Bed and Breakfast,Bed & Breakfast,Connolly & Callaghan Limited,600.00, 01-Mar-2019
766,Revenue,CAHD,Bed and Breakfast,Bed & Breakfast,Connolly & Callaghan Limited,938.00, 01-Mar-2019
767,Revenue,CAHD,Bed and Breakfast,Bed & Breakfast,Connolly & Callaghan Limited,497.00, 01-Mar-2019
768,Revenue,CAHD,Bed and Breakfast,Bed & Breakfast,Connolly & Callaghan Limited,581.00, 04-Mar-2019
769,Revenue,CAHD,Bed and Breakfast,Bed & Breakfast,Connolly & Callaghan Limited,497.00, 04-Mar-2019
770,Revenue,CAHD,Bed and Breakfast,Bed & Breakfast,Connolly & Callaghan Limited,588.00, 01-Mar-2019
771,Revenue,CAHD,Bed and Breakfast,Bed & Breakfast,Connolly & Callaghan Limited,539.00, 08-Mar-2019
772,Revenue,CAHD,Bed and Breakfast,Bed & Breakfast,Connolly & Callaghan Limited,623.00, 08-Mar-2019
773,Revenue,CAHD,Bed and Breakfast,Bed & Breakfast,Connolly & Callaghan Limited,805.00, 08-Mar-2019
774,Revenue,CAHD,Bed and Breakfast,Bed & Breakfast,Connolly & Callaghan Limited,574.00, 08-Mar-2019
775,Revenue,CAHD,Bed and Breakfast,Bed & Breakfast,Connolly & Callaghan Limited,490.00, 13-Mar-2019
776,Revenue,CAHD,Bed and Breakfast,Bed & Breakfast,Connolly & Callaghan Limited,455.00, 08-Mar-2019
777,Revenue,CAHD,Bed and Breakfast,Bed & Breakfast,Connolly & Callaghan Limited,700.00, 08-Mar-2019
778,Revenue,CAHD,Bed and Breakfast,Bed & Breakfast,Connolly & Callaghan Limited,938.00, 08-Mar-2019
779,Revenue,CAHD,Bed and Breakfast,Bed & Breakfast,Connolly & Callaghan Limited,497.00, 08-Mar-2019
780,Revenue,CAHD,Bed and Breakfast,Bed & Breakfast,Connolly & Callaghan Limited,581.00, 08-Mar-2019
781,Revenue,CAHD,Bed and Breakfast,Bed & Breakfast,Connolly & Callaghan Limited,504.00, 08-Mar-2019
782,Revenue,CAHD,Bed and Breakfast,Bed & Breakfast,Connolly & Callaghan Limited,497.00, 08-Mar-2019
783,Revenue,CAHD,Bed and Breakfast,Bed & Breakfast,Connolly & Callaghan Limited,504.00, 08-Mar-2019
784,Revenue,CAHD,Bed and Breakfast,Bed & Breakfast,Connolly & Callaghan Limited,539.00, 13-Mar-2019
785,Revenue,CAHD,Bed and Breakfast,Bed & Breakfast,Connolly & Callaghan Limited,623.00, 13-Mar-2019
786,Revenue,CAHD,Bed and Breakfast,Bed & Breakfast,Connolly & Callaghan Limited,805.00, 13-Mar-2019
787,Revenue,CAHD,Bed and Breakfast,Bed & Breakfast,Connolly & Callaghan Limited,574.00, 13-Mar-2019
788,Revenue,CAHD,Bed and Breakfast,Bed & Breakfast,Connolly & Callaghan Limited,490.00, 14-Mar-2019
789,Revenue,CAHD,Bed and Breakfast,Bed & Breakfast,Connolly & Callaghan Limited,455.00, 13-Mar-2019
790,Revenue,CAHD,Bed and Breakfast,Bed & Breakfast,Connolly & Callaghan Limited,700.00, 14-Mar-2019
791,Revenue,CAHD,Bed and Breakfast,Bed & Breakfast,Connolly & Callaghan Limited,938.00, 13-Mar-2019
792,Revenue,CAHD,Bed and Breakfast,Bed & Breakfast,Connolly & Callaghan Limited,497.00, 14-Mar-2019
793,Revenue,CAHD,Bed and Breakfast,Bed & Breakfast,Connolly & Callaghan Limited,504.00, 14-Mar-2019
794,Revenue,CAHD,Bed and Breakfast,Bed & Breakfast,Connolly & Callaghan Limited,497.00, 13-Mar-2019
795,Revenue,CAHD,Bed and Breakfast,Bed & Breakfast,Connolly & Callaghan Limited,504.00, 14-Mar-2019
796,Revenue,CAHD,Bed and Breakfast,Bed & Breakfast,Connolly & Callaghan Limited,539.00, 20-Mar-2019
797,Revenue,CAHD,Bed and Breakfast,Bed & Breakfast,Connolly & Callaghan Limited,623.00, 27-Mar-2019
798,Revenue,CAHD,Bed and Breakfast,Bed & Breakfast,Connolly & Callaghan Limited,805.00, 21-Mar-2019
799,Revenue,CAHD,Bed and Breakfast,Bed & Breakfast,Connolly & Callaghan Limited,574.00, 21-Mar-2019
800,Revenue,CAHD,Bed and Breakfast,Bed & Breakfast,Connolly & Callaghan Limited,455.00, 21-Mar-2019
801,Revenue,CAHD,Bed and Breakfast,Bed & Breakfast,Connolly & Callaghan Limited,938.00, 21-Mar-2019
802,Revenue,CAHD,Bed and Breakfast,Bed & Breakfast,Connolly & Callaghan Limited,497.00, 21-Mar-2019
803,Revenue,CAHD,Bed and Breakfast,Bed & Breakfast,Connolly & Callaghan Limited,539.00, 29-Mar-2019
804,Revenue,CAHD,Bed and Breakfast,Bed & Breakfast,Connolly & Callaghan Limited,623.00, 29-Mar-2019
805,Revenue,CAHD,Bed and Breakfast,Bed & Breakfast,Connolly & Callaghan Limited,805.00, 29-Mar-2019
806,Revenue,CAHD,Bed and Breakfast,Bed & Breakfast,Connolly & Callaghan Limited,574.00, 29-Mar-2019
807,Revenue,CAHD,Bed and Breakfast,Bed & Breakfast,Connolly & Callaghan Limited,490.00, 29-Mar-2019
808,Revenue,CAHD,Bed and Breakfast,Bed & Breakfast,Connolly & Callaghan Limited,455.00, 29-Mar-2019
809,Revenue,CAHD,Bed and Breakfast,Bed & Breakfast,Connolly & Callaghan Limited,497.00, 29-Mar-2019
810,Revenue,CAHD,Bed and Breakfast,Bed & Breakfast,Connolly & Callaghan Limited,455.00, 29-Mar-2019
811,Revenue,CAHD,CSC - Allowances,Membership Fees,CoramBAAF Ltd t/a Coram Academy Ltd,1023.00, 22-Mar-2019
812,Revenue,CAHD,Sexual Health,Other Small Contracts,Courtside Surgery,1771.00, 20-Mar-2019
813,Revenue,CAHD,Sexual Health,Other Small Contracts,Courtside Surgery,1744.70, 20-Mar-2019
814,Revenue,CAHD,Home Care - Elderly - South,Supported Living,Craegmoor SYI Bristol & Wiltshire Priory,886.60, 05-Mar-2019
815,Revenue,CAHD,Home Care - Elderly - South,Supported Living,Craegmoor SYI Bristol & Wiltshire Priory,934.96, 06-Mar-2019
816,Revenue,CAHD,Home Care - Elderly - South,Supported Living,Craegmoor SYI Bristol & Wiltshire Priory,934.96, 06-Mar-2019
817,Revenue,CAHD,Home Care - Elderly - South,Supported Living,Craegmoor SYI Bristol & Wiltshire Priory,870.48, 01-Mar-2019
818,Revenue,CAHD,Home Care - Elderly - South,Supported Living,Craegmoor SYI Bristol & Wiltshire Priory,677.04, 06-Mar-2019
819,Revenue,CAHD,Home Care - Elderly - South,Supported Living,Craegmoor SYI Bristol & Wiltshire Priory,806.00, 13-Mar-2019
820,Revenue,CAHD,Home Care - Elderly - South,Supported Living,Craegmoor SYI Bristol & Wiltshire Priory,806.00, 20-Mar-2019
821,Revenue,CAHD,Bed Purchasing - North,Permanent Residential,Cream Iii Ltd,8441.40, 12-Mar-2019
822,Revenue,CAHD,Bed purchasing - S28A Under 65 - South,Permanent Residential,Creedy Court,10349.56, 12-Mar-2019
823,Revenue,CAHD,Bed purchasing - S28A Under 65 - South,Permanent Residential,Creedy Court,8696.20, 12-Mar-2019
824,Revenue,CAHD,Bed Purchasing - North,Permanent Residential,Creedy Court,13724.60, 12-Mar-2019
825,Revenue,CAHD,Childrens - Safeguarding Board,Training Expenses,Cruidin Training and Consultancy Ltd,2229.58, 14-Mar-2019
826,Revenue,CAHD,NTS Grant - Trainee Social Wor,Training Expenses,Cruidin Training and Consultancy Ltd,3162.75, 27-Mar-2019
827,Revenue,CAHD,Homelessness Contingency,Other Supplies & Services,Individual,1102.81, 19-Mar-2019
828,Revenue,CAHD,Bed Purchasing - South,Permanent Residential,Daneswood,11981.24, 12-Mar-2019
829,Revenue,CAHD,Home Care - Elderly - South,Day Care / Social Activities,Daneswood,1380.32, 12-Mar-2019
830,Revenue,CAHD,Bed Purchasing - North,Permanent Residential,Daneswood,10023.44, 12-Mar-2019
831,Revenue,CAHD,Bed Purchasing - Elderly S117- North,Permanent Nursing,Danshell Healthcare Group,10617.44, 12-Mar-2019
832,Revenue,CAHD,Jointly Funded H&SC Packages,Permanent Nursing,Danshell Healthcare Group,1575.48, 12-Mar-2019
833,Revenue,CAHD,Direct Payments - LD U65 - South,Fees & Charges Income - General,Individual,2933.87, 08-Mar-2019
834,Revenue,CAHD,Learning Difficulties PSL,Other Supplies & Services,Individual,2400.00, 22-Mar-2019
835,Revenue,CAHD,Training Budget - Children`s Social Serv,Training Expenses,Dartington Hall Trust,4085.80, 20-Mar-2019
836,Revenue,CAHD,Adult Safeguarding Board,Complaints External Expenses,Deborah Jeremiah,1027.00, 06-Mar-2019
837,Revenue,CAHD,A & CL - Project Funding 18/19,Computer Equipment - Purchase,Dell Computer Corporation Limited,1632.14, 01-Mar-2019
838,Revenue,CAHD,Schools Specific Grant Income,Other Public Bodies,Dene Magna School,630.00, 01-Mar-2019
839,Revenue,CAHD,Home Care - Elderly - South,Supported Living,Design House,2599.08, 12-Mar-2019
840,Revenue,CAHD,Home Care - Elderly - South,Supported Living,Design House,2991.52, 12-Mar-2019
841,Revenue,CAHD,Home Care - Elderly - South,Supported Living,Design House,3059.64, 12-Mar-2019
842,Revenue,CAHD,Home Care - Elderly - South,Supported Living,Design House,2923.40, 12-Mar-2019
843,Revenue,CAHD,Home Care - Elderly - South,Day Care / Social Activities,Design House,501.92, 12-Mar-2019
844,Revenue,CAHD,18-25 Year Olds,Supported Living,Design House,804.32, 12-Mar-2019
845,Revenue,CAHD,18-25 Year Olds,Supported Living,Design House,804.32, 12-Mar-2019
846,Revenue,CAHD,Homecare - Central,Day Care / Social Activities,Design House,2383.88, 12-Mar-2019
847,Revenue,CAHD,Home Care - Elderly - South,Day Care / Social Activities,Design House,752.88, 12-Mar-2019
848,Revenue,CAHD,Home Care - Elderly - South,Supported Living,Design House,2577.00, 12-Mar-2019
849,Revenue,CAHD,Home Care - Elderly - South,Supported Living,Design House,2577.00, 12-Mar-2019
850,Revenue,CAHD,Home Care - Elderly - South,Supported Living,Design House,2099.16, 12-Mar-2019
851,Revenue,CAHD,Home Care - Elderly - South,Day Care / Social Activities,Design House,501.92, 12-Mar-2019
852,Revenue,CAHD,Home Care - Elderly - South,Supported Living,Design House,1852.24, 12-Mar-2019
853,Revenue,CAHD,Home Care - Elderly - South,Supported Living,Design House,2457.84, 12-Mar-2019
854,Revenue,CAHD,Home Care - Elderly - South,Supported Living,Design House,4206.60, 12-Mar-2019
855,Revenue,CAHD,Home Care - Elderly - South,Supported Living,Design House,2982.96, 12-Mar-2019
856,Revenue,CAHD,Home Care - Elderly - South,Day Care / Social Activities,Design House,1470.80, 12-Mar-2019
857,Revenue,CAHD,Home Care - Elderly - South,Supported Living,Design House,2856.40, 12-Mar-2019
858,Revenue,CAHD,Home Care - Elderly - South,Supported Living,Design House,2483.44, 12-Mar-2019
859,Revenue,CAHD,Home Care - Elderly - South,Supported Living,Design House,2204.80, 12-Mar-2019
860,Revenue,CAHD,Home Care - Elderly - South,Supported Living,Design House,2204.80, 12-Mar-2019
861,Revenue,CAHD,Homecare - Central,Other Small Contracts,Dhek Bhal,41.12, 28-Mar-2019
862,Revenue,CAHD,Home Care - Elderly - South,Other Small Contracts,Dhek Bhal,483.16, 28-Mar-2019
863,Revenue,CAHD,Home Care - Elderly - South,Supported Living,Dimensions  Suite 2,1858.68, 12-Mar-2019
864,Revenue,CAHD,Home Care - Elderly - South,Supported Living,Dimensions  Suite 2,1857.88, 12-Mar-2019
865,Revenue,CAHD,Home Care - Elderly - South,Supported Living,Dimensions  Suite 2,1857.88, 12-Mar-2019
866,Revenue,CAHD,Supported Living (S28a) South,Supported Living,Dimensions  Suite 2,1857.88, 12-Mar-2019
867,Revenue,CAHD,Bed Purchasing - South,Permanent Residential,Dimensions  Suite 2,5498.80, 12-Mar-2019
868,Revenue,CAHD,Bed Purchasing - South,Permanent Residential,Dimensions  Suite 2,2740.36, 12-Mar-2019
869,Revenue,CAHD,CSC - Section 17 - NORTH,Personal Needs of Clients,DNA Legal,500.00, 15-Mar-2019
870,Revenue,CAHD,Training - Adult Services,Training Expenses,Do The Write Thing,850.00, 22-Mar-2019
871,Revenue,CAHD,Homecare - Central,Other Small Contracts,DoCare Limited,14626.05, 06-Mar-2019
872,Revenue,CAHD,Home Care - Elderly - South,Day Care / Social Activities,DoCare Limited,137.02, 06-Mar-2019
873,Revenue,CAHD,Home Care - Elderly - South,Other Small Contracts,DoCare Limited,511.47, 06-Mar-2019
874,Revenue,CAHD,Home Care - Elderly - North,Day Care / Social Activities,DoCare Limited,277.95, 06-Mar-2019
875,Revenue,CAHD,Home Care - Elderly - North,Other Small Contracts,DoCare Limited,5610.92, 06-Mar-2019
876,Revenue,CAHD,Home Care - Elderly - North,Other Supplies & Services,DoCare Limited,1711.53, 22-Mar-2019
877,Revenue,CAHD,Bed Purchasing - North,Permanent Residential,Dorset Limited,6640.44, 12-Mar-2019
878,Revenue,CAHD,Sexual Health,Other Small Contracts,Downend Health Group,2817.50, 20-Mar-2019
879,Revenue,CAHD,Sexual Health,Other Small Contracts,Downend Health Group,2817.50, 20-Mar-2019
880,Revenue,CAHD,Sexual Health,Other Small Contracts,Downend Health Group,1744.72, 20-Mar-2019
881,Revenue,CAHD,Sexual Health,Other Small Contracts,Downend Health Group,1744.72, 20-Mar-2019
882,Revenue,CAHD,Statemented Support Academies,Schools Funding,Downend School,1119.41, 25-Mar-2019
883,Revenue,CAHD,Statemented Support Academies,Schools Funding,Downend School,541.62, 25-Mar-2019
884,Revenue,CAHD,Statemented Support Academies,Schools Funding,Downend School,1166.58, 25-Mar-2019
885,Revenue,CAHD,Statemented Support Academies,Schools Funding,Downend School,565.20, 25-Mar-2019
886,Revenue,CAHD,Statemented Support Academies,Schools Funding,Downend School,1154.78, 25-Mar-2019
887,Revenue,CAHD,Statemented Support Academies,Schools Funding,Downend School,942.53, 25-Mar-2019
888,Revenue,CAHD,Statemented Support Academies,Schools Funding,Downend School,671.33, 25-Mar-2019
889,Revenue,CAHD,Statemented Support Academies,Schools Funding,Downend School,612.37, 25-Mar-2019
890,Revenue,CAHD,Statemented Support Academies,Schools Funding,Downend School,1249.12, 25-Mar-2019
891,Revenue,CAHD,Statemented Support Academies,Schools Funding,Downend School,694.91, 25-Mar-2019
892,Revenue,CAHD,Statemented Support Academies,Schools Funding,Downend School,600.58, 25-Mar-2019
893,Revenue,CAHD,Statemented Support Academies,Schools Funding,Downend School,553.41, 25-Mar-2019
894,Revenue,CAHD,Statemented Support Academies,Schools Funding,Downend School,1850.49, 25-Mar-2019
895,Revenue,CAHD,Statemented Support Academies,Schools Funding,Downend School,553.41, 25-Mar-2019
896,Revenue,CAHD,Social Lettings Agency,Other Supplies & Services,Individual,605.64, 22-Mar-2019
897,Revenue,CAHD,Sexual Health,Other Small Contracts,Dr W J Foubister & Partners,644.00, 20-Mar-2019
898,Revenue,CAHD,Bed Purchasing - Central,Permanent Nursing,Drakes Court,2832.84, 12-Mar-2019
899,Revenue,CAHD,South Glos Users in South Glos Homes,Permanent Nursing,Drakes Court,632.64, 12-Mar-2019
900,Revenue,CAHD,Bed Purchasing - Central,Permanent Nursing,Drakes Court,2017.24, 12-Mar-2019
901,Revenue,CAHD,South Glos Users in South Glos Homes,Permanent Nursing,Drakes Court,632.64, 12-Mar-2019
902,Revenue,CAHD,South Glos Users in South Glos Homes,Permanent Nursing,Drakes Court,632.64, 12-Mar-2019
903,Revenue,CAHD,South Glos Users in South Glos Homes,Permanent Nursing,Drakes Court,632.64, 12-Mar-2019
904,Revenue,CAHD,Bed Purchasing - Central,Permanent Nursing,Drakes Court,2832.84, 12-Mar-2019
905,Revenue,CAHD,South Glos Users in South Glos Homes,Permanent Nursing,Drakes Court,632.64, 12-Mar-2019
906,Revenue,CAHD,South Glos Users in South Glos Homes,Permanent Nursing,Drakes Court,632.64, 12-Mar-2019
907,Revenue,CAHD,Bed Purchasing - North,Permanent Nursing,Drakes Court,2017.24, 12-Mar-2019
908,Revenue,CAHD,South Glos Users in South Glos Homes,Permanent Nursing,Drakes Court,632.64, 12-Mar-2019
909,Revenue,CAHD,Bed Purchasing - Central,Permanent Nursing,Drakes Court,2017.24, 12-Mar-2019
910,Revenue,CAHD,South Glos Users in South Glos Homes,Permanent Nursing,Drakes Court,632.64, 12-Mar-2019
911,Revenue,CAHD,Bed Purchasing - South,Respite Planned - Nursing,Drakes Court,1600.00, 12-Mar-2019
912,Revenue,CAHD,Bed Purchasing - Central,Permanent Nursing,Drakes Court,2780.00, 12-Mar-2019
913,Revenue,CAHD,South Glos Users in South Glos Homes,Permanent Nursing,Drakes Court,632.64, 12-Mar-2019
914,Revenue,CAHD,South Glos Users in South Glos Homes,Permanent Nursing,Drakes Court,632.64, 12-Mar-2019
915,Revenue,CAHD,South Glos Users in South Glos Homes,Permanent Nursing,Drakes Court,632.64, 12-Mar-2019
916,Revenue,CAHD,South Glos Users in South Glos Homes,Permanent Nursing,Drakes Court,632.64, 12-Mar-2019
917,Revenue,CAHD,South Glos Users in South Glos Homes,Permanent Nursing,Drakes Court,632.64, 12-Mar-2019
918,Revenue,CAHD,South Glos Users in South Glos Homes,Permanent Nursing,Drakes Court,632.64, 12-Mar-2019
919,Revenue,CAHD,Bed Purchasing - South,Permanent Nursing,Drakes Court,2780.00, 12-Mar-2019
920,Revenue,CAHD,South Glos Users in South Glos Homes,Permanent Nursing,Drakes Court,632.64, 12-Mar-2019
921,Revenue,CAHD,Bed Purchasing - Central,Permanent Residential,Drakes Court,2780.00, 12-Mar-2019
922,Revenue,CAHD,South Glos Users in South Glos Homes,Permanent Nursing,Drakes Court,632.64, 12-Mar-2019
923,Revenue,CAHD,South Glos Users in South Glos Homes,Permanent Nursing,Drakes Court,632.64, 12-Mar-2019
924,Revenue,CAHD,Independent Special Placements - Pre 16,Other Private Contractors,Durham School,16432.90, 18-Mar-2019
925,Revenue,CAHD,Bed and Breakfast,Bed & Breakfast,Individual,672.00, 01-Mar-2019
926,Revenue,CAHD,Bed and Breakfast,Bed & Breakfast,Individual,581.00, 01-Mar-2019
927,Revenue,CAHD,Bed and Breakfast,Bed & Breakfast,Individual,567.00, 04-Mar-2019
928,Revenue,CAHD,Bed and Breakfast,Bed & Breakfast,Individual,672.00, 05-Mar-2019
929,Revenue,CAHD,Bed and Breakfast,Bed & Breakfast,Individual,581.00, 05-Mar-2019
930,Revenue,CAHD,Bed and Breakfast,Bed & Breakfast,Individual,511.00, 05-Mar-2019
931,Revenue,CAHD,Bed and Breakfast,Bed & Breakfast,Individual,672.00, 06-Mar-2019
932,Revenue,CAHD,Bed and Breakfast,Bed & Breakfast,Individual,581.00, 06-Mar-2019
933,Revenue,CAHD,Bed and Breakfast,Bed & Breakfast,Individual,511.00, 06-Mar-2019
934,Revenue,CAHD,Bed and Breakfast,Bed & Breakfast,Individual,672.00, 12-Mar-2019
935,Revenue,CAHD,Bed and Breakfast,Bed & Breakfast,Individual,581.00, 12-Mar-2019
936,Revenue,CAHD,Bed and Breakfast,Bed & Breakfast,Individual,511.00, 12-Mar-2019
937,Revenue,CAHD,Bed and Breakfast,Bed & Breakfast,Individual,588.00, 15-Mar-2019
938,Revenue,CAHD,Bed and Breakfast,Bed & Breakfast,Individual,672.00, 19-Mar-2019
939,Revenue,CAHD,Bed and Breakfast,Bed & Breakfast,Individual,686.00, 19-Mar-2019
940,Revenue,CAHD,Bed and Breakfast,Bed & Breakfast,Individual,581.00, 19-Mar-2019
941,Revenue,CAHD,Bed Purchasing - North,Permanent Residential,East Court,2698.80, 12-Mar-2019
942,Revenue,CAHD,Minor Adaptations Service,Operational Equipment,Eastman & Co (Timber) Limited,1002.60, 29-Mar-2019
943,Revenue,CAHD,Bed Purchasing - South,Permanent Residential,Edgecumbe Lodge,2600.00, 12-Mar-2019
944,Revenue,CAHD,Bed Purchasing - South,Permanent Residential,Edgecumbe Lodge,2600.00, 12-Mar-2019
945,Revenue,CAHD,Bed Purchasing - South,Permanent Residential,Edgecumbe Lodge,2148.68, 12-Mar-2019
946,Revenue,CAHD,Bed Purchasing - Elderly S117- North,Permanent Residential,Edgecumbe Lodge,2656.00, 12-Mar-2019
947,Revenue,CAHD,Bed Purchasing - North,Respite Emergency - Residential,Edgecumbe Lodge,650.00, 12-Mar-2019
948,Revenue,CAHD,Bed Purchasing - South,Respite Planned - Residential,Edgecumbe Lodge,1764.29, 12-Mar-2019
949,Revenue,CAHD,Bed Purchasing - South,Permanent Residential,Edgecumbe Lodge,2600.00, 12-Mar-2019
950,Revenue,CAHD,Bed Purchasing - South,Permanent Residential,Edgecumbe Lodge,2220.00, 12-Mar-2019
951,Revenue,CAHD,Bed Purchasing - South,Permanent Residential,Edgecumbe Lodge,2445.60, 12-Mar-2019
952,Revenue,CAHD,Bed Purchasing - South,Permanent Residential,Edgecumbe Lodge,2477.40, 12-Mar-2019
953,Revenue,CAHD,Bed Purchasing - Southmead Hospital,Permanent Residential,Edgecumbe Lodge,1950.00, 12-Mar-2019
954,Revenue,CAHD,Bed Purchasing - South,Permanent Residential,Edgemont House Ltd,2600.00, 12-Mar-2019
955,Revenue,CAHD,Bed Purchasing - South,Permanent Residential,Edgemont House Ltd,1948.72, 12-Mar-2019
956,Revenue,CAHD,South Glos Users in South Glos Homes,Permanent Nursing,Edgemont View Nursing Home,632.64, 12-Mar-2019
957,Revenue,CAHD,Bed Purchasing - South,Permanent Nursing,Edgemont View Nursing Home,3464.60, 12-Mar-2019
958,Revenue,CAHD,South Glos Users in South Glos Homes,Permanent Nursing,Edgemont View Nursing Home,632.64, 12-Mar-2019
959,Revenue,CAHD,South Glos Users in South Glos Homes,Permanent Nursing,Edgemont View Nursing Home,632.64, 12-Mar-2019
960,Revenue,CAHD,Bed Purchasing - South,Permanent Nursing,Edgemont View Nursing Home,2500.00, 12-Mar-2019
961,Revenue,CAHD,South Glos Users in South Glos Homes,Permanent Nursing,Edgemont View Nursing Home,632.64, 12-Mar-2019
962,Revenue,CAHD,Bed Purchasing - Southmead Hospital,Permanent Nursing,Edgemont View Nursing Home,4032.64, 12-Mar-2019
963,Revenue,CAHD,South Glos Users in South Glos Homes,Permanent Nursing,Edgemont View Nursing Home,632.64, 12-Mar-2019
964,Revenue,CAHD,South Glos Users in South Glos Homes,Permanent Nursing,Edgemont View Nursing Home,632.64, 12-Mar-2019
965,Revenue,CAHD,Bed Purchasing - South,Respite Planned - Nursing,Edgemont View Nursing Home,1750.00, 12-Mar-2019
966,Revenue,CAHD,South Glos Users in South Glos Homes,Permanent Nursing,Edgemont View Nursing Home,632.64, 12-Mar-2019
967,Revenue,CAHD,South Glos Users in South Glos Homes,Permanent Nursing,Edgemont View Nursing Home,632.64, 12-Mar-2019
968,Revenue,CAHD,Bed Purchasing - South,Permanent Nursing,Edgemont View Nursing Home,2934.72, 12-Mar-2019
969,Revenue,CAHD,South Glos Users in South Glos Homes,Permanent Nursing,Edgemont View Nursing Home,632.64, 12-Mar-2019
970,Revenue,CAHD,South Glos Users in South Glos Homes,Permanent Nursing,Edgemont View Nursing Home,632.64, 12-Mar-2019
971,Revenue,CAHD,South Glos Users in South Glos Homes,Permanent Nursing,Edgemont View Nursing Home,632.64, 12-Mar-2019
972,Revenue,CAHD,Bed Purchasing - South,Permanent Nursing,Edgemont View Nursing Home,500.00, 12-Mar-2019
973,Revenue,CAHD,South Glos Users in South Glos Homes,Permanent Nursing,Edgemont View Nursing Home,632.64, 12-Mar-2019
974,Revenue,CAHD,South Glos Users in South Glos Homes,Permanent Nursing,Edgemont View Nursing Home,632.64, 12-Mar-2019
975,Revenue,CAHD,Bed Purchasing - South,Permanent Nursing,Edgemont View Nursing Home,2934.72, 12-Mar-2019
976,Revenue,CAHD,South Glos Users in South Glos Homes,Permanent Nursing,Edgemont View Nursing Home,632.64, 12-Mar-2019
977,Revenue,CAHD,South Glos Users in South Glos Homes,Permanent Nursing,Edgemont View Nursing Home,632.64, 12-Mar-2019
978,Revenue,CAHD,South Glos Users in South Glos Homes,Permanent Nursing,Edgemont View Nursing Home,632.64, 12-Mar-2019
979,Revenue,CAHD,Planning and Partnerships Procurement,Other Supplies & Services,Eldercare,3061.59, 01-Mar-2019
980,Revenue,CAHD,Planning and Partnerships Procurement,Other Supplies & Services,Eldercare,3043.29, 29-Mar-2019
981,Revenue,CAHD,Planning and Partnerships Procurement,Other Supplies & Services,Eldercare,2526.82, 25-Mar-2019
982,Revenue,CAHD,Planning and Partnerships Procurement,Other Supplies & Services,Eldercare,2300.77, 29-Mar-2019
983,Revenue,CAHD,Planning and Partnerships Procurement,Other Supplies & Services,Eldercare,5400.00, 26-Mar-2019
984,Revenue,CAHD,Supporting People Programme,Grants to Voluntary Bodies,Elim Housing Association Limited,5236.00, 01-Mar-2019
985,Revenue,CAHD,Home Care - Elderly - South,Day Care / Social Activities,Elite Home Care Ltd,189.83, 06-Mar-2019
986,Revenue,CAHD,Home Care - Elderly - South,Other Small Contracts,Elite Home Care Ltd,5079.11, 06-Mar-2019
987,Revenue,CAHD,Home Care - Elderly - North,Other Small Contracts,Elite Home Care Ltd,713.02, 06-Mar-2019
988,Revenue,CAHD,Home Care - Elderly - South,Day Care / Social Activities,Elite Home Care Ltd,189.83, 11-Mar-2019
989,Revenue,CAHD,Home Care - Elderly - South,Other Small Contracts,Elite Home Care Ltd,4965.37, 11-Mar-2019
990,Revenue,CAHD,Home Care - Elderly - North,Other Small Contracts,Elite Home Care Ltd,799.29, 11-Mar-2019
991,Revenue,CAHD,Home Care - Elderly - South,Day Care / Social Activities,Elite Home Care Ltd,189.83, 19-Mar-2019
992,Revenue,CAHD,Home Care - Elderly - South,Other Small Contracts,Elite Home Care Ltd,4807.24, 19-Mar-2019
993,Revenue,CAHD,Home Care - Elderly - North,Other Small Contracts,Elite Home Care Ltd,780.77, 19-Mar-2019
994,Revenue,CAHD,Home Care - Elderly - South,Day Care / Social Activities,Elite Home Care Ltd,185.20, 28-Mar-2019
995,Revenue,CAHD,Home Care - Elderly - South,Other Small Contracts,Elite Home Care Ltd,4978.52, 28-Mar-2019
996,Revenue,CAHD,Home Care - Elderly - North,Other Small Contracts,Elite Home Care Ltd,695.91, 28-Mar-2019
997,Revenue,CAHD,Direct Payments - Phys Dis - North,Fees & Charges Income - General,Individual,5941.03, 08-Mar-2019
998,Revenue,CAHD,CSC - Legal Fees,Legal Fees,Elizabeth Harris,5050.00, 12-Mar-2019
999,Revenue,CAHD,Sexual Health,Other Small Contracts,Emersons Green Medical Centre,966.00, 20-Mar-2019
1000,Revenue,CAHD,Sexual Health,Other Small Contracts,Emersons Green Medical Centre,970.42, 20-Mar-2019
1001,Revenue,CAHD,Learning Difficulties,Other Private Contractors,Individual,660.00, 20-Mar-2019
1002,Revenue,CAHD,Special ISB,Other Public Bodies,Enable Trust,3835.60, 19-Mar-2019
1003,Revenue,CAHD,Special ISB,Other Public Bodies,Enable Trust,648.71, 22-Mar-2019
1004,Revenue,CAHD,Special ISB,Other Public Bodies,Enable Trust,1175.88, 22-Mar-2019
1005,Revenue,CAHD,Special ISB,Other Public Bodies,Enable Trust,1175.88, 22-Mar-2019
1006,Revenue,CAHD,Special ISB,Other Public Bodies,Enable Trust,1175.88, 22-Mar-2019
1007,Revenue,CAHD,Special ISB,Other Public Bodies,Enable Trust,1175.88, 22-Mar-2019
1008,Revenue,CAHD,Special ISB,Other Public Bodies,Enable Trust,1175.88, 22-Mar-2019
1009,Revenue,CAHD,Special ISB,Other Public Bodies,Enable Trust,1175.88, 22-Mar-2019
1010,Revenue,CAHD,Special ISB,Other Public Bodies,Enable Trust,648.71, 22-Mar-2019
1011,Revenue,CAHD,Special ISB,Other Public Bodies,Enable Trust,892.04, 22-Mar-2019
1012,Revenue,CAHD,Special ISB,Other Public Bodies,Enable Trust,1540.83, 22-Mar-2019
1013,Revenue,CAHD,Special ISB,Other Public Bodies,Enable Trust,892.04, 22-Mar-2019
1014,Revenue,CAHD,Special ISB,Other Public Bodies,Enable Trust,2189.53, 22-Mar-2019
1015,Revenue,CAHD,Special ISB,Other Public Bodies,Enable Trust,1540.83, 22-Mar-2019
1016,Revenue,CAHD,Special ISB,Other Public Bodies,Enable Trust,1175.88, 22-Mar-2019
1017,Revenue,CAHD,Special ISB,Other Public Bodies,Enable Trust,1175.88, 22-Mar-2019
1018,Revenue,CAHD,Special ISB,Other Public Bodies,Enable Trust,892.04, 22-Mar-2019
1019,Revenue,CAHD,Special ISB,Other Public Bodies,Enable Trust,1175.88, 22-Mar-2019
1020,Revenue,CAHD,Special ISB,Other Public Bodies,Enable Trust,1175.88, 22-Mar-2019
1021,Revenue,CAHD,Special ISB,Other Public Bodies,Enable Trust,648.71, 22-Mar-2019
1022,Revenue,CAHD,Special ISB,Other Public Bodies,Enable Trust,1175.88, 22-Mar-2019
1023,Revenue,CAHD,Special ISB,Other Public Bodies,Enable Trust,1540.83, 22-Mar-2019
1024,Revenue,CAHD,Special ISB,Other Public Bodies,Enable Trust,1175.88, 22-Mar-2019
1025,Revenue,CAHD,Special ISB,Other Public Bodies,Enable Trust,1175.88, 22-Mar-2019
1026,Revenue,CAHD,Special ISB,Other Public Bodies,Enable Trust,892.04, 22-Mar-2019
1027,Revenue,CAHD,Special ISB,Other Public Bodies,Enable Trust,1540.83, 22-Mar-2019
1028,Revenue,CAHD,Special ISB,Other Public Bodies,Enable Trust,892.04, 22-Mar-2019
1029,Revenue,CAHD,Special ISB,Other Public Bodies,Enable Trust,1540.83, 22-Mar-2019
1030,Revenue,CAHD,Special ISB,Other Public Bodies,Enable Trust,648.71, 22-Mar-2019
1031,Revenue,CAHD,Special ISB,Other Public Bodies,Enable Trust,1175.88, 22-Mar-2019
1032,Revenue,CAHD,Special ISB,Other Public Bodies,Enable Trust,1175.88, 22-Mar-2019
1033,Revenue,CAHD,Special ISB,Other Public Bodies,Enable Trust,892.04, 22-Mar-2019
1034,Revenue,CAHD,Special ISB,Other Public Bodies,Enable Trust,1540.83, 22-Mar-2019
1035,Revenue,CAHD,Special ISB,Other Public Bodies,Enable Trust,1175.88, 22-Mar-2019
1036,Revenue,CAHD,Special ISB,Other Public Bodies,Enable Trust,1175.88, 22-Mar-2019
1037,Revenue,CAHD,Special ISB,Other Public Bodies,Enable Trust,1175.88, 22-Mar-2019
1038,Revenue,CAHD,Special ISB,Other Public Bodies,Enable Trust,946.65, 22-Mar-2019
1039,Revenue,CAHD,Special ISB,Other Public Bodies,Enable Trust,1540.83, 22-Mar-2019
1040,Revenue,CAHD,Special ISB,Other Public Bodies,Enable Trust,1175.88, 22-Mar-2019
1041,Revenue,CAHD,Special ISB,Other Public Bodies,Enable Trust,892.04, 22-Mar-2019
1042,Revenue,CAHD,Special ISB,Other Public Bodies,Enable Trust,1540.83, 22-Mar-2019
1043,Revenue,CAHD,Special ISB,Other Public Bodies,Enable Trust,1540.83, 22-Mar-2019
1044,Revenue,CAHD,Special ISB,Other Public Bodies,Enable Trust,892.04, 22-Mar-2019
1045,Revenue,CAHD,Special ISB,Other Public Bodies,Enable Trust,892.04, 22-Mar-2019
1046,Revenue,CAHD,Special ISB,Other Public Bodies,Enable Trust,1175.88, 22-Mar-2019
1047,Revenue,CAHD,Special ISB,Other Public Bodies,Enable Trust,892.04, 22-Mar-2019
1048,Revenue,CAHD,Special ISB,Other Public Bodies,Enable Trust,892.04, 22-Mar-2019
1049,Revenue,CAHD,Special ISB,Other Public Bodies,Enable Trust,1175.88, 22-Mar-2019
1050,Revenue,CAHD,Special ISB,Other Public Bodies,Enable Trust,1175.88, 22-Mar-2019
1051,Revenue,CAHD,Special ISB,Other Public Bodies,Enable Trust,1175.88, 22-Mar-2019
1052,Revenue,CAHD,Special ISB,Other Public Bodies,Enable Trust,1540.83, 22-Mar-2019
1053,Revenue,CAHD,Special ISB,Other Public Bodies,Enable Trust,1175.88, 22-Mar-2019
1054,Revenue,CAHD,Special ISB,Other Public Bodies,Enable Trust,892.04, 22-Mar-2019
1055,Revenue,CAHD,Special ISB,Other Public Bodies,Enable Trust,1540.83, 22-Mar-2019
1056,Revenue,CAHD,Special ISB,Other Public Bodies,Enable Trust,1175.88, 22-Mar-2019
1057,Revenue,CAHD,Special ISB,Other Public Bodies,Enable Trust,1175.88, 22-Mar-2019
1058,Revenue,CAHD,Special ISB,Other Public Bodies,Enable Trust,1540.83, 22-Mar-2019
1059,Revenue,CAHD,Special ISB,Other Public Bodies,Enable Trust,892.04, 22-Mar-2019
1060,Revenue,CAHD,Special ISB,Other Public Bodies,Enable Trust,892.04, 22-Mar-2019
1061,Revenue,CAHD,Special ISB,Other Public Bodies,Enable Trust,1175.88, 22-Mar-2019
1062,Revenue,CAHD,Special ISB,Other Public Bodies,Enable Trust,1540.83, 22-Mar-2019
1063,Revenue,CAHD,Special ISB,Other Public Bodies,Enable Trust,1175.88, 22-Mar-2019
1064,Revenue,CAHD,Special ISB,Other Public Bodies,Enable Trust,1540.83, 22-Mar-2019
1065,Revenue,CAHD,Special ISB,Other Public Bodies,Enable Trust,1540.83, 22-Mar-2019
1066,Revenue,CAHD,Special ISB,Other Public Bodies,Enable Trust,4246.60, 22-Mar-2019
1067,Revenue,CAHD,Schools Specific Grant Income - from OLA,Other Public Bodies,Enable Trust,900.00, 22-Mar-2019
1068,Revenue,CAHD,Special ISB,Other Public Bodies,Enable Trust,1534.24, 19-Mar-2019
1069,Revenue,CAHD,Special ISB,Other Public Bodies,Enable Trust,892.04, 22-Mar-2019
1070,Revenue,CAHD,Special ISB,Other Public Bodies,Enable Trust,1702.96, 22-Mar-2019
1071,Revenue,CAHD,Special ISB,Other Public Bodies,Enable Trust,1508.33, 22-Mar-2019
1072,Revenue,CAHD,Special ISB,Other Public Bodies,Enable Trust,1175.88, 22-Mar-2019
1073,Revenue,CAHD,Special ISB,Other Public Bodies,Enable Trust,1175.88, 22-Mar-2019
1074,Revenue,CAHD,Special ISB,Other Public Bodies,Enable Trust,892.04, 22-Mar-2019
1075,Revenue,CAHD,Special ISB,Other Public Bodies,Enable Trust,1175.88, 22-Mar-2019
1076,Revenue,CAHD,Special ISB,Other Public Bodies,Enable Trust,1175.88, 22-Mar-2019
1077,Revenue,CAHD,Special ISB,Other Public Bodies,Enable Trust,1175.88, 22-Mar-2019
1078,Revenue,CAHD,Special ISB,Other Public Bodies,Enable Trust,1175.88, 22-Mar-2019
1079,Revenue,CAHD,Special ISB,Other Public Bodies,Enable Trust,1175.88, 22-Mar-2019
1080,Revenue,CAHD,Special ISB,Other Public Bodies,Enable Trust,892.04, 22-Mar-2019
1081,Revenue,CAHD,Special ISB,Other Public Bodies,Enable Trust,1175.88, 22-Mar-2019
1082,Revenue,CAHD,Special ISB,Other Public Bodies,Enable Trust,648.71, 22-Mar-2019
1083,Revenue,CAHD,Special ISB,Other Public Bodies,Enable Trust,1702.96, 22-Mar-2019
1084,Revenue,CAHD,Special ISB,Other Public Bodies,Enable Trust,1702.96, 22-Mar-2019
1085,Revenue,CAHD,Special ISB,Other Public Bodies,Enable Trust,1540.83, 22-Mar-2019
1086,Revenue,CAHD,Special ISB,Other Public Bodies,Enable Trust,1702.96, 22-Mar-2019
1087,Revenue,CAHD,Special ISB,Other Public Bodies,Enable Trust,892.04, 22-Mar-2019
1088,Revenue,CAHD,Special ISB,Other Public Bodies,Enable Trust,2513.89, 22-Mar-2019
1089,Revenue,CAHD,Special ISB,Other Public Bodies,Enable Trust,892.04, 22-Mar-2019
1090,Revenue,CAHD,Special ISB,Other Public Bodies,Enable Trust,1702.96, 22-Mar-2019
1091,Revenue,CAHD,Special ISB,Other Public Bodies,Enable Trust,1508.33, 22-Mar-2019
1092,Revenue,CAHD,Special ISB,Other Public Bodies,Enable Trust,1175.88, 22-Mar-2019
1093,Revenue,CAHD,Special ISB,Other Public Bodies,Enable Trust,1702.96, 22-Mar-2019
1094,Revenue,CAHD,Special ISB,Other Public Bodies,Enable Trust,1175.88, 22-Mar-2019
1095,Revenue,CAHD,Special ISB,Other Public Bodies,Enable Trust,2189.53, 22-Mar-2019
1096,Revenue,CAHD,Special ISB,Other Public Bodies,Enable Trust,1175.88, 22-Mar-2019
1097,Revenue,CAHD,Special ISB,Other Public Bodies,Enable Trust,1702.96, 22-Mar-2019
1098,Revenue,CAHD,Special ISB,Other Public Bodies,Enable Trust,1702.96, 22-Mar-2019
1099,Revenue,CAHD,Special ISB,Other Public Bodies,Enable Trust,1175.88, 22-Mar-2019
1100,Revenue,CAHD,Special ISB,Other Public Bodies,Enable Trust,892.04, 22-Mar-2019
1101,Revenue,CAHD,Special ISB,Other Public Bodies,Enable Trust,892.04, 22-Mar-2019
1102,Revenue,CAHD,Special ISB,Other Public Bodies,Enable Trust,1702.96, 22-Mar-2019
1103,Revenue,CAHD,Special ISB,Other Public Bodies,Enable Trust,892.04, 22-Mar-2019
1104,Revenue,CAHD,Special ISB,Other Public Bodies,Enable Trust,1175.88, 22-Mar-2019
1105,Revenue,CAHD,Special ISB,Other Public Bodies,Enable Trust,1702.96, 22-Mar-2019
1106,Revenue,CAHD,Special ISB,Other Public Bodies,Enable Trust,1013.74, 22-Mar-2019
1107,Revenue,CAHD,Special ISB,Other Public Bodies,Enable Trust,1702.96, 22-Mar-2019
1108,Revenue,CAHD,Special ISB,Other Public Bodies,Enable Trust,892.04, 22-Mar-2019
1109,Revenue,CAHD,Special ISB,Other Public Bodies,Enable Trust,1175.88, 22-Mar-2019
1110,Revenue,CAHD,Special ISB,Other Public Bodies,Enable Trust,1175.88, 22-Mar-2019
1111,Revenue,CAHD,Special ISB,Other Public Bodies,Enable Trust,1702.96, 22-Mar-2019
1112,Revenue,CAHD,Special ISB,Other Public Bodies,Enable Trust,2189.53, 22-Mar-2019
1113,Revenue,CAHD,Special ISB,Other Public Bodies,Enable Trust,2189.53, 22-Mar-2019
1114,Revenue,CAHD,Special ISB,Other Public Bodies,Enable Trust,892.04, 22-Mar-2019
1115,Revenue,CAHD,Special ISB,Other Public Bodies,Enable Trust,1702.96, 22-Mar-2019
1116,Revenue,CAHD,Special ISB,Other Public Bodies,Enable Trust,892.04, 22-Mar-2019
1117,Revenue,CAHD,Special ISB,Other Public Bodies,Enable Trust,892.04, 22-Mar-2019
1118,Revenue,CAHD,Special ISB,Other Public Bodies,Enable Trust,892.04, 22-Mar-2019
1119,Revenue,CAHD,Special ISB,Other Public Bodies,Enable Trust,2189.53, 22-Mar-2019
1120,Revenue,CAHD,Special ISB,Other Public Bodies,Enable Trust,1175.88, 22-Mar-2019
1121,Revenue,CAHD,Special ISB,Other Public Bodies,Enable Trust,2189.53, 22-Mar-2019
1122,Revenue,CAHD,Special ISB,Other Public Bodies,Enable Trust,1175.88, 22-Mar-2019
1123,Revenue,CAHD,Special ISB,Other Public Bodies,Enable Trust,1175.88, 22-Mar-2019
1124,Revenue,CAHD,Special ISB,Other Public Bodies,Enable Trust,1175.88, 22-Mar-2019
1125,Revenue,CAHD,Special ISB,Other Public Bodies,Enable Trust,892.04, 22-Mar-2019
1126,Revenue,CAHD,Special ISB,Other Public Bodies,Enable Trust,1175.88, 22-Mar-2019
1127,Revenue,CAHD,Special ISB,Other Public Bodies,Enable Trust,1175.88, 22-Mar-2019
1128,Revenue,CAHD,Special ISB,Other Public Bodies,Enable Trust,892.04, 22-Mar-2019
1129,Revenue,CAHD,Special ISB,Other Public Bodies,Enable Trust,892.04, 22-Mar-2019
1130,Revenue,CAHD,Special ISB,Other Public Bodies,Enable Trust,892.04, 22-Mar-2019
1131,Revenue,CAHD,Special ISB,Other Public Bodies,Enable Trust,1175.88, 22-Mar-2019
1132,Revenue,CAHD,Special ISB,Other Public Bodies,Enable Trust,1175.88, 22-Mar-2019
1133,Revenue,CAHD,Special ISB,Other Public Bodies,Enable Trust,1175.88, 22-Mar-2019
1134,Revenue,CAHD,Special ISB,Other Public Bodies,Enable Trust,1175.88, 22-Mar-2019
1135,Revenue,CAHD,Special ISB,Other Public Bodies,Enable Trust,1508.33, 22-Mar-2019
1136,Revenue,CAHD,Special ISB,Other Public Bodies,Enable Trust,1175.88, 22-Mar-2019
1137,Revenue,CAHD,Special ISB,Other Public Bodies,Enable Trust,1702.96, 22-Mar-2019
1138,Revenue,CAHD,Special ISB,Other Public Bodies,Enable Trust,1175.88, 22-Mar-2019
1139,Revenue,CAHD,Special ISB,Other Public Bodies,Enable Trust,892.04, 22-Mar-2019
1140,Revenue,CAHD,Special ISB,Other Public Bodies,Enable Trust,1702.96, 22-Mar-2019
1141,Revenue,CAHD,Special ISB,Other Public Bodies,Enable Trust,1702.96, 22-Mar-2019
1142,Revenue,CAHD,Special ISB,Other Public Bodies,Enable Trust,2189.53, 22-Mar-2019
1143,Revenue,CAHD,Special ISB,Other Public Bodies,Enable Trust,1702.96, 22-Mar-2019
1144,Revenue,CAHD,Special ISB,Other Public Bodies,Enable Trust,1175.88, 22-Mar-2019
1145,Revenue,CAHD,Special ISB,Other Public Bodies,Enable Trust,892.04, 22-Mar-2019
1146,Revenue,CAHD,Special ISB,Other Public Bodies,Enable Trust,1175.88, 22-Mar-2019
1147,Revenue,CAHD,Special ISB,Other Public Bodies,Enable Trust,1175.88, 22-Mar-2019
1148,Revenue,CAHD,Special ISB,Other Public Bodies,Enable Trust,892.04, 22-Mar-2019
1149,Revenue,CAHD,Special ISB,Other Public Bodies,Enable Trust,892.04, 22-Mar-2019
1150,Revenue,CAHD,Special ISB,Other Public Bodies,Enable Trust,892.04, 22-Mar-2019
1151,Revenue,CAHD,Special ISB,Other Public Bodies,Enable Trust,1175.88, 22-Mar-2019
1152,Revenue,CAHD,Special ISB,Other Public Bodies,Enable Trust,892.04, 22-Mar-2019
1153,Revenue,CAHD,Special ISB,Other Public Bodies,Enable Trust,1702.96, 22-Mar-2019
1154,Revenue,CAHD,Special ISB,Other Public Bodies,Enable Trust,849.32, 22-Mar-2019
1155,Revenue,CAHD,Special ISB,Other Public Bodies,Enable Trust,1108.79, 29-Mar-2019
1156,Revenue,CAHD,Schools Specific Grant Income,Other Public Bodies,Enable Trust,630.00, 01-Mar-2019
1157,Revenue,CAHD,Schools Specific Grant Income,Other Public Bodies,Enable Trust,630.00, 01-Mar-2019
1158,Revenue,CAHD,Schools Specific Grant Income,Other Public Bodies,Enable Trust,630.00, 01-Mar-2019
1159,Revenue,CAHD,Bed Purchasing - Elderly S117- North,Permanent Residential,Evolve House,3200.00, 12-Mar-2019
1160,Revenue,CAHD,Placements OLA Special Schools and RB,Other L.A.'s - General,Excalibur Academies Trust T/A,1511.83, 27-Mar-2019
1161,Revenue,CAHD,Homeless - Private Sector Leasing,Prop.Serv. General Repairs,Express Property Services Limited,1767.56, 29-Mar-2019
1162,Revenue,CAHD,Homeless - Private Sector Leasing,Prop.Serv. General Repairs,Express Property Services Limited,2528.62, 05-Mar-2019
1163,Revenue,CAHD,Extra Care Housing,Private & Voluntary Home Care,Extra Care Charitable Trust,30382.22, 12-Mar-2019
1164,Revenue,CAHD,Bed Purchasing - North,Permanent Residential,Eyre Court,7264.00, 12-Mar-2019
1165,Revenue,CAHD,A & CL - Project Funding 18/19,Consultants Fees,FACE,8000.00, 22-Mar-2019
1166,Revenue,CAHD,Bed Purchasing - Southmead Hospital,Permanent Nursing,Fairview Court,3721.24, 12-Mar-2019
1167,Revenue,CAHD,South Glos Users in South Glos Homes,Permanent Nursing,Fairview Court,632.64, 12-Mar-2019
1168,Revenue,CAHD,South Glos Users in South Glos Homes,Permanent Nursing,Fairview Court,632.64, 12-Mar-2019
1169,Revenue,CAHD,South Glos Users in South Glos Homes,Permanent Nursing,Fairview Court,632.64, 12-Mar-2019
1170,Revenue,CAHD,Bed Purchasing - Southmead Hospital,Permanent Nursing,Fairview Court,3721.24, 12-Mar-2019
1171,Revenue,CAHD,South Glos Users in South Glos Homes,Permanent Nursing,Fairview Court,632.64, 12-Mar-2019
1172,Revenue,CAHD,South Glos Users in South Glos Homes,Permanent Nursing,Fairview Court,632.64, 12-Mar-2019
1173,Revenue,CAHD,Bed Purchasing - Southmead Hospital,Permanent Nursing,Fairview Court,3721.24, 12-Mar-2019
1174,Revenue,CAHD,South Glos Users in South Glos Homes,Permanent Nursing,Fairview Court,632.64, 12-Mar-2019
1175,Revenue,CAHD,South Glos Users in South Glos Homes,Permanent Nursing,Fairview Court,632.64, 12-Mar-2019
1176,Revenue,CAHD,Bed Purchasing - Southmead Hospital,Permanent Nursing,Fairview Court,3721.08, 12-Mar-2019
1177,Revenue,CAHD,South Glos Users in South Glos Homes,Permanent Nursing,Fairview Court,632.64, 12-Mar-2019
1178,Revenue,CAHD,Bed Purchasing - South,Permanent Nursing,Fairview Court,3464.60, 12-Mar-2019
1179,Revenue,CAHD,South Glos Users in South Glos Homes,Permanent Nursing,Fairview Court,632.64, 12-Mar-2019
1180,Revenue,CAHD,Bed Purchasing - South,Permanent Nursing,Fairview Court,3721.24, 12-Mar-2019
1181,Revenue,CAHD,Bed Purchasing - South,Permanent Nursing,Fairview Court,3721.24, 12-Mar-2019
1182,Revenue,CAHD,South Glos Users in South Glos Homes,Permanent Nursing,Fairview Court,632.64, 12-Mar-2019
1183,Revenue,CAHD,Bed Purchasing - South,Permanent Nursing,Fairview Court,3423.84, 12-Mar-2019
1184,Revenue,CAHD,South Glos Users in South Glos Homes,Permanent Nursing,Fairview Court,632.64, 12-Mar-2019
1185,Revenue,CAHD,South Glos Users in South Glos Homes,Permanent Nursing,Fairview Court,632.64, 12-Mar-2019
1186,Revenue,CAHD,South Glos Users in South Glos Homes,Permanent Nursing,Fairview Court,632.64, 12-Mar-2019
1187,Revenue,CAHD,Bed purchasing - Elderly S117 - South,Permanent Nursing,Fairview Court,4076.00, 12-Mar-2019
1188,Revenue,CAHD,South Glos Users in South Glos Homes,Permanent Nursing,Fairview Court,632.64, 12-Mar-2019
1189,Revenue,CAHD,South Glos Users in South Glos Homes,Permanent Nursing,Fairview Court,632.64, 12-Mar-2019
1190,Revenue,CAHD,Bed Purchasing - South,Permanent Nursing,Fairview Court,3303.20, 12-Mar-2019
1191,Revenue,CAHD,South Glos Users in South Glos Homes,Permanent Nursing,Fairview Court,632.64, 12-Mar-2019
1192,Revenue,CAHD,Bed Purchasing - South,Permanent Nursing,Fairview Court,3721.08, 12-Mar-2019
1193,Revenue,CAHD,South Glos Users in South Glos Homes,Permanent Nursing,Fairview Court,632.64, 12-Mar-2019
1194,Revenue,CAHD,South Glos Users in South Glos Homes,Permanent Nursing,Fairview Court,632.64, 12-Mar-2019
1195,Revenue,CAHD,South Glos Users in South Glos Homes,Permanent Nursing,Fairview Court,632.64, 12-Mar-2019
1196,Revenue,CAHD,Bed Purchasing - South,Permanent Nursing,Fairview Court,3721.24, 12-Mar-2019
1197,Revenue,CAHD,South Glos Users in South Glos Homes,Permanent Nursing,Fairview Court,632.64, 12-Mar-2019
1198,Revenue,CAHD,South Glos Users in South Glos Homes,Permanent Nursing,Fairview Court,632.64, 12-Mar-2019
1199,Revenue,CAHD,South Glos Users in South Glos Homes,Permanent Nursing,Fairview Court,632.64, 12-Mar-2019
1200,Revenue,CAHD,South Glos Users in South Glos Homes,Permanent Nursing,Fairview Court,632.64, 12-Mar-2019
1201,Revenue,CAHD,South Glos Users in South Glos Homes,Permanent Nursing,Fairview Court,632.64, 12-Mar-2019
1202,Revenue,CAHD,South Glos Users in South Glos Homes,Permanent Nursing,Fairview Court,632.64, 12-Mar-2019
1203,Revenue,CAHD,South Glos Users in South Glos Homes,Permanent Nursing,Fairview Court,632.64, 12-Mar-2019
1204,Revenue,CAHD,Bed Purchasing - South,Fees & Charges Income - General,Fairview Court,2604.17, 12-Mar-2019
1205,Revenue,CAHD,Bed Purchasing - South,Permanent Nursing,Fairview Court,11961.13, 12-Mar-2019
1206,Revenue,CAHD,Bed Purchasing - South,Permanent Nursing,Fairview Court,3721.24, 12-Mar-2019
1207,Revenue,CAHD,South Glos Users in South Glos Homes,Permanent Nursing,Fairview Court,632.64, 12-Mar-2019
1208,Revenue,CAHD,South Glos Users in South Glos Homes,Permanent Nursing,Fairview Court,632.64, 12-Mar-2019
1209,Revenue,CAHD,Bed Purchasing - Southmead Hospital,Fees & Charges Income - General,Fairview Court,729.96, 12-Mar-2019
1210,Revenue,CAHD,South Glos Users in South Glos Homes,Permanent Nursing,Fairview Court,632.64, 12-Mar-2019
1211,Revenue,CAHD,South Glos Users in South Glos Homes,Permanent Nursing,Fairview Court,632.64, 12-Mar-2019
1212,Revenue,CAHD,South Glos Users in South Glos Homes,Permanent Nursing,Fairview Court,632.64, 12-Mar-2019
1213,Revenue,CAHD,Bed Purchasing - North,Permanent Nursing,Fairview Court,3464.60, 12-Mar-2019
1214,Revenue,CAHD,South Glos Users in South Glos Homes,Permanent Nursing,Fairview Court,632.64, 12-Mar-2019
1215,Revenue,CAHD,Bed Purchasing - Southmead Hospital,Permanent Nursing,Fairview Court,5581.86, 12-Mar-2019
1216,Revenue,CAHD,Bed Purchasing - Southmead Hospital,Permanent Nursing,Fairview Court,3721.24, 12-Mar-2019
1217,Revenue,CAHD,Bed Purchasing - Southmead Hospital,Fees & Charges Income - General,Fairview Court,808.87, 12-Mar-2019
1218,Revenue,CAHD,South Glos Users in South Glos Homes,Permanent Nursing,Fairview Court,632.64, 12-Mar-2019
1219,Revenue,CAHD,Bed Purchasing - South,Permanent Nursing,Fairview Court,3400.00, 12-Mar-2019
1220,Revenue,CAHD,South Glos Users in South Glos Homes,Permanent Nursing,Fairview Court,632.64, 12-Mar-2019
1221,Revenue,CAHD,South Glos Users in South Glos Homes,Permanent Nursing,Fairview Court,632.64, 12-Mar-2019
1222,Revenue,CAHD,South Glos Users in South Glos Homes,Permanent Nursing,Fairview Court,632.64, 12-Mar-2019
1223,Revenue,CAHD,Bed Purchasing - North,Permanent Residential,Fairview Court,3180.00, 12-Mar-2019
1224,Revenue,CAHD,Bed Purchasing - North,Permanent Residential,Fairview Court,1590.00, 12-Mar-2019
1225,Revenue,CAHD,South Glos Users in South Glos Homes,Permanent Nursing,Fairview Court,632.64, 12-Mar-2019
1226,Revenue,CAHD,Bed Purchasing - North,Fees & Charges Income - General,Fairview Court,8372.79, 12-Mar-2019
1227,Revenue,CAHD,Bed Purchasing - North,Permanent Nursing,Fairview Court,3721.24, 12-Mar-2019
1228,Revenue,CAHD,South Glos Users in South Glos Homes,Permanent Nursing,Fairview Court,632.64, 12-Mar-2019
1229,Revenue,CAHD,Bed Purchasing - North,Fees & Charges Income - General,Fairview Court,1637.47, 12-Mar-2019
1230,Revenue,CAHD,Bed Purchasing - South,Permanent Nursing,Fairview Court,3057.00, 12-Mar-2019
1231,Revenue,CAHD,South Glos Users in South Glos Homes,Permanent Nursing,Fairview Court,632.64, 12-Mar-2019
1232,Revenue,CAHD,Bed Purchasing - South,Permanent Nursing,Fairview Court,3721.24, 12-Mar-2019
1233,Revenue,CAHD,South Glos Users in South Glos Homes,Permanent Nursing,Fairview Court,632.64, 12-Mar-2019
1234,Revenue,CAHD,Bed Purchasing - South,Permanent Nursing,Fairview Court,3464.60, 12-Mar-2019
1235,Revenue,CAHD,South Glos Users in South Glos Homes,Permanent Nursing,Fairview Court,632.64, 12-Mar-2019
1236,Revenue,CAHD,South Glos Users in South Glos Homes,Permanent Nursing,Fairview Court,632.64, 12-Mar-2019
1237,Revenue,CAHD,South Glos Users in South Glos Homes,Permanent Nursing,Fairview Court,632.64, 12-Mar-2019
1238,Revenue,CAHD,Bed purchasing - Elderly S117 - South,Permanent Residential,Fairview House,2219.20, 12-Mar-2019
1239,Revenue,CAHD,Bed Purchasing - South,Permanent Residential,Fairview House,2219.20, 12-Mar-2019
1240,Revenue,CAHD,Bed Purchasing - North,Permanent Residential,Fairview House,2780.00, 12-Mar-2019
1241,Revenue,CAHD,Bed Purchasing - Southmead Hospital,Permanent Residential,Fairview House,2780.00, 12-Mar-2019
1242,Revenue,CAHD,Bed Purchasing - South,Permanent Residential,Fairview House,2219.20, 12-Mar-2019
1243,Revenue,CAHD,Bed Purchasing - South,Permanent Residential,Fairview House,2148.68, 12-Mar-2019
1244,Revenue,CAHD,Bed Purchasing - South,Permanent Residential,Fairview House,2157.48, 12-Mar-2019
1245,Revenue,CAHD,Bed Purchasing - South,Permanent Residential,Fairview House,2547.52, 12-Mar-2019
1246,Revenue,CAHD,Bed Purchasing - North,Fees & Charges Income - General,Faith House,13225.00, 12-Mar-2019
1247,Revenue,CAHD,Bed Purchasing - North,Permanent Residential,Faith House,3220.00, 12-Mar-2019
1248,Revenue,CAHD,Bed Purchasing - North,Fees & Charges Income - General,Faith House,3642.07, 12-Mar-2019
1249,Revenue,CAHD,Bed Purchasing - North,Permanent Residential,Faith House,21505.00, 12-Mar-2019
1250,Revenue,CAHD,Bed Purchasing - North,Permanent Residential,Faith House,2740.00, 12-Mar-2019
1251,Revenue,CAHD,Bed Purchasing - Southmead Hospital,Permanent Residential,Faith House,2740.00, 12-Mar-2019
1252,Revenue,CAHD,Bed Purchasing - South,Permanent Residential,Faith House,2740.00, 12-Mar-2019
1253,Revenue,CAHD,Rapid Response Service,Other Supplies & Services,Felgains Ltd,10060.00, 25-Mar-2019
1254,Revenue,CAHD,CSC - Fostering Carer Support,Agency Staff (Admin/Support Staff) Pay,Felicia Bonsu,1800.00, 07-Mar-2019
1255,Revenue,CAHD,Bed Purchasing - Central,Permanent Nursing,Festival House,2983.44, 12-Mar-2019
1256,Revenue,CAHD,Bed Purchasing - North,Permanent Nursing,Field House Care Home,2164.36, 12-Mar-2019
1257,Revenue,CAHD,Bed Purchasing - North,Permanent Nursing,Field House Care Home,3440.00, 12-Mar-2019
1258,Revenue,CAHD,South Glos Users in South Glos Homes,Permanent Nursing,Field House Care Home,632.64, 12-Mar-2019
1259,Revenue,CAHD,Bed Purchasing - North,Permanent Nursing,Field House Care Home,3440.00, 12-Mar-2019
1260,Revenue,CAHD,Bed Purchasing - North,Permanent Nursing,Field House Care Home,3323.84, 12-Mar-2019
1261,Revenue,CAHD,Bed Purchasing - North,Permanent Nursing,Field House Care Home,3505.36, 12-Mar-2019
1262,Revenue,CAHD,Bed Purchasing - North,Permanent Nursing,Field House Care Home,3342.32, 12-Mar-2019
1263,Revenue,CAHD,Bed Purchasing - North,Respite Planned - Nursing,Field House Care Home,3342.32, 12-Mar-2019
1264,Revenue,CAHD,Bed Purchasing - North,Permanent Nursing,Field House Care Home,3342.32, 12-Mar-2019
1265,Revenue,CAHD,Bed Purchasing - North,Permanent Nursing,Field House Care Home,2164.36, 12-Mar-2019
1266,Revenue,CAHD,South Glos Users in South Glos Homes,Permanent Nursing,Field House Care Home,632.64, 12-Mar-2019
1267,Revenue,CAHD,Bed Purchasing - North,Permanent Nursing,Field House Care Home,2164.36, 12-Mar-2019
1268,Revenue,CAHD,Bed Purchasing - North,Permanent Nursing,Field House Care Home,3423.84, 12-Mar-2019
1269,Revenue,CAHD,Bed Purchasing - North,Permanent Nursing,Field House Care Home,3423.84, 12-Mar-2019
1270,Revenue,CAHD,Bed Purchasing - Central,Permanent Residential,Fieldview,3400.00, 12-Mar-2019
1271,Revenue,CAHD,Bed Purchasing - North,Permanent Residential,Fieldview,2890.28, 12-Mar-2019
1272,Revenue,CAHD,Bed Purchasing - North,Permanent Residential,Fieldview,3668.40, 12-Mar-2019
1273,Revenue,CAHD,MH Purchasing - Younger,Permanent Nursing,Fieldview,5367.68, 12-Mar-2019
1274,Revenue,CAHD,Bed Purchasing - South,Permanent Residential,Fig House,2890.28, 12-Mar-2019
1275,Revenue,CAHD,Statemented Support Payments to OLAs,Other L.A.'s - General,Filton Avenue Primary School,1131.20, 25-Mar-2019
1276,Revenue,CAHD,Statemented Support Payments to OLAs,Other L.A.'s - General,Filton Avenue Primary School,1331.66, 25-Mar-2019
1277,Revenue,CAHD,A & CL - Functional Skills 18/19,Premises Hire,Filton Community Association,641.00, 01-Mar-2019
1278,Revenue,CAHD,Early Years Inclusion Fund,Other Public Bodies,First Step Pre School Ltd,750.00, 07-Mar-2019
1279,Revenue,CAHD,Early Years Inclusion Fund,Other Public Bodies,First Step Pre School Ltd,650.00, 07-Mar-2019
1280,Revenue,CAHD,EARLY YEARS DEPRIVATION PAYMENT,Preventative Assistance,First Step Pre School Ltd,762.24, 05-Mar-2019
1281,Revenue,CAHD,CSC - Agency Fostering,Foster Parent Allowances,Five Rivers Child Care Limited,4069.86, 29-Mar-2019
1282,Revenue,CAHD,CSC - Agency Fostering,Foster Parent Allowances,Five Rivers Child Care Limited,4291.29, 29-Mar-2019
1283,Revenue,CAHD,CSC - Agency Fostering,Foster Parent Allowances,Five Rivers Child Care Limited,3518.19, 29-Mar-2019
1284,Revenue,CAHD,CSC - Agency Fostering,Foster Parent Allowances,Foster Care Associates Limited,4131.68, 01-Mar-2019
1285,Revenue,CAHD,CSC - Asylum Seekers - Unaccompanied,Foster Parent Allowances,Foster Care Associates Limited,2406.22, 01-Mar-2019
1286,Revenue,CAHD,CSC - Fostering Carer Support,Project Funding,Foster Carer Association,1500.00, 22-Mar-2019
1287,Revenue,CAHD,Homecare - Central,Other Small Contracts,Fourways Care Limited,232.14, 06-Mar-2019
1288,Revenue,CAHD,Home Care - Elderly - South,Other Small Contracts,Fourways Care Limited,796.98, 06-Mar-2019
1289,Revenue,CAHD,Home Care - Elderly - North,Other Small Contracts,Fourways Care Limited,9079.74, 06-Mar-2019
1290,Revenue,CAHD,Homecare - Central,Other Small Contracts,Fourways Care Limited,232.14, 11-Mar-2019
1291,Revenue,CAHD,Home Care - Elderly - South,Other Small Contracts,Fourways Care Limited,788.22, 11-Mar-2019
1292,Revenue,CAHD,Home Care - Elderly - North,Other Small Contracts,Fourways Care Limited,9141.06, 11-Mar-2019
1293,Revenue,CAHD,Homecare - Central,Other Small Contracts,Fourways Care Limited,232.14, 19-Mar-2019
1294,Revenue,CAHD,Home Care - Elderly - South,Other Small Contracts,Fourways Care Limited,948.78, 19-Mar-2019
1295,Revenue,CAHD,Home Care - Elderly - North,Other Small Contracts,Fourways Care Limited,9224.28, 19-Mar-2019
1296,Revenue,CAHD,Homecare - Central,Other Small Contracts,Fourways Care Limited,281.52, 28-Mar-2019
1297,Revenue,CAHD,Home Care - Elderly - South,Other Small Contracts,Fourways Care Limited,1102.80, 28-Mar-2019
1298,Revenue,CAHD,Home Care - Elderly - North,Other Small Contracts,Fourways Care Limited,9434.52, 28-Mar-2019
1299,Revenue,CAHD,Post 16 High Needs Placements,Other Private Contractors,Foxes Academy,15755.64, 25-Mar-2019
1300,Revenue,CAHD,Post 16 High Needs Placements,Other Private Contractors,Foxes Academy,15949.06, 25-Mar-2019
1301,Revenue,CAHD,Post 16 High Needs Placements,Other Private Contractors,Foxes Academy,15425.62, 25-Mar-2019
1302,Revenue,CAHD,Post 16 High Needs Placements,Other Private Contractors,Foxes Academy,16534.79, 25-Mar-2019
1303,Revenue,CAHD,Post 16 High Needs Placements,Other Private Contractors,Foxes Academy,15823.89, 25-Mar-2019
1304,Revenue,CAHD,Supporting People Programme,Grants to Voluntary Bodies,Freeways Trust Limited,5989.85, 01-Mar-2019
1305,Revenue,CAHD,Home Care - Elderly - South,Day Care / Social Activities,Freeways Trust Limited,1090.40, 29-Mar-2019
1306,Revenue,CAHD,Home Care - Elderly - North,Other Small Contracts,Freeways Trust Limited,827.20, 15-Mar-2019
1307,Revenue,CAHD,Home Care - Elderly - North,Other Small Contracts,Freeways Trust Limited,827.20, 15-Mar-2019
1308,Revenue,CAHD,Home Care - Elderly - North,Supported Living,Freeways Trust Ltd,825.80, 12-Mar-2019
1309,Revenue,CAHD,Bed purchasing - S28A Under 65 - South,Permanent Residential,Freeways Trust Ltd,3795.56, 12-Mar-2019
1310,Revenue,CAHD,Bed Purchasing - North,Permanent Residential,Freeways Trust Ltd,3675.20, 12-Mar-2019
1311,Revenue,CAHD,Bed Purchasing - South,Permanent Residential,Freeways Trust Ltd,3897.84, 12-Mar-2019
1312,Revenue,CAHD,Bed Purchasing - North,Permanent Residential,Freeways Trust Ltd,2943.20, 12-Mar-2019
1313,Revenue,CAHD,Bed Purchasing - South,Permanent Residential,Freeways Trust Ltd,3101.48, 12-Mar-2019
1314,Revenue,CAHD,Bed Purchasing - North,Permanent Residential,Freeways Trust Ltd,3250.60, 12-Mar-2019
1315,Revenue,CAHD,Bed Purchasing - North,Permanent Residential,Freeways Trust Ltd,3890.76, 12-Mar-2019
1316,Revenue,CAHD,18-25 Year Olds,Permanent Residential,Freeways Trust Ltd,3594.20, 12-Mar-2019
1317,Revenue,CAHD,Section 117 Placements MH Younger,Permanent Residential,Freeways Trust Ltd,3260.80, 12-Mar-2019
1318,Revenue,CAHD,Homecare - Central,Day Care / Social Activities,Frenchay Beckspool Building,1851.36, 12-Mar-2019
1319,Revenue,CAHD,Home Care - Elderly - South,Day Care / Social Activities,Frenchay Beckspool Building,881.60, 12-Mar-2019
1320,Revenue,CAHD,Home Care - Elderly - South,Day Care / Social Activities,Frenchay Beckspool Building,625.12, 12-Mar-2019
1321,Revenue,CAHD,Bed Purchasing - Southmead Hospital,Permanent Nursing,Frenchay Park Nursing Home,3400.00, 12-Mar-2019
1322,Revenue,CAHD,Bed Purchasing - North,Permanent Nursing,Frenchay Park Nursing Home,3400.00, 12-Mar-2019
1323,Revenue,CAHD,Bed Purchasing - North,Permanent Nursing,Frenchay Park Nursing Home,3260.80, 12-Mar-2019
1324,Revenue,CAHD,Early Years Inclusion Fund,Other Public Bodies,Frenchay Pre-School,1500.00, 19-Mar-2019
1325,Revenue,CAHD,Sexual Health,Other Small Contracts,Frome Valley Medical Centre,1851.50, 20-Mar-2019
1326,Revenue,CAHD,Sexual Health,Other Small Contracts,Frome Valley Medical Centre,1321.42, 20-Mar-2019
1327,Revenue,CAHD,CSC - Through & Leaving Care Team,Agency Staff (Admin/Support Staff) Pay,Frontline Staffing Ltd,1731.23, 04-Mar-2019
1328,Revenue,CAHD,CSC - Social Work Team - SOUTH,Agency Staff (Admin/Support Staff) Pay,Frontline Staffing Ltd,1871.60, 06-Mar-2019
1329,Revenue,CAHD,CSC - Social Work Team - NORTH,Agency Staff (Admin/Support Staff) Pay,Frontline Staffing Ltd,1707.84, 06-Mar-2019
1330,Revenue,CAHD,CSC - Social Work Team - NORTH,Agency Staff (Admin/Support Staff) Pay,Frontline Staffing Ltd,1871.60, 06-Mar-2019
1331,Revenue,CAHD,CSC - Social Work Team - CENTRAL,Agency Staff (Admin/Support Staff) Pay,Frontline Staffing Ltd,1778.02, 06-Mar-2019
1332,Revenue,CAHD,CSC - Social Work Team - SOUTH,Agency Staff (Admin/Support Staff) Pay,Frontline Staffing Ltd,1871.60, 07-Mar-2019
1333,Revenue,CAHD,CSC - Social Work Team - SOUTH,Agency Staff (Admin/Support Staff) Pay,Frontline Staffing Ltd,1871.60, 29-Mar-2019
1334,Revenue,CAHD,CSC - Social Work Team - NORTH,Agency Staff (Admin/Support Staff) Pay,Frontline Staffing Ltd,1731.23, 11-Mar-2019
1335,Revenue,CAHD,CSC - Social Work Team - NORTH,Agency Staff (Admin/Support Staff) Pay,Frontline Staffing Ltd,1871.60, 11-Mar-2019
1336,Revenue,CAHD,CSC - Social Work Team - CENTRAL,Agency Staff (Admin/Support Staff) Pay,Frontline Staffing Ltd,1801.42, 11-Mar-2019
1337,Revenue,CAHD,CSC - Social Work Team - CENTRAL,Agency Staff (Admin/Support Staff) Pay,Frontline Staffing Ltd,1778.02, 11-Mar-2019
1338,Revenue,CAHD,CSC - Social Work Team - SOUTH,Agency Staff (Admin/Support Staff) Pay,Frontline Staffing Ltd,1871.60, 12-Mar-2019
1339,Revenue,CAHD,CSC - Through & Leaving Care Team,Agency Staff (Admin/Support Staff) Pay,Frontline Staffing Ltd,1731.23, 12-Mar-2019
1340,Revenue,CAHD,CSC - Social Work Team - SOUTH,Agency Staff (Admin/Support Staff) Pay,Frontline Staffing Ltd,1871.60, 13-Mar-2019
1341,Revenue,CAHD,CSC - Through & Leaving Care Team,Agency Staff (Admin/Support Staff) Pay,Frontline Staffing Ltd,2175.74, 18-Mar-2019
1342,Revenue,CAHD,CSC - Social Work Team - CENTRAL,Agency Staff (Admin/Support Staff) Pay,Frontline Staffing Ltd,1731.23, 18-Mar-2019
1343,Revenue,CAHD,CSC - Social Work Team - NORTH,Agency Staff (Admin/Support Staff) Pay,Frontline Staffing Ltd,1871.60, 19-Mar-2019
1344,Revenue,CAHD,CSC - Social Work Team - NORTH,Agency Staff (Admin/Support Staff) Pay,Frontline Staffing Ltd,1731.23, 25-Mar-2019
1345,Revenue,CAHD,CSC - Social Work Team - NORTH,Agency Staff (Admin/Support Staff) Pay,Frontline Staffing Ltd,1731.23, 25-Mar-2019
1346,Revenue,CAHD,CSC - Social Work Team - CENTRAL,Agency Staff (Admin/Support Staff) Pay,Frontline Staffing Ltd,1731.23, 25-Mar-2019
1347,Revenue,CAHD,CSC - Through & Leaving Care Team,Agency Staff (Admin/Support Staff) Pay,Frontline Staffing Ltd,1778.02, 25-Mar-2019
1348,Revenue,CAHD,CSC - Social Work Team - CENTRAL,Agency Staff (Admin/Support Staff) Pay,Frontline Staffing Ltd,1731.23, 25-Mar-2019
1349,Revenue,CAHD,CSC - Social Work Team - SOUTH,Agency Staff (Admin/Support Staff) Pay,Frontline Staffing Ltd,1871.60, 29-Mar-2019
1350,Revenue,CAHD,CSC - Social Work Team - SOUTH,Agency Staff (Admin/Support Staff) Pay,Frontline Staffing Ltd,1871.60, 29-Mar-2019
1351,Revenue,CAHD,CSC - Social Work Team - SOUTH,Agency Staff (Admin/Support Staff) Pay,Frontline Staffing Ltd,1871.60, 29-Mar-2019
1352,Revenue,CAHD,CSC - Social Work Team - NORTH,Agency Staff (Admin/Support Staff) Pay,Frontline Staffing Ltd,1871.60, 27-Mar-2019
1353,Revenue,CAHD,Bed Purchasing - South,Permanent Nursing,Fshc  1St Floor,2670.96, 12-Mar-2019
1354,Revenue,CAHD,South Glos Users in South Glos Homes,Permanent Nursing,Fshc  1St Floor,632.64, 12-Mar-2019
1355,Revenue,CAHD,Bed Purchasing - South,Permanent Nursing,Fshc  1St Floor,2324.64, 12-Mar-2019
1356,Revenue,CAHD,Bed Purchasing - South,Permanent Nursing,Fshc  1St Floor,2310.44, 12-Mar-2019
1357,Revenue,CAHD,South Glos Users in South Glos Homes,Permanent Nursing,Fshc  1St Floor,632.64, 12-Mar-2019
1358,Revenue,CAHD,Bed Purchasing - Southmead Hospital,Permanent Nursing,Fshc  1St Floor,2310.44, 12-Mar-2019
1359,Revenue,CAHD,South Glos Users in South Glos Homes,Permanent Nursing,Fshc  1St Floor,632.64, 12-Mar-2019
1360,Revenue,CAHD,Bed Purchasing - South,Permanent Residential,Fshc  1St Floor,2404.84, 12-Mar-2019
1361,Revenue,CAHD,Bed Purchasing - South,Permanent Nursing,Fshc  1St Floor,2560.00, 12-Mar-2019
1362,Revenue,CAHD,South Glos Users in South Glos Homes,Permanent Nursing,Fshc  1St Floor,632.64, 12-Mar-2019
1363,Revenue,CAHD,South Glos Users in South Glos Homes,Permanent Nursing,Fshc  1St Floor,632.64, 12-Mar-2019
1364,Revenue,CAHD,Bed Purchasing - North,Permanent Nursing,Fshc  1St Floor,2824.00, 12-Mar-2019
1365,Revenue,CAHD,South Glos Users in South Glos Homes,Permanent Nursing,Fshc  1St Floor,632.64, 12-Mar-2019
1366,Revenue,CAHD,Bed Purchasing - Southmead Hospital,Permanent Nursing,Fshc  1St Floor,3200.00, 12-Mar-2019
1367,Revenue,CAHD,South Glos Users in South Glos Homes,Permanent Nursing,Fshc  1St Floor,632.64, 12-Mar-2019
1368,Revenue,CAHD,Bed Purchasing - South,Permanent Nursing,Fshc  1St Floor,2600.00, 12-Mar-2019
1369,Revenue,CAHD,South Glos Users in South Glos Homes,Permanent Nursing,Fshc  1St Floor,632.64, 12-Mar-2019
1370,Revenue,CAHD,South Glos Users in South Glos Homes,Permanent Nursing,Fshc  1St Floor,632.64, 12-Mar-2019
1371,Revenue,CAHD,South Glos Users in South Glos Homes,Permanent Nursing,Fshc  1St Floor,632.64, 12-Mar-2019
1372,Revenue,CAHD,Bed Purchasing - South,Respite Emergency - Nursing,Fshc  1St Floor,9440.00, 12-Mar-2019
1373,Revenue,CAHD,Bed Purchasing - South,Permanent Nursing,Fshc  1St Floor,2824.00, 12-Mar-2019
1374,Revenue,CAHD,Bed Purchasing - South,Permanent Nursing,Fshc  1St Floor,2560.00, 12-Mar-2019
1375,Revenue,CAHD,South Glos Users in South Glos Homes,Permanent Nursing,Fshc  1St Floor,632.64, 12-Mar-2019
1376,Revenue,CAHD,South Glos Users in South Glos Homes,Permanent Nursing,Fshc  1St Floor,632.64, 12-Mar-2019
1377,Revenue,CAHD,South Glos Users in South Glos Homes,Permanent Nursing,Fshc  1St Floor,632.64, 12-Mar-2019
1378,Revenue,CAHD,South Glos Users in South Glos Homes,Permanent Nursing,Fshc  1St Floor,632.64, 12-Mar-2019
1379,Revenue,CAHD,South Glos Users in South Glos Homes,Permanent Nursing,Fshc  1St Floor,632.64, 12-Mar-2019
1380,Revenue,CAHD,Bed Purchasing - South,Permanent Nursing,Fshc  1St Floor,2800.00, 12-Mar-2019
1381,Revenue,CAHD,Bed Purchasing - South,Respite Planned - Nursing,Fshc  1St Floor,3800.00, 12-Mar-2019
1382,Revenue,CAHD,Bed Purchasing - South,Respite Planned - Nursing,Fshc  1St Floor,1764.29, 12-Mar-2019
1383,Revenue,CAHD,Bed Purchasing - South,Permanent Nursing,Fshc  1St Floor,2324.64, 12-Mar-2019
1384,Revenue,CAHD,South Glos Users in South Glos Homes,Permanent Nursing,Fshc  1St Floor,632.64, 12-Mar-2019
1385,Revenue,CAHD,Bed Purchasing - South,Permanent Nursing,Fshc  1St Floor,2404.84, 12-Mar-2019
1386,Revenue,CAHD,South Glos Users in South Glos Homes,Permanent Nursing,Fshc  1St Floor,632.64, 12-Mar-2019
1387,Revenue,CAHD,Bed Purchasing - South,Permanent Nursing,Fshc  1St Floor,2310.44, 12-Mar-2019
1388,Revenue,CAHD,South Glos Users in South Glos Homes,Permanent Nursing,Fshc  1St Floor,632.64, 12-Mar-2019
1389,Revenue,CAHD,Bed Purchasing - South,Permanent Nursing,Fshc  1St Floor,2310.44, 12-Mar-2019
1390,Revenue,CAHD,South Glos Users in South Glos Homes,Permanent Nursing,Fshc  1St Floor,632.64, 12-Mar-2019
1391,Revenue,CAHD,South Glos Users in South Glos Homes,Permanent Nursing,Fshc  1St Floor,835.99, 12-Mar-2019
1392,Revenue,CAHD,Bed Purchasing - South,Permanent Nursing,Fshc  1St Floor,2310.44, 12-Mar-2019
1393,Revenue,CAHD,South Glos Users in South Glos Homes,Permanent Nursing,Fshc  1St Floor,632.64, 12-Mar-2019
1394,Revenue,CAHD,Bed Purchasing - South,Permanent Nursing,Fshc  1St Floor,3072.00, 12-Mar-2019
1395,Revenue,CAHD,South Glos Users in South Glos Homes,Permanent Nursing,Fshc  1St Floor,632.64, 12-Mar-2019
1396,Revenue,CAHD,Bed Purchasing - South,Permanent Nursing,Fshc  1St Floor,2324.64, 12-Mar-2019
1397,Revenue,CAHD,South Glos Users in South Glos Homes,Permanent Nursing,Fshc  1St Floor,632.64, 12-Mar-2019
1398,Revenue,CAHD,South Glos Users in South Glos Homes,Permanent Nursing,Fshc  1St Floor,632.64, 12-Mar-2019
1399,Revenue,CAHD,Bed Purchasing - South,Permanent Nursing,Fshc  1St Floor,2445.60, 12-Mar-2019
1400,Revenue,CAHD,Bed Purchasing - South,Permanent Nursing,Fshc  1St Floor,3097.76, 12-Mar-2019
1401,Revenue,CAHD,South Glos Users in South Glos Homes,Permanent Nursing,Fshc  1St Floor,632.64, 12-Mar-2019
1402,Revenue,CAHD,Bed Purchasing - South,Permanent Nursing,Fshc  1St Floor,2404.84, 12-Mar-2019
1403,Revenue,CAHD,South Glos Users in South Glos Homes,Permanent Nursing,Fshc  1St Floor,632.64, 12-Mar-2019
1404,Revenue,CAHD,Bed Purchasing - South,Permanent Nursing,Fshc  1St Floor,2864.24, 12-Mar-2019
1405,Revenue,CAHD,Bed Purchasing - North,Permanent Residential,Fshc  1St Floor,2824.00, 12-Mar-2019
1406,Revenue,CAHD,South Glos Users in South Glos Homes,Permanent Nursing,Fshc  1St Floor,632.64, 12-Mar-2019
1407,Revenue,CAHD,Bed Purchasing - Central,Permanent Nursing,Fshc  1St Floor,2310.44, 12-Mar-2019
1408,Revenue,CAHD,South Glos Users in South Glos Homes,Permanent Nursing,Fshc  1St Floor,632.64, 12-Mar-2019
1409,Revenue,CAHD,Bed Purchasing - Central,Permanent Nursing,Fshc  1St Floor,2339.64, 12-Mar-2019
1410,Revenue,CAHD,South Glos Users in South Glos Homes,Permanent Nursing,Fshc  1St Floor,632.64, 12-Mar-2019
1411,Revenue,CAHD,Bed Purchasing - Central,Permanent Nursing,Fshc  1St Floor,2339.64, 12-Mar-2019
1412,Revenue,CAHD,South Glos Users in South Glos Homes,Permanent Nursing,Fshc  1St Floor,632.64, 12-Mar-2019
1413,Revenue,CAHD,South Glos Users in South Glos Homes,Permanent Nursing,Fshc  1St Floor,632.64, 12-Mar-2019
1414,Revenue,CAHD,Bed Purchasing - Central,Permanent Residential,Fshc  1St Floor,2700.00, 12-Mar-2019
1415,Revenue,CAHD,Bed Purchasing - Central,Permanent Residential,Fshc  1St Floor,2700.00, 12-Mar-2019
1416,Revenue,CAHD,Bed Purchasing - Central,Permanent Residential,Fshc  1St Floor,2148.68, 12-Mar-2019
1417,Revenue,CAHD,South Glos Users in South Glos Homes,Permanent Nursing,Fshc  1St Floor,632.64, 12-Mar-2019
1418,Revenue,CAHD,South Glos Users in South Glos Homes,Permanent Nursing,Fshc  1St Floor,632.64, 12-Mar-2019
1419,Revenue,CAHD,Bed Purchasing - North,Permanent Residential,Fshc  1St Floor,2832.84, 12-Mar-2019
1420,Revenue,CAHD,Bed Purchasing - South,Permanent Residential,Fshc  1St Floor,2751.32, 12-Mar-2019
1421,Revenue,CAHD,Bed Purchasing - North,Permanent Nursing,Fshc  1St Floor,2339.64, 12-Mar-2019
1422,Revenue,CAHD,South Glos Users in South Glos Homes,Permanent Nursing,Fshc  1St Floor,632.64, 12-Mar-2019
1423,Revenue,CAHD,Bed Purchasing - Central,Permanent Nursing,Fshc  1St Floor,2311.20, 12-Mar-2019
1424,Revenue,CAHD,South Glos Users in South Glos Homes,Permanent Nursing,Fshc  1St Floor,632.64, 12-Mar-2019
1425,Revenue,CAHD,Bed Purchasing - Central,Permanent Nursing,Fshc  1St Floor,2310.44, 12-Mar-2019
1426,Revenue,CAHD,South Glos Users in South Glos Homes,Permanent Nursing,Fshc  1St Floor,632.64, 12-Mar-2019
1427,Revenue,CAHD,Bed Purchasing - North,Permanent Nursing,Fshc  1St Floor,2310.44, 12-Mar-2019
1428,Revenue,CAHD,South Glos Users in South Glos Homes,Permanent Nursing,Fshc  1St Floor,632.64, 12-Mar-2019
1429,Revenue,CAHD,South Glos Users in South Glos Homes,Permanent Nursing,Fshc  1St Floor,632.64, 12-Mar-2019
1430,Revenue,CAHD,Bed Purchasing - Central,Permanent Residential,Fshc  1St Floor,2700.00, 12-Mar-2019
1431,Revenue,CAHD,Bed Purchasing - North,Permanent Nursing,Fshc  1St Floor,2339.64, 12-Mar-2019
1432,Revenue,CAHD,South Glos Users in South Glos Homes,Permanent Nursing,Fshc  1St Floor,632.64, 12-Mar-2019
1433,Revenue,CAHD,Bed Purchasing - North,Permanent Nursing,Fshc  1St Floor,2339.64, 12-Mar-2019
1434,Revenue,CAHD,South Glos Users in South Glos Homes,Permanent Nursing,Fshc  1St Floor,632.64, 12-Mar-2019
1435,Revenue,CAHD,Bed Purchasing - North,Permanent Nursing,Fshc  1St Floor,2310.44, 12-Mar-2019
1436,Revenue,CAHD,South Glos Users in South Glos Homes,Permanent Nursing,Fshc  1St Floor,632.64, 12-Mar-2019
1437,Revenue,CAHD,South Glos Users in South Glos Homes,Permanent Nursing,Fshc  1St Floor,632.64, 12-Mar-2019
1438,Revenue,CAHD,South Glos Users in South Glos Homes,Permanent Nursing,Fshc  1St Floor,632.64, 12-Mar-2019
1439,Revenue,CAHD,Bed Purchasing - North,Permanent Nursing,Fshc  1St Floor,2382.00, 12-Mar-2019
1440,Revenue,CAHD,South Glos Users in South Glos Homes,Permanent Nursing,Fshc  1St Floor,632.64, 12-Mar-2019
1441,Revenue,CAHD,South Glos Users in South Glos Homes,Permanent Nursing,Fshc  1St Floor,632.64, 12-Mar-2019
1442,Revenue,CAHD,Bed Purchasing - North,Permanent Residential,Fshc  1St Floor,2382.00, 12-Mar-2019
1443,Revenue,CAHD,South Glos Users in South Glos Homes,Permanent Nursing,Fshc  1St Floor,632.64, 12-Mar-2019
1444,Revenue,CAHD,South Glos Users in South Glos Homes,Permanent Nursing,Fshc  1St Floor,632.64, 12-Mar-2019
1445,Revenue,CAHD,South Glos Users in South Glos Homes,Permanent Nursing,Fshc  1St Floor,632.64, 12-Mar-2019
1446,Revenue,CAHD,Bed Purchasing - Central,Permanent Nursing,Fshc  1St Floor,2310.44, 12-Mar-2019
1447,Revenue,CAHD,South Glos Users in South Glos Homes,Permanent Nursing,Fshc  1St Floor,632.64, 12-Mar-2019
1448,Revenue,CAHD,South Glos Users in South Glos Homes,Permanent Nursing,Fshc  1St Floor,632.64, 12-Mar-2019
1449,Revenue,CAHD,South Glos Users in South Glos Homes,Permanent Nursing,Fshc  1St Floor,632.64, 12-Mar-2019
1450,Revenue,CAHD,Bed Purchasing - North,Permanent Nursing,Fshc  1St Floor,2310.44, 12-Mar-2019
1451,Revenue,CAHD,South Glos Users in South Glos Homes,Permanent Nursing,Fshc  1St Floor,632.64, 12-Mar-2019
1452,Revenue,CAHD,South Glos Users in South Glos Homes,Permanent Nursing,Fshc  1St Floor,632.64, 12-Mar-2019
1453,Revenue,CAHD,Bed Purchasing - Elderly S117- North,Permanent Nursing,Fshc  1St Floor,2380.00, 12-Mar-2019
1454,Revenue,CAHD,South Glos Users in South Glos Homes,Permanent Nursing,Fshc  1St Floor,632.64, 12-Mar-2019
1455,Revenue,CAHD,South Glos Users in South Glos Homes,Permanent Nursing,Fshc  1St Floor,632.64, 12-Mar-2019
1456,Revenue,CAHD,South Glos Users in South Glos Homes,Permanent Nursing,Fshc  1St Floor,632.64, 12-Mar-2019
1457,Revenue,CAHD,Bed Purchasing - Central,Permanent Nursing,Fshc  1St Floor,2311.20, 12-Mar-2019
1458,Revenue,CAHD,South Glos Users in South Glos Homes,Permanent Nursing,Fshc  1St Floor,1671.98, 12-Mar-2019
1459,Revenue,CAHD,South Glos Users in South Glos Homes,Permanent Nursing,Fshc  1St Floor,632.64, 12-Mar-2019
1460,Revenue,CAHD,Bed Purchasing - Central,Permanent Nursing,Fshc  1St Floor,2311.20, 12-Mar-2019
1461,Revenue,CAHD,South Glos Users in South Glos Homes,Permanent Nursing,Fshc  1St Floor,632.64, 12-Mar-2019
1462,Revenue,CAHD,Bed Purchasing - North,Permanent Nursing,Fshc  1St Floor,2380.00, 12-Mar-2019
1463,Revenue,CAHD,South Glos Users in South Glos Homes,Permanent Nursing,Fshc  1St Floor,632.64, 12-Mar-2019
1464,Revenue,CAHD,Bed Purchasing - Southmead Hospital,Permanent Nursing,Fshc  1St Floor,2311.20, 12-Mar-2019
1465,Revenue,CAHD,Bed Purchasing - Southmead Hospital,Permanent Nursing,Fshc  1St Floor,1073.06, 12-Mar-2019
1466,Revenue,CAHD,Bed Purchasing - Central,Permanent Residential,Fshc  1St Floor,2768.00, 12-Mar-2019
1467,Revenue,CAHD,Bed Purchasing - Central,Permanent Residential,Fshc  1St Floor,1285.14, 12-Mar-2019
1468,Revenue,CAHD,Bed Purchasing - North,Permanent Nursing,Fshc  1St Floor,2310.44, 12-Mar-2019
1469,Revenue,CAHD,South Glos Users in South Glos Homes,Permanent Nursing,Fshc  1St Floor,632.64, 12-Mar-2019
1470,Revenue,CAHD,Bed Purchasing - North,Permanent Nursing,Fshc  1St Floor,2310.44, 12-Mar-2019
1471,Revenue,CAHD,South Glos Users in South Glos Homes,Permanent Nursing,Fshc  1St Floor,632.64, 12-Mar-2019
1472,Revenue,CAHD,South Glos Users in South Glos Homes,Permanent Nursing,Fshc  1St Floor,632.64, 12-Mar-2019
1473,Revenue,CAHD,Bed Purchasing - Central,Permanent Nursing,Fshc  1St Floor,2310.44, 12-Mar-2019
1474,Revenue,CAHD,South Glos Users in South Glos Homes,Permanent Nursing,Fshc  1St Floor,632.64, 12-Mar-2019
1475,Revenue,CAHD,Bed Purchasing - North,Permanent Nursing,Fshc  1St Floor,2380.96, 12-Mar-2019
1476,Revenue,CAHD,South Glos Users in South Glos Homes,Permanent Nursing,Fshc  1St Floor,632.64, 12-Mar-2019
1477,Revenue,CAHD,South Glos Users in South Glos Homes,Permanent Nursing,Fshc  1St Floor,632.64, 12-Mar-2019
1478,Revenue,CAHD,Bed Purchasing - North,Permanent Nursing,Fshc  1St Floor,2270.32, 12-Mar-2019
1479,Revenue,CAHD,South Glos Users in South Glos Homes,Permanent Nursing,Fshc  1St Floor,632.64, 12-Mar-2019
1480,Revenue,CAHD,Bed Purchasing - North,Permanent Nursing,Fshc  1St Floor,2380.96, 12-Mar-2019
1481,Revenue,CAHD,South Glos Users in South Glos Homes,Permanent Nursing,Fshc  1St Floor,632.64, 12-Mar-2019
1482,Revenue,CAHD,Bed Purchasing - Central,Permanent Nursing,Fshc  1St Floor,2427.84, 12-Mar-2019
1483,Revenue,CAHD,South Glos Users in South Glos Homes,Permanent Nursing,Fshc  1St Floor,632.64, 12-Mar-2019
1484,Revenue,CAHD,Bed Purchasing - North,Permanent Nursing,Fshc  1St Floor,2310.44, 12-Mar-2019
1485,Revenue,CAHD,South Glos Users in South Glos Homes,Permanent Nursing,Fshc  1St Floor,632.64, 12-Mar-2019
1486,Revenue,CAHD,Bed Purchasing - North,Permanent Nursing,Fshc  1St Floor,2310.44, 12-Mar-2019
1487,Revenue,CAHD,South Glos Users in South Glos Homes,Permanent Nursing,Fshc  1St Floor,632.64, 12-Mar-2019
1488,Revenue,CAHD,Bed Purchasing - Central,Permanent Nursing,Fshc  1St Floor,3158.92, 12-Mar-2019
1489,Revenue,CAHD,South Glos Users in South Glos Homes,Permanent Nursing,Fshc  1St Floor,632.64, 12-Mar-2019
1490,Revenue,CAHD,Bed Purchasing - Central,Permanent Nursing,Fshc  1St Floor,3391.04, 12-Mar-2019
1491,Revenue,CAHD,South Glos Users in South Glos Homes,Permanent Nursing,Fshc  1St Floor,632.64, 12-Mar-2019
1492,Revenue,CAHD,South Glos Users in South Glos Homes,Permanent Nursing,Fshc  1St Floor,632.64, 12-Mar-2019
1493,Revenue,CAHD,South Glos Users in South Glos Homes,Permanent Nursing,Fshc  1St Floor,632.64, 12-Mar-2019
1494,Revenue,CAHD,South Glos Users in South Glos Homes,Permanent Nursing,Fshc  1St Floor,632.64, 12-Mar-2019
1495,Revenue,CAHD,Bed Purchasing - North,Permanent Nursing,Fshc  1St Floor,2323.12, 12-Mar-2019
1496,Revenue,CAHD,South Glos Users in South Glos Homes,Permanent Nursing,Fshc  1St Floor,632.64, 12-Mar-2019
1497,Revenue,CAHD,Bed Purchasing - Southmead Hospital,Respite Planned - Nursing,Fshc  1St Floor,3400.00, 12-Mar-2019
1498,Revenue,CAHD,Bed Purchasing - Southmead Hospital,Respite Planned - Nursing,Fshc  1St Floor,2064.29, 12-Mar-2019
1499,Revenue,CAHD,Bed Purchasing - Elderly S117- North,Respite Emergency - Nursing,Fshc  1St Floor,5759.60, 12-Mar-2019
1500,Revenue,CAHD,South Glos Users in South Glos Homes,Permanent Nursing,Fshc  1St Floor,632.64, 12-Mar-2019
1501,Revenue,CAHD,Bed Purchasing - Central,Permanent Nursing,Fshc  1St Floor,2667.36, 12-Mar-2019
1502,Revenue,CAHD,South Glos Users in South Glos Homes,Permanent Nursing,Fshc  1St Floor,632.64, 12-Mar-2019
1503,Revenue,CAHD,Bed Purchasing - Central,Permanent Nursing,Fshc  1St Floor,2867.36, 12-Mar-2019
1504,Revenue,CAHD,South Glos Users in South Glos Homes,Permanent Nursing,Fshc  1St Floor,632.64, 12-Mar-2019
1505,Revenue,CAHD,Bed Purchasing - Central,Permanent Nursing,Fshc  1St Floor,2927.36, 12-Mar-2019
1506,Revenue,CAHD,South Glos Users in South Glos Homes,Permanent Nursing,Fshc  1St Floor,632.64, 12-Mar-2019
1507,Revenue,CAHD,South Glos Users in South Glos Homes,Permanent Nursing,Fshc  1St Floor,632.64, 12-Mar-2019
1508,Revenue,CAHD,Bed Purchasing - Central,Respite Planned - Nursing,Fshc  1St Floor,2526.92, 12-Mar-2019
1509,Revenue,CAHD,South Glos Users in South Glos Homes,Permanent Nursing,Fshc  1St Floor,632.64, 12-Mar-2019
1510,Revenue,CAHD,South Glos Users in South Glos Homes,Permanent Nursing,Fshc  1St Floor,632.64, 12-Mar-2019
1511,Revenue,CAHD,Bed Purchasing - Central,Permanent Nursing,Fshc  1St Floor,2547.52, 12-Mar-2019
1512,Revenue,CAHD,South Glos Users in South Glos Homes,Permanent Nursing,Fshc  1St Floor,632.64, 12-Mar-2019
1513,Revenue,CAHD,South Glos Users in South Glos Homes,Permanent Nursing,Fshc  1St Floor,632.64, 12-Mar-2019
1514,Revenue,CAHD,South Glos Users in South Glos Homes,Permanent Nursing,Fshc  1St Floor,632.64, 12-Mar-2019
1515,Revenue,CAHD,Bed Purchasing - North,Permanent Nursing,Fshc  1St Floor,3347.36, 12-Mar-2019
1516,Revenue,CAHD,South Glos Users in South Glos Homes,Permanent Nursing,Fshc  1St Floor,632.64, 12-Mar-2019
1517,Revenue,CAHD,South Glos Users in South Glos Homes,Permanent Nursing,Fshc  1St Floor,632.64, 12-Mar-2019
1518,Revenue,CAHD,Bed Purchasing - Central,Permanent Nursing,Fshc  1St Floor,2380.96, 12-Mar-2019
1519,Revenue,CAHD,South Glos Users in South Glos Homes,Permanent Nursing,Fshc  1St Floor,632.64, 12-Mar-2019
1520,Revenue,CAHD,Bed Purchasing - Central,Permanent Nursing,Fshc  1St Floor,2967.36, 12-Mar-2019
1521,Revenue,CAHD,South Glos Users in South Glos Homes,Permanent Nursing,Fshc  1St Floor,632.64, 12-Mar-2019
1522,Revenue,CAHD,South Glos Users in South Glos Homes,Permanent Nursing,Fshc  1St Floor,632.64, 12-Mar-2019
1523,Revenue,CAHD,Bed Purchasing - North,Permanent Nursing,Fshc  1St Floor,2767.76, 12-Mar-2019
1524,Revenue,CAHD,South Glos Users in South Glos Homes,Permanent Nursing,Fshc  1St Floor,632.64, 12-Mar-2019
1525,Revenue,CAHD,South Glos Users in South Glos Homes,Permanent Nursing,Fshc  1St Floor,632.64, 12-Mar-2019
1526,Revenue,CAHD,Bed Purchasing - Central,Permanent Nursing,Fshc  1St Floor,3158.92, 12-Mar-2019
1527,Revenue,CAHD,South Glos Users in South Glos Homes,Permanent Nursing,Fshc  1St Floor,632.64, 12-Mar-2019
1528,Revenue,CAHD,Bed Purchasing - North,Permanent Nursing,Fshc  1St Floor,2456.52, 12-Mar-2019
1529,Revenue,CAHD,South Glos Users in South Glos Homes,Permanent Nursing,Fshc  1St Floor,632.64, 12-Mar-2019
1530,Revenue,CAHD,Bed Purchasing - South,Permanent Nursing,Fshc  1St Floor,2554.80, 12-Mar-2019
1531,Revenue,CAHD,South Glos Users in South Glos Homes,Permanent Nursing,Fshc  1St Floor,632.64, 12-Mar-2019
1532,Revenue,CAHD,Bed Purchasing - Central,Permanent Nursing,Fshc  1St Floor,2380.96, 12-Mar-2019
1533,Revenue,CAHD,South Glos Users in South Glos Homes,Permanent Nursing,Fshc  1St Floor,632.64, 12-Mar-2019
1534,Revenue,CAHD,Bed Purchasing - South,Permanent Nursing,Fshc  1St Floor,2477.40, 12-Mar-2019
1535,Revenue,CAHD,South Glos Users in South Glos Homes,Permanent Nursing,Fshc  1St Floor,632.64, 12-Mar-2019
1536,Revenue,CAHD,Bed Purchasing - South,Permanent Nursing,Fshc  1St Floor,3167.36, 12-Mar-2019
1537,Revenue,CAHD,South Glos Users in South Glos Homes,Permanent Nursing,Fshc  1St Floor,632.64, 12-Mar-2019
1538,Revenue,CAHD,Bed Purchasing - South,Permanent Nursing,Fshc  1St Floor,2547.52, 12-Mar-2019
1539,Revenue,CAHD,South Glos Users in South Glos Homes,Permanent Nursing,Fshc  1St Floor,632.64, 12-Mar-2019
1540,Revenue,CAHD,Bed Purchasing - South,Permanent Nursing,Fshc  1St Floor,2310.44, 12-Mar-2019
1541,Revenue,CAHD,South Glos Users in South Glos Homes,Permanent Nursing,Fshc  1St Floor,632.64, 12-Mar-2019
1542,Revenue,CAHD,South Glos Users in South Glos Homes,Permanent Nursing,Fshc  1St Floor,632.64, 12-Mar-2019
1543,Revenue,CAHD,Bed Purchasing - South,Permanent Nursing,Fshc  1St Floor,2445.60, 12-Mar-2019
1544,Revenue,CAHD,South Glos Users in South Glos Homes,Permanent Nursing,Fshc  1St Floor,632.64, 12-Mar-2019
1545,Revenue,CAHD,South Glos Users in South Glos Homes,Permanent Nursing,Fshc  1St Floor,632.64, 12-Mar-2019
1546,Revenue,CAHD,Bed Purchasing - South,Permanent Residential,Fshc  1St Floor,2600.00, 12-Mar-2019
1547,Revenue,CAHD,South Glos Users in South Glos Homes,Permanent Nursing,Fshc  1St Floor,632.64, 12-Mar-2019
1548,Revenue,CAHD,South Glos Users in South Glos Homes,Permanent Nursing,Fshc  1St Floor,632.64, 12-Mar-2019
1549,Revenue,CAHD,Bed Purchasing - South,Permanent Residential,Fshc  1St Floor,2343.72, 12-Mar-2019
1550,Revenue,CAHD,South Glos Users in South Glos Homes,Permanent Nursing,Fshc  1St Floor,632.64, 12-Mar-2019
1551,Revenue,CAHD,Bed Purchasing - South,Permanent Residential,Fshc  1St Floor,2400.00, 12-Mar-2019
1552,Revenue,CAHD,South Glos Users in South Glos Homes,Permanent Nursing,Fshc  1St Floor,632.64, 12-Mar-2019
1553,Revenue,CAHD,Bed Purchasing - South,Permanent Residential,Fshc  1St Floor,2180.68, 12-Mar-2019
1554,Revenue,CAHD,Bed Purchasing - South,Permanent Nursing,Fshc  1St Floor,2380.96, 12-Mar-2019
1555,Revenue,CAHD,South Glos Users in South Glos Homes,Permanent Nursing,Fshc  1St Floor,632.64, 12-Mar-2019
1556,Revenue,CAHD,Bed Purchasing - South,Permanent Nursing,Fshc  1St Floor,2310.44, 12-Mar-2019
1557,Revenue,CAHD,South Glos Users in South Glos Homes,Permanent Nursing,Fshc  1St Floor,632.64, 12-Mar-2019
1558,Revenue,CAHD,Bed Purchasing - South,Permanent Nursing,Fshc  1St Floor,2683.84, 12-Mar-2019
1559,Revenue,CAHD,South Glos Users in South Glos Homes,Permanent Nursing,Fshc  1St Floor,632.64, 12-Mar-2019
1560,Revenue,CAHD,Bed Purchasing - South,Permanent Nursing,Fshc  1St Floor,2310.44, 12-Mar-2019
1561,Revenue,CAHD,South Glos Users in South Glos Homes,Permanent Nursing,Fshc  1St Floor,632.64, 12-Mar-2019
1562,Revenue,CAHD,South Glos Users in South Glos Homes,Permanent Nursing,Fshc  1St Floor,632.64, 12-Mar-2019
1563,Revenue,CAHD,Bed Purchasing - South,Permanent Residential,Fshc  1St Floor,2223.84, 12-Mar-2019
1564,Revenue,CAHD,Bed Purchasing - South,Permanent Nursing,Fshc  1St Floor,2233.76, 12-Mar-2019
1565,Revenue,CAHD,Bed purchasing - Elderly S117 - South,Permanent Nursing,Fshc  1St Floor,2233.76, 12-Mar-2019
1566,Revenue,CAHD,Bed Purchasing - South,Permanent Nursing,Fshc  1St Floor,3509.64, 12-Mar-2019
1567,Revenue,CAHD,Bed Purchasing - North,Permanent Nursing,Fshc  1St Floor,2233.76, 12-Mar-2019
1568,Revenue,CAHD,Bed Purchasing - North,Permanent Nursing,Fshc  1St Floor,3668.40, 12-Mar-2019
1569,Revenue,CAHD,Bed Purchasing - North,Permanent Nursing,Fshc  1St Floor,3158.92, 12-Mar-2019
1570,Revenue,CAHD,Bed Purchasing - South,Respite Emergency - Residential,Fshc  1St Floor,2080.00, 12-Mar-2019
1571,Revenue,CAHD,Bed Purchasing - South,Permanent Nursing,Fshc  1St Floor,2233.76, 12-Mar-2019
1572,Revenue,CAHD,Bed Purchasing - South,Permanent Residential,Fshc  1St Floor,3656.28, 12-Mar-2019
1573,Revenue,CAHD,Bed Purchasing - Southmead Hospital,Permanent Nursing,Fshc  1St Floor,2345.56, 12-Mar-2019
1574,Revenue,CAHD,South Glos Users in South Glos Homes,Permanent Nursing,Fshc  1St Floor,632.64, 12-Mar-2019
1575,Revenue,CAHD,Bed Purchasing - Southmead Hospital,Fees & Charges Income - General,Fshc  1St Floor,1231.94, 12-Mar-2019
1576,Revenue,CAHD,Bed Purchasing - North,Permanent Residential,Fshc  1St Floor,2292.20, 12-Mar-2019
1577,Revenue,CAHD,Bed Purchasing - North,Permanent Nursing,Fshc  1St Floor,2235.88, 12-Mar-2019
1578,Revenue,CAHD,Bed Purchasing - Central,Permanent Residential,Fshc  1St Floor,2292.20, 12-Mar-2019
1579,Revenue,CAHD,Bed Purchasing - Central,Permanent Nursing,Fshc  1St Floor,4076.00, 12-Mar-2019
1580,Revenue,CAHD,Bed Purchasing - North,Permanent Nursing,Fshc  1St Floor,2309.04, 12-Mar-2019
1581,Revenue,CAHD,Bed Purchasing - North,Permanent Residential,Fshc  1St Floor,2220.00, 12-Mar-2019
1582,Revenue,CAHD,Bed Purchasing - Southmead Hospital,Permanent Nursing,Fshc  1St Floor,2595.52, 12-Mar-2019
1583,Revenue,CAHD,CSC - Agency Fostering,Foster Parent Allowances,Fusion Fostering Ltd,4626.97, 26-Mar-2019
1584,Revenue,CAHD,CSC - Asylum Seekers - Unaccompanied,Adults - Family Support,Fusion Independence Limited,3321.43, 28-Mar-2019
1585,Revenue,CAHD,CSC - Care Leavers Independent Living,Independent Living,Fusion Independence Limited,17714.28, 28-Mar-2019
1586,Revenue,CAHD,Statemented Support Equipment,Educational Supplies & Equipment,G & S Smirthwaite Limited,855.00, 01-Mar-2019
1587,Revenue,CAHD,Statemented Support Equipment,Educational Supplies & Equipment,G & S Smirthwaite Limited,740.00, 06-Mar-2019
1588,Revenue,CAHD,CSC - Vinney Green Secure Unit,R & M by Departments,Gary Thomas Films,650.00, 18-Mar-2019
1589,Revenue,CAHD,CSC - Corporate Parenting Manager,Agency Staff (Admin/Support Staff) Pay,Gatenby Sanderson Limited,2610.00, 13-Mar-2019
1590,Revenue,CAHD,CSC - Corporate Parenting Manager,Agency Staff (Admin/Support Staff) Pay,Gatenby Sanderson Limited,2320.00, 04-Mar-2019
1591,Revenue,CAHD,CSC - Corporate Parenting Manager,Agency Staff (Admin/Support Staff) Pay,Gatenby Sanderson Limited,3148.80, 11-Mar-2019
1592,Revenue,CAHD,CSC - Corporate Parenting Manager,Agency Staff (Admin/Support Staff) Pay,Gatenby Sanderson Limited,2900.00, 20-Mar-2019
1593,Revenue,CAHD,CSC - Vinney Green Secure Unit,Service Contracts (Premises),GBN Primo Limited,3673.04, 04-Mar-2019
1594,Revenue,CAHD,CSC - Vinney Green Secure Unit,External Lecturers Fees,Geese Theatre Company,500.00, 25-Mar-2019
1595,Revenue,CAHD,Psychology Traded,Educational Materials,GL Education Group Ltd,2539.16, 29-Mar-2019
1596,Revenue,CAHD,Bed Purchasing - South,Permanent Residential,Gladstone House,5859.20, 12-Mar-2019
1597,Revenue,CAHD,Jointly Funded H&SC Packages,Permanent Residential,Gladstone House,765.60, 12-Mar-2019
1598,Revenue,CAHD,MH Purchasing - Younger,Permanent Residential,Gladstone House,3062.40, 12-Mar-2019
1599,Revenue,CAHD,Bed Purchasing - North,Permanent Residential,Glan Y Felin,6643.96, 12-Mar-2019
1600,Revenue,CAHD,Bed Purchasing - South,Permanent Residential,Glasallt Fawr,5219.16, 12-Mar-2019
1601,Revenue,CAHD,Bed Purchasing - North,Permanent Nursing,Glebe House Nursing Home,3578.28, 12-Mar-2019
1602,Revenue,CAHD,South Glos Users in South Glos Homes,Permanent Nursing,Glebe House Nursing Home,632.64, 12-Mar-2019
1603,Revenue,CAHD,South Glos Users in South Glos Homes,Permanent Nursing,Glebe House Nursing Home,632.64, 12-Mar-2019
1604,Revenue,CAHD,Bed Purchasing - North,Permanent Nursing,Glebe House Nursing Home,3880.00, 12-Mar-2019
1605,Revenue,CAHD,South Glos Users in South Glos Homes,Permanent Nursing,Glebe House Nursing Home,948.96, 12-Mar-2019
1606,Revenue,CAHD,South Glos Users in South Glos Homes,Permanent Nursing,Glebe House Nursing Home,632.64, 12-Mar-2019
1607,Revenue,CAHD,South Glos Users in South Glos Homes,Permanent Nursing,Glebe House Nursing Home,632.64, 12-Mar-2019
1608,Revenue,CAHD,Bed Purchasing - North,Permanent Nursing,Glebe House Nursing Home,3789.28, 12-Mar-2019
1609,Revenue,CAHD,South Glos Users in South Glos Homes,Permanent Nursing,Glebe House Nursing Home,632.64, 12-Mar-2019
1610,Revenue,CAHD,South Glos Users in South Glos Homes,Permanent Nursing,Glebe House Nursing Home,632.64, 12-Mar-2019
1611,Revenue,CAHD,South Glos Users in South Glos Homes,Permanent Nursing,Glebe House Nursing Home,632.64, 12-Mar-2019
1612,Revenue,CAHD,South Glos Users in South Glos Homes,Permanent Nursing,Glebe House Nursing Home,632.64, 12-Mar-2019
1613,Revenue,CAHD,Bed Purchasing - North,Permanent Residential,Glebe House Nursing Home,3696.32, 12-Mar-2019
1614,Revenue,CAHD,Bed Purchasing - North,Permanent Residential,Glebe House Nursing Home,3744.00, 12-Mar-2019
1615,Revenue,CAHD,Bed Purchasing - North,Permanent Nursing,Glebe House Nursing Home,3452.14, 12-Mar-2019
1616,Revenue,CAHD,Bed Purchasing - North,Permanent Nursing,Glebe House Nursing Home,3580.00, 12-Mar-2019
1617,Revenue,CAHD,South Glos Users in South Glos Homes,Permanent Nursing,Glebe House Nursing Home,632.64, 12-Mar-2019
1618,Revenue,CAHD,South Glos Users in South Glos Homes,Permanent Nursing,Glebe House Nursing Home,632.64, 12-Mar-2019
1619,Revenue,CAHD,South Glos Users in South Glos Homes,Permanent Nursing,Glebe House Nursing Home,632.64, 12-Mar-2019
1620,Revenue,CAHD,Bed Purchasing - North,Permanent Nursing,Glebe House Nursing Home,3953.72, 12-Mar-2019
1621,Revenue,CAHD,South Glos Users in South Glos Homes,Permanent Nursing,Glebe House Nursing Home,632.64, 12-Mar-2019
1622,Revenue,CAHD,South Glos Users in South Glos Homes,Permanent Nursing,Glebe House Nursing Home,632.64, 12-Mar-2019
1623,Revenue,CAHD,South Glos Users in South Glos Homes,Permanent Nursing,Glebe House Nursing Home,632.64, 12-Mar-2019
1624,Revenue,CAHD,Bed Purchasing - North,Permanent Nursing,Glebe House Nursing Home,3867.36, 12-Mar-2019
1625,Revenue,CAHD,South Glos Users in South Glos Homes,Permanent Nursing,Glebe House Nursing Home,632.64, 12-Mar-2019
1626,Revenue,CAHD,Bed Purchasing - Central,Respite Planned - Residential,Glebe House Nursing Home,3645.00, 12-Mar-2019
1627,Revenue,CAHD,South Glos Users in South Glos Homes,Permanent Nursing,Glebe House Nursing Home,632.64, 12-Mar-2019
1628,Revenue,CAHD,Bed Purchasing - North,Permanent Residential,Glebe House Nursing Home,3980.00, 12-Mar-2019
1629,Revenue,CAHD,South Glos Users in South Glos Homes,Permanent Nursing,Glebe House Nursing Home,632.64, 12-Mar-2019
1630,Revenue,CAHD,South Glos Users in South Glos Homes,Permanent Nursing,Glebe House Nursing Home,632.64, 12-Mar-2019
1631,Revenue,CAHD,Bed Purchasing - North,Permanent Nursing,Glebe House Nursing Home,3420.00, 12-Mar-2019
1632,Revenue,CAHD,South Glos Users in South Glos Homes,Permanent Nursing,Glebe House Nursing Home,632.64, 12-Mar-2019
1633,Revenue,CAHD,Bed Purchasing - South,Permanent Nursing,Glenview,2824.00, 12-Mar-2019
1634,Revenue,CAHD,Bed Purchasing - South,Permanent Nursing,Glenview,2824.00, 12-Mar-2019
1635,Revenue,CAHD,Bed Purchasing - Elderly S117- North,Permanent Nursing,Glenview,3224.00, 12-Mar-2019
1636,Revenue,CAHD,Bed Purchasing - South,Permanent Nursing,Glenview,3900.00, 12-Mar-2019
1637,Revenue,CAHD,Schools Specific Grant Income,Other Public Bodies,Gloucestershire County Council,5000.00, 19-Mar-2019
1638,Revenue,CAHD,CSC - OT Equipment - Children,Daily Living Equipment,Go Access Limited,640.00, 12-Mar-2019
1639,Revenue,CAHD,Bed Purchasing - South,Permanent Residential,Goldcare House,4625.52, 12-Mar-2019
1640,Revenue,CAHD,Bed Purchasing - South,Permanent Residential,Gordena Care Home,3924.72, 12-Mar-2019
1641,Revenue,CAHD,Bed Purchasing - South,Permanent Residential,Gordena Care Home,3784.55, 12-Mar-2019
1642,Revenue,CAHD,Bed Purchasing - South,Permanent Residential,Gordena Care Home,2635.96, 12-Mar-2019
1643,Revenue,CAHD,Bed Purchasing - South,Permanent Residential,Gordena Care Home,3752.80, 12-Mar-2019
1644,Revenue,CAHD,Bed Purchasing - South,Permanent Residential,Gordena Care Home,3764.24, 12-Mar-2019
1645,Revenue,CAHD,Bed Purchasing - South,Permanent Residential,Gordena Care Limited,4918.60, 12-Mar-2019
1646,Revenue,CAHD,Bed purchasing - S28A Under 65 - South,Permanent Residential,Gordena Care Limited,4783.60, 12-Mar-2019
1647,Revenue,CAHD,Bed Purchasing - North,Permanent Residential,Gordena Care Limited,4985.60, 12-Mar-2019
1648,Revenue,CAHD,South Glos Users in South Glos Homes,Permanent Nursing,Gracefields Nursing Home,632.64, 12-Mar-2019
1649,Revenue,CAHD,Bed Purchasing - South,Permanent Nursing,Gracefields Nursing Home,3707.36, 12-Mar-2019
1650,Revenue,CAHD,South Glos Users in South Glos Homes,Permanent Nursing,Gracefields Nursing Home,632.64, 12-Mar-2019
1651,Revenue,CAHD,South Glos Users in South Glos Homes,Permanent Nursing,Gracefields Nursing Home,632.64, 12-Mar-2019
1652,Revenue,CAHD,Bed Purchasing - South,Permanent Nursing,Gracefields Nursing Home,3566.52, 12-Mar-2019
1653,Revenue,CAHD,South Glos Users in South Glos Homes,Permanent Nursing,Gracefields Nursing Home,632.64, 12-Mar-2019
1654,Revenue,CAHD,South Glos Users in South Glos Homes,Permanent Nursing,Gracefields Nursing Home,632.64, 12-Mar-2019
1655,Revenue,CAHD,South Glos Users in South Glos Homes,Permanent Nursing,Gracefields Nursing Home,632.64, 12-Mar-2019
1656,Revenue,CAHD,Bed Purchasing - Southmead Hospital,Permanent Nursing,Gracefields Nursing Home,3567.36, 12-Mar-2019
1657,Revenue,CAHD,South Glos Users in South Glos Homes,Permanent Nursing,Gracefields Nursing Home,632.64, 12-Mar-2019
1658,Revenue,CAHD,Bed Purchasing - South,Permanent Nursing,Gracefields Nursing Home,3567.36, 12-Mar-2019
1659,Revenue,CAHD,Bed Purchasing - South,Permanent Nursing,Gracefields Nursing Home,764.43, 12-Mar-2019
1660,Revenue,CAHD,Bed purchasing - Elderly S117 - South,Permanent Nursing,Gracefields Nursing Home,2492.16, 12-Mar-2019
1661,Revenue,CAHD,South Glos Users in South Glos Homes,Permanent Nursing,Gracefields Nursing Home,632.64, 12-Mar-2019
1662,Revenue,CAHD,Bed Purchasing - South,Permanent Nursing,Gracefields Nursing Home,3668.40, 12-Mar-2019
1663,Revenue,CAHD,South Glos Users in South Glos Homes,Permanent Nursing,Gracefields Nursing Home,632.64, 12-Mar-2019
1664,Revenue,CAHD,Bed Purchasing - South,Permanent Nursing,Gracefields Nursing Home,3153.52, 12-Mar-2019
1665,Revenue,CAHD,South Glos Users in South Glos Homes,Permanent Nursing,Gracefields Nursing Home,632.64, 12-Mar-2019
1666,Revenue,CAHD,South Glos Users in South Glos Homes,Permanent Nursing,Gracefields Nursing Home,632.64, 12-Mar-2019
1667,Revenue,CAHD,Bed Purchasing - North,Permanent Nursing,Gracefields Nursing Home,3487.36, 12-Mar-2019
1668,Revenue,CAHD,Bed Purchasing - North,Permanent Nursing,Gracefields Nursing Home,1245.49, 12-Mar-2019
1669,Revenue,CAHD,Bed Purchasing - South,Permanent Nursing,Gracefields Nursing Home,3464.60, 12-Mar-2019
1670,Revenue,CAHD,South Glos Users in South Glos Homes,Permanent Nursing,Gracefields Nursing Home,632.64, 12-Mar-2019
1671,Revenue,CAHD,Bed Purchasing - South,Permanent Nursing,Gracefields Nursing Home,3783.36, 12-Mar-2019
1672,Revenue,CAHD,South Glos Users in South Glos Homes,Permanent Nursing,Gracefields Nursing Home,632.64, 12-Mar-2019
1673,Revenue,CAHD,Bed Purchasing - Central,Permanent Nursing,Gracefields Nursing Home,3567.36, 12-Mar-2019
1674,Revenue,CAHD,South Glos Users in South Glos Homes,Permanent Nursing,Gracefields Nursing Home,632.64, 12-Mar-2019
1675,Revenue,CAHD,South Glos Users in South Glos Homes,Permanent Nursing,Gracefields Nursing Home,632.64, 12-Mar-2019
1676,Revenue,CAHD,Bed Purchasing - South,Permanent Nursing,Gracefields Nursing Home,3567.36, 12-Mar-2019
1677,Revenue,CAHD,South Glos Users in South Glos Homes,Permanent Nursing,Gracefields Nursing Home,632.64, 12-Mar-2019
1678,Revenue,CAHD,South Glos Users in South Glos Homes,Permanent Nursing,Gracefields Nursing Home,632.64, 12-Mar-2019
1679,Revenue,CAHD,South Glos Users in South Glos Homes,Permanent Nursing,Gracefields Nursing Home,632.64, 12-Mar-2019
1680,Revenue,CAHD,Bed Purchasing - South,Permanent Nursing,Gracefields Nursing Home,3129.76, 12-Mar-2019
1681,Revenue,CAHD,South Glos Users in South Glos Homes,Permanent Nursing,Gracefields Nursing Home,632.64, 12-Mar-2019
1682,Revenue,CAHD,South Glos Users in South Glos Homes,Permanent Nursing,Gracefields Nursing Home,632.64, 12-Mar-2019
1683,Revenue,CAHD,South Glos Users in South Glos Homes,Permanent Nursing,Gracefields Nursing Home,632.64, 12-Mar-2019
1684,Revenue,CAHD,South Glos Users in South Glos Homes,Permanent Nursing,Gracefields Nursing Home,632.64, 12-Mar-2019
1685,Revenue,CAHD,Bed Purchasing - South,Permanent Nursing,Gracefields Nursing Home,3153.52, 12-Mar-2019
1686,Revenue,CAHD,South Glos Users in South Glos Homes,Permanent Nursing,Gracefields Nursing Home,632.64, 12-Mar-2019
1687,Revenue,CAHD,South Glos Users in South Glos Homes,Permanent Nursing,Gracefields Nursing Home,632.64, 12-Mar-2019
1688,Revenue,CAHD,South Glos Users in South Glos Homes,Permanent Nursing,Gracefields Nursing Home,632.64, 12-Mar-2019
1689,Revenue,CAHD,South Glos Users in South Glos Homes,Permanent Nursing,Gracefields Nursing Home,632.64, 12-Mar-2019
1690,Revenue,CAHD,South Glos Users in South Glos Homes,Permanent Nursing,Gracefields Nursing Home,632.64, 12-Mar-2019
1691,Revenue,CAHD,Bed Purchasing - Central,Respite Planned - Nursing,Gracefields Nursing Home,1245.49, 12-Mar-2019
1692,Revenue,CAHD,South Glos Users in South Glos Homes,Permanent Nursing,Gracefields Nursing Home,632.64, 12-Mar-2019
1693,Revenue,CAHD,South Glos Users in South Glos Homes,Permanent Nursing,Gracefields Nursing Home,632.64, 12-Mar-2019
1694,Revenue,CAHD,South Glos Users in South Glos Homes,Permanent Nursing,Gracefields Nursing Home,632.64, 12-Mar-2019
1695,Revenue,CAHD,South Glos Users in South Glos Homes,Permanent Nursing,Gracefields Nursing Home,632.64, 12-Mar-2019
1696,Revenue,CAHD,South Glos Users in South Glos Homes,Permanent Nursing,Gracefields Nursing Home,632.64, 12-Mar-2019
1697,Revenue,CAHD,Bed Purchasing - South,Permanent Nursing,Gracefields Nursing Home,632.64, 12-Mar-2019
1698,Revenue,CAHD,South Glos Users in South Glos Homes,Permanent Nursing,Gracefields Nursing Home,632.64, 12-Mar-2019
1699,Revenue,CAHD,Bed Purchasing - South,Permanent Nursing,Gracefields Nursing Home,3400.00, 12-Mar-2019
1700,Revenue,CAHD,South Glos Users in South Glos Homes,Permanent Nursing,Gracefields Nursing Home,632.64, 12-Mar-2019
1701,Revenue,CAHD,Bed Purchasing - South,Permanent Nursing,Gracefields Nursing Home,3567.36, 12-Mar-2019
1702,Revenue,CAHD,Bed Purchasing - South,Permanent Nursing,Gracefields Nursing Home,2492.16, 12-Mar-2019
1703,Revenue,CAHD,South Glos Users in South Glos Homes,Permanent Nursing,Gracefields Nursing Home,632.64, 12-Mar-2019
1704,Revenue,CAHD,Bed Purchasing - South,Permanent Nursing,Gracefields Nursing Home,3464.60, 12-Mar-2019
1705,Revenue,CAHD,South Glos Users in South Glos Homes,Permanent Nursing,Gracefields Nursing Home,632.64, 12-Mar-2019
1706,Revenue,CAHD,South Glos Users in South Glos Homes,Permanent Nursing,Gracefields Nursing Home,3095.42, 12-Mar-2019
1707,Revenue,CAHD,South Glos Users in South Glos Homes,Permanent Nursing,Gracefields Nursing Home,632.64, 12-Mar-2019
1708,Revenue,CAHD,South Glos Users in South Glos Homes,Permanent Nursing,Gracefields Nursing Home,632.64, 12-Mar-2019
1709,Revenue,CAHD,South Glos Users in South Glos Homes,Permanent Nursing,Gracefields Nursing Home,632.64, 12-Mar-2019
1710,Revenue,CAHD,CSC - Care Leavers Independent Living,Independent Living,Greenfields Adolecent Development Limited,5529.87, 29-Mar-2019
1711,Revenue,CAHD,CSC - Residential Placements,Permanent Residential,Greenfields Adolecent Development Limited,26527.14, 11-Mar-2019
1712,Revenue,CAHD,CSC - Residential Placements,Permanent Residential,Greenfields Adolecent Development Limited,26527.14, 28-Mar-2019
1713,Revenue,CAHD,CSC - Residential Placements,Permanent Residential,Greenfields Adolecent Development Limited,26527.14, 01-Mar-2019
1714,Revenue,CAHD,Schools Specific Grant Income,Other Public Bodies,Greenshaw Learning Trust T/A Yate Academy,1260.00, 18-Mar-2019
1715,Revenue,CAHD,Schools Specific Grant Income,Other Public Bodies,Greenshaw Learning Trust T/A Yate Academy,1260.00, 18-Mar-2019
1716,Revenue,CAHD,Schools Specific Grant Income,Other Public Bodies,Greenshaw Learning Trust T/A Yate Academy,1260.00, 18-Mar-2019
1717,Revenue,CAHD,KS2 Moderation,Other Public Bodies,Greenshaw Learning Trust T/A Yate Academy,800.00, 05-Mar-2019
1718,Revenue,CAHD,Statemented Support Academies,Other Public Bodies,Greenshaw Learning Trust T/A Yate Academy,2674.00, 01-Mar-2019
1719,Revenue,CAHD,Schools Specific Grant Income,Other Public Bodies,Greenshaw Learning Trust T/A Yate Academy,935.00, 18-Mar-2019
1720,Revenue,CAHD,Academy Resource Base Funding,Other Public Bodies,Greenshaw Learning Trust T/A Yate Academy,1540.83, 22-Mar-2019
1721,Revenue,CAHD,Academy Resource Base Funding,Other Public Bodies,Greenshaw Learning Trust T/A Yate Academy,1013.74, 22-Mar-2019
1722,Revenue,CAHD,Academy Resource Base Funding,Other Public Bodies,Greenshaw Learning Trust T/A Yate Academy,1013.74, 22-Mar-2019
1723,Revenue,CAHD,Academy Resource Base Funding,Other Public Bodies,Greenshaw Learning Trust T/A Yate Academy,648.71, 22-Mar-2019
1724,Revenue,CAHD,Academy Resource Base Funding,Other Public Bodies,Greenshaw Learning Trust T/A Yate Academy,1540.83, 22-Mar-2019
1725,Revenue,CAHD,Academy Resource Base Funding,Other Public Bodies,Greenshaw Learning Trust T/A Yate Academy,1175.88, 22-Mar-2019
1726,Revenue,CAHD,Academy Resource Base Funding,Other Public Bodies,Greenshaw Learning Trust T/A Yate Academy,1702.96, 22-Mar-2019
1727,Revenue,CAHD,Statemented Support Academies,Schools Funding,Greenshaw Learning Trust T/A Yate Academy,694.91, 25-Mar-2019
1728,Revenue,CAHD,Statemented Support Academies,Schools Funding,Greenshaw Learning Trust T/A Yate Academy,1213.74, 25-Mar-2019
1729,Revenue,CAHD,Statemented Support Academies,Schools Funding,Greenshaw Learning Trust T/A Yate Academy,848.20, 25-Mar-2019
1730,Revenue,CAHD,Statemented Support Academies,Schools Funding,Greenshaw Learning Trust T/A Yate Academy,1461.37, 25-Mar-2019
1731,Revenue,CAHD,Statemented Support Academies,Schools Funding,Greenshaw Learning Trust T/A Yate Academy,1461.37, 25-Mar-2019
1732,Revenue,CAHD,Statemented Support Academies,Schools Funding,Greenshaw Learning Trust T/A Yate Academy,1213.74, 25-Mar-2019
1733,Revenue,CAHD,Statemented Support Academies,Schools Funding,Greenshaw Learning Trust T/A Yate Academy,1213.74, 25-Mar-2019
1734,Revenue,CAHD,Statemented Support Academies,Schools Funding,Greenshaw Learning Trust T/A Yate Academy,977.91, 25-Mar-2019
1735,Revenue,CAHD,Statemented Support Academies,Schools Funding,Greenshaw Learning Trust T/A Yate Academy,942.53, 25-Mar-2019
1736,Revenue,CAHD,Statemented Support Academies,Schools Funding,Greenshaw Learning Trust T/A Yate Academy,883.58, 25-Mar-2019
1737,Revenue,CAHD,Statemented Support Academies,Schools Funding,Greenshaw Learning Trust T/A Yate Academy,966.12, 25-Mar-2019
1738,Revenue,CAHD,Statemented Support Academies,Schools Funding,Greenshaw Learning Trust T/A Yate Academy,918.95, 25-Mar-2019
1739,Revenue,CAHD,Statemented Support Academies,Schools Funding,Greenshaw Learning Trust T/A Yate Academy,1001.49, 25-Mar-2019
1740,Revenue,CAHD,Statemented Support Academies,Schools Funding,Greenshaw Learning Trust T/A Yate Academy,765.66, 25-Mar-2019
1741,Revenue,CAHD,Statemented Support Academies,Schools Funding,Greenshaw Learning Trust T/A Yate Academy,694.91, 25-Mar-2019
1742,Revenue,CAHD,Bed Purchasing - Central,Permanent Residential,Greensleeves,2640.96, 12-Mar-2019
1743,Revenue,CAHD,Bed Purchasing - South,Permanent Residential,Gwendoline House,2613.96, 12-Mar-2019
1744,Revenue,CAHD,Bed Purchasing - North,Permanent Residential,Gwendoline House,2480.00, 12-Mar-2019
1745,Revenue,CAHD,Bed Purchasing - South,Permanent Residential,Gwendoline House,2415.44, 12-Mar-2019
1746,Revenue,CAHD,Home Care - Elderly - South,Other Small Contracts,H F T,669.48, 13-Mar-2019
1747,Revenue,CAHD,Supporting People Programme,Grants to Voluntary Bodies,Habinteg Housing Association,678.00, 01-Mar-2019
1748,Revenue,CAHD,CSC - Vinney Green Secure Unit,R & M by Departments,Hafele UK Ltd,562.48, 15-Mar-2019
1749,Revenue,CAHD,CSC - Vinney Green Secure Unit,R & M by Departments,HAG Shutters & Grilles Limited,560.00, 01-Mar-2019
1750,Revenue,CAHD,Social Lettings Agency,Fees - General,Individual,13.13, 27-Mar-2019
1751,Revenue,CAHD,Social Lettings Agency,Other Supplies & Services,Individual,577.72, 27-Mar-2019
1752,Revenue,CAHD,CSC - Residential Placements,Permanent Residential,Hampshire County Council,3000.00, 25-Mar-2019
1753,Revenue,CAHD,Early Years Development,Training Expenses,Hampshire County Council,1800.00, 20-Mar-2019
1754,Revenue,CAHD,School Improvement and Support,Consultants Fees,Hampshire County Council,2000.00, 08-Mar-2019
1755,Revenue,CAHD,School Improvement and Support,Conference Expenses,Hampshire County Council,950.00, 06-Mar-2019
1756,Revenue,CAHD,Sexual Health,Other Small Contracts,Hanham Health,1932.00, 20-Mar-2019
1757,Revenue,CAHD,Sexual Health,Other Small Contracts,Hanham Health,836.22, 20-Mar-2019
1758,Revenue,CAHD,EARLY YEARS DEPRIVATION PAYMENT,Preventative Assistance,Happy Days Day Nursery - Cheswick Village,1506.33, 05-Mar-2019
1759,Revenue,CAHD,Early Years Pupil Premium Grant,Preventative Assistance,Happy Days Day Nursery - Cheswick Village,879.80, 05-Mar-2019
1760,Revenue,CAHD,Home Care Monitoring (CM2000),Other Supplies & Services,HAS Technology Limited T/A CM2000,3095.00, 22-Mar-2019
1761,Revenue,CAHD,Home Care - Elderly - North,Other Supplies & Services,HAS Technology Limited T/A CM2000,1576.00, 22-Mar-2019
1762,Revenue,CAHD,Bed Purchasing - North,Permanent Nursing,Hazelwood Gardens Nursing Home,2658.04, 12-Mar-2019
1763,Revenue,CAHD,Bed Purchasing - North,Permanent Nursing,Hazelwood Gardens Nursing Home,2288.56, 12-Mar-2019
1764,Revenue,CAHD,Bed Purchasing - Central,Permanent Residential,Hc-One Ltd,2181.00, 12-Mar-2019
1765,Revenue,CAHD,Bed Purchasing - North,Permanent Nursing,Hc-One Ltd,2816.28, 12-Mar-2019
1766,Revenue,CAHD,Bed Purchasing - North,Permanent Nursing,Hc-One Ltd,2156.56, 12-Mar-2019
1767,Revenue,CAHD,Bed Purchasing - Central,Permanent Residential,Hc-One Ltd,2224.52, 12-Mar-2019
1768,Revenue,CAHD,Bed Purchasing - Central,Permanent Residential,Hc-One Ltd,2313.72, 12-Mar-2019
1769,Revenue,CAHD,Bed Purchasing - Central,Permanent Nursing,Hc-One Ltd,2267.32, 12-Mar-2019
1770,Revenue,CAHD,Bed Purchasing - North,Permanent Nursing,Hc-One Ltd,2171.08, 12-Mar-2019
1771,Revenue,CAHD,Bed Purchasing - North,Respite Emergency - Residential,Hc-One Ltd,1698.39, 12-Mar-2019
1772,Revenue,CAHD,Bed Purchasing - North,Respite Emergency - Residential,Hc-One Ltd,1617.51, 12-Mar-2019
1773,Revenue,CAHD,Bed Purchasing - Central,Permanent Residential,Hc-One Ltd,2224.52, 12-Mar-2019
1774,Revenue,CAHD,Bed Purchasing - North,Permanent Nursing,Head Office,2412.88, 12-Mar-2019
1775,Revenue,CAHD,Bed Purchasing - North,Permanent Nursing,Head Office,4447.36, 12-Mar-2019
1776,Revenue,CAHD,CSC - Residential Placements,Permanent Residential,Headway Adolescent Resources Limited,13600.00, 13-Mar-2019
1777,Revenue,CAHD,Homecare - Central,Day Care / Social Activities,Headway Bristol,749.36, 11-Mar-2019
1778,Revenue,CAHD,Homecare - Central,Other Small Contracts,Headway Bristol,595.08, 11-Mar-2019
1779,Revenue,CAHD,Home Care - Elderly - South,Day Care / Social Activities,Headway Bristol,330.60, 11-Mar-2019
1780,Revenue,CAHD,Home Care - Elderly - South,Other Small Contracts,Headway Bristol,330.60, 11-Mar-2019
1781,Revenue,CAHD,Home Care - Elderly - North,Day Care / Social Activities,Headway Bristol,66.12, 11-Mar-2019
1782,Revenue,CAHD,Younger MH non-res purchasing,Day Care / Social Activities,Headway Bristol,88.16, 11-Mar-2019
1783,Revenue,CAHD,Homecare - Central,Day Care / Social Activities,Headway Bristol,749.36, 19-Mar-2019
1784,Revenue,CAHD,Homecare - Central,Other Small Contracts,Headway Bristol,661.20, 19-Mar-2019
1785,Revenue,CAHD,Home Care - Elderly - South,Day Care / Social Activities,Headway Bristol,330.60, 19-Mar-2019
1786,Revenue,CAHD,Home Care - Elderly - South,Other Small Contracts,Headway Bristol,325.09, 19-Mar-2019
1787,Revenue,CAHD,Home Care - Elderly - North,Day Care / Social Activities,Headway Bristol,66.12, 19-Mar-2019
1788,Revenue,CAHD,Home Care - Elderly - North,Other Small Contracts,Headway Bristol,88.16, 19-Mar-2019
1789,Revenue,CAHD,Younger MH non-res purchasing,Day Care / Social Activities,Headway Bristol,88.16, 19-Mar-2019
1790,Revenue,CAHD,Homecare - Central,Day Care / Social Activities,Headway Bristol,528.96, 21-Mar-2019
1791,Revenue,CAHD,Homecare - Central,Other Small Contracts,Headway Bristol,589.57, 21-Mar-2019
1792,Revenue,CAHD,Home Care - Elderly - South,Day Care / Social Activities,Headway Bristol,330.60, 21-Mar-2019
1793,Revenue,CAHD,Home Care - Elderly - South,Other Small Contracts,Headway Bristol,308.56, 21-Mar-2019
1794,Revenue,CAHD,Home Care - Elderly - North,Day Care / Social Activities,Headway Bristol,66.12, 21-Mar-2019
1795,Revenue,CAHD,Younger MH non-res purchasing,Day Care / Social Activities,Headway Bristol,88.16, 21-Mar-2019
1796,Revenue,CAHD,Homecare - Central,Day Care / Social Activities,Headway Bristol,749.36, 21-Mar-2019
1797,Revenue,CAHD,Homecare - Central,Other Small Contracts,Headway Bristol,727.32, 21-Mar-2019
1798,Revenue,CAHD,Home Care - Elderly - South,Day Care / Social Activities,Headway Bristol,330.60, 21-Mar-2019
1799,Revenue,CAHD,Home Care - Elderly - South,Other Small Contracts,Headway Bristol,242.44, 21-Mar-2019
1800,Revenue,CAHD,Home Care - Elderly - North,Day Care / Social Activities,Headway Bristol,66.12, 21-Mar-2019
1801,Revenue,CAHD,Home Care - Elderly - North,Other Small Contracts,Headway Bristol,88.16, 21-Mar-2019
1802,Revenue,CAHD,Younger MH non-res purchasing,Day Care / Social Activities,Headway Bristol,88.16, 21-Mar-2019
1803,Revenue,CAHD,Homecare - Central,Day Care / Social Activities,Headway Bristol,749.36, 21-Mar-2019
1804,Revenue,CAHD,Homecare - Central,Other Small Contracts,Headway Bristol,528.96, 21-Mar-2019
1805,Revenue,CAHD,Home Care - Elderly - South,Day Care / Social Activities,Headway Bristol,132.24, 21-Mar-2019
1806,Revenue,CAHD,Home Care - Elderly - South,Other Small Contracts,Headway Bristol,192.85, 21-Mar-2019
1807,Revenue,CAHD,Home Care - Elderly - North,Day Care / Social Activities,Headway Bristol,66.12, 21-Mar-2019
1808,Revenue,CAHD,Younger MH non-res purchasing,Day Care / Social Activities,Headway Bristol,88.16, 21-Mar-2019
1809,Revenue,CAHD,Hospital Tuition,Other Private Contractors,Heath House School Priory,787.00, 19-Mar-2019
1810,Revenue,CAHD,Hospital Tuition,Other Private Contractors,Heath House School Priory,525.00, 19-Mar-2019
1811,Revenue,CAHD,Hospital Tuition,Other Private Contractors,Heath House School Priory,1662.50, 20-Mar-2019
1812,Revenue,CAHD,Hospital Tuition,Other Private Contractors,Heath House School Priory,1312.50, 15-Mar-2019
1813,Revenue,CAHD,Hospital Tuition,Other Private Contractors,Heath House School Priory,1312.50, 15-Mar-2019
1814,Revenue,CAHD,Hospital Tuition,Other Private Contractors,Heath House School Priory,1663.00, 11-Mar-2019
1815,Revenue,CAHD,Homecare - Central,Other Small Contracts,Helping Hands Homecare,1568.47, 01-Mar-2019
1816,Revenue,CAHD,Home Care - Elderly - South,Other Small Contracts,Helping Hands Homecare,626.09, 01-Mar-2019
1817,Revenue,CAHD,Home Care - Elderly - North,Other Small Contracts,Helping Hands Homecare,1238.13, 01-Mar-2019
1818,Revenue,CAHD,Homecare - Central,Other Small Contracts,Helping Hands Homecare,1480.40, 01-Mar-2019
1819,Revenue,CAHD,Home Care - Elderly - South,Other Small Contracts,Helping Hands Homecare,548.40, 01-Mar-2019
1820,Revenue,CAHD,Home Care - Elderly - North,Other Small Contracts,Helping Hands Homecare,1043.04, 01-Mar-2019
1821,Revenue,CAHD,Homecare - Central,Other Small Contracts,Helping Hands Homecare,1050.99, 19-Mar-2019
1822,Revenue,CAHD,Home Care - Elderly - South,Other Small Contracts,Helping Hands Homecare,388.45, 19-Mar-2019
1823,Revenue,CAHD,Home Care - Elderly - North,Other Small Contracts,Helping Hands Homecare,676.02, 19-Mar-2019
1824,Revenue,CAHD,Homecare - Central,Other Small Contracts,Helping Hands Homecare,1228.81, 19-Mar-2019
1825,Revenue,CAHD,Home Care - Elderly - South,Other Small Contracts,Helping Hands Homecare,361.03, 19-Mar-2019
1826,Revenue,CAHD,Home Care - Elderly - North,Other Small Contracts,Helping Hands Homecare,1015.34, 19-Mar-2019
1827,Revenue,CAHD,Homecare - Central,Other Small Contracts,Helping Hands Homecare,1091.93, 19-Mar-2019
1828,Revenue,CAHD,Home Care - Elderly - South,Other Small Contracts,Helping Hands Homecare,598.67, 19-Mar-2019
1829,Revenue,CAHD,Home Care - Elderly - North,Other Small Contracts,Helping Hands Homecare,1238.93, 19-Mar-2019
1830,Revenue,CAHD,Homecare - Central,Other Small Contracts,Helping Hands Homecare,1337.11, 19-Mar-2019
1831,Revenue,CAHD,Home Care - Elderly - South,Other Small Contracts,Helping Hands Homecare,411.30, 19-Mar-2019
1832,Revenue,CAHD,Home Care - Elderly - North,Other Small Contracts,Helping Hands Homecare,1094.37, 19-Mar-2019
1833,Revenue,CAHD,Homecare - Central,Other Small Contracts,Helping Hands Homecare,1666.05, 19-Mar-2019
1834,Revenue,CAHD,Home Care - Elderly - South,Other Small Contracts,Helping Hands Homecare,644.37, 19-Mar-2019
1835,Revenue,CAHD,Home Care - Elderly - North,Other Small Contracts,Helping Hands Homecare,1183.34, 19-Mar-2019
1836,Revenue,CAHD,Homecare - Central,Other Small Contracts,Helping Hands Homecare,1412.91, 19-Mar-2019
1837,Revenue,CAHD,Home Care - Elderly - South,Other Small Contracts,Helping Hands Homecare,319.90, 19-Mar-2019
1838,Revenue,CAHD,Home Care - Elderly - North,Other Small Contracts,Helping Hands Homecare,904.44, 19-Mar-2019
1839,Revenue,CAHD,Homecare - Central,Other Small Contracts,Helping Hands Homecare,1397.54, 19-Mar-2019
1840,Revenue,CAHD,Home Care - Elderly - South,Other Small Contracts,Helping Hands Homecare,552.97, 19-Mar-2019
1841,Revenue,CAHD,Home Care - Elderly - North,Other Small Contracts,Helping Hands Homecare,929.12, 19-Mar-2019
1842,Revenue,CAHD,Homecare - Central,Other Small Contracts,Helping Hands Homecare,1671.29, 19-Mar-2019
1843,Revenue,CAHD,Home Care - Elderly - South,Other Small Contracts,Helping Hands Homecare,534.69, 19-Mar-2019
1844,Revenue,CAHD,Home Care - Elderly - North,Other Small Contracts,Helping Hands Homecare,1103.15, 19-Mar-2019
1845,Revenue,CAHD,Homecare - Central,Other Small Contracts,Helping Hands Homecare,1700.13, 19-Mar-2019
1846,Revenue,CAHD,Home Care - Elderly - South,Other Small Contracts,Helping Hands Homecare,530.12, 19-Mar-2019
1847,Revenue,CAHD,Home Care - Elderly - North,Other Small Contracts,Helping Hands Homecare,1055.12, 19-Mar-2019
1848,Revenue,CAHD,CSC - Residential Placements,Membership Fees,Hertfordshire County Council,4000.00, 11-Mar-2019
1849,Revenue,CAHD,S117 Placements PCT,Permanent Residential,Hesley Hall,19258.12, 12-Mar-2019
1850,Revenue,CAHD,Schools Specific Grant Income,Other Public Bodies,Hidelow Grange School,630.00, 01-Mar-2019
1851,Revenue,CAHD,Bed Purchasing - Central,Permanent Residential,High Border Lodge,2092.00, 12-Mar-2019
1852,Revenue,CAHD,Bed Purchasing - North,Permanent Residential,High Border Lodge,2039.72, 12-Mar-2019
1853,Revenue,CAHD,18-25 Year Olds,Supported Living,Hillcairnie House,3406.32, 12-Mar-2019
1854,Revenue,CAHD,Home Care - Elderly - South,Supported Living,Hillcairnie House,4195.52, 12-Mar-2019
1855,Revenue,CAHD,Home Care - Elderly - South,Supported Living,Hillcairnie House,2517.76, 12-Mar-2019
1856,Revenue,CAHD,Home Care - Elderly - North,Supported Living,Hillcairnie House,2517.76, 12-Mar-2019
1857,Revenue,CAHD,Home Care - Elderly - South,Supported Living,Hillcairnie House,4195.52, 12-Mar-2019
1858,Revenue,CAHD,Home Care - Elderly - South,Supported Living,Hillcairnie House,2517.76, 12-Mar-2019
1859,Revenue,CAHD,CSC - Residential Placements,Permanent Residential,Hillcrest Children`s Services Ltd,19840.00, 26-Mar-2019
1860,Revenue,CAHD,CSC - Residential Placements,Permanent Residential,Hillcrest Children`s Services Ltd,19840.00, 26-Mar-2019
1861,Revenue,CAHD,CSC - Residential Placements,Permanent Residential,Hillcrest Children`s Services Ltd,17920.00, 26-Mar-2019
